Department,Entity,Transaction Date,Expense Type,Expense Area,Supplier,Transaction No.,Amount
DEPARTMENT OF ENERGY AND CLIMATE CHANGE,THE COAL AUTHORITY,09/05/2016,Applications Consultancy,Application Management,Scisys Uk Ltd,994,2182.25
DEPARTMENT OF ENERGY AND CLIMATE CHANGE,THE COAL AUTHORITY,30/04/2016,Fares - Rail,Application Management,Redfern Travel Ltd,886,270.49
DEPARTMENT OF ENERGY AND CLIMATE CHANGE,THE COAL AUTHORITY,24/05/2016,Fares - Public Transport,Board,Accruals - Staff Expenses Control,1378,14.60
DEPARTMENT OF ENERGY AND CLIMATE CHANGE,THE COAL AUTHORITY,11/05/2016,Fares - Rail,Board,Accruals - Staff Expenses Control,986,100.20
DEPARTMENT OF ENERGY AND CLIMATE CHANGE,THE COAL AUTHORITY,24/05/2016,Fares - Rail,Board,Accruals - Staff Expenses Control,1377,49.15
DEPARTMENT OF ENERGY AND CLIMATE CHANGE,THE COAL AUTHORITY,24/05/2016,Fares - Rail,Board,Accruals - Staff Expenses Control,1378,214.15
DEPARTMENT OF ENERGY AND CLIMATE CHANGE,THE COAL AUTHORITY,24/05/2016,Hotel & Accommodation,Board,Accruals - Staff Expenses Control,1378,141.25
DEPARTMENT OF ENERGY AND CLIMATE CHANGE,THE COAL AUTHORITY,26/04/2016,Applications Consultancy,BOSS Programme,Midland Software Ltd,657,1978.00
DEPARTMENT OF ENERGY AND CLIMATE CHANGE,THE COAL AUTHORITY,26/04/2016,Applications Consultancy,BOSS Programme,Midland Software Ltd,658,2585.80
DEPARTMENT OF ENERGY AND CLIMATE CHANGE,THE COAL AUTHORITY,26/04/2016,Applications Consultancy,BOSS Programme,Midland Software Ltd,676,1698.00
DEPARTMENT OF ENERGY AND CLIMATE CHANGE,THE COAL AUTHORITY,30/04/2016,Applications Consultancy,BOSS Programme,Sapphire Systems Plc,767,1200.29
DEPARTMENT OF ENERGY AND CLIMATE CHANGE,THE COAL AUTHORITY,30/04/2016,Applications Consultancy,BOSS Programme,Sapphire Systems Plc,1244,88.30
DEPARTMENT OF ENERGY AND CLIMATE CHANGE,THE COAL AUTHORITY,31/03/2016,Applications Consultancy,BOSS Programme,Sapphire Systems Plc,1245,6856.12
DEPARTMENT OF ENERGY AND CLIMATE CHANGE,THE COAL AUTHORITY,17/05/2016,Applications Consultancy,BOSS Programme,Sapphire Systems Plc,1246,307.36
DEPARTMENT OF ENERGY AND CLIMATE CHANGE,THE COAL AUTHORITY,16/03/2016,Business Meetings,BOSS Programme,Ransomwood Estates Ltd,700,275.00
DEPARTMENT OF ENERGY AND CLIMATE CHANGE,THE COAL AUTHORITY,30/04/2016,CY - Intangible IT - Additions,BOSS Programme,Sapphire Systems Plc,767,4162.50
DEPARTMENT OF ENERGY AND CLIMATE CHANGE,THE COAL AUTHORITY,17/02/2016,CY - Intangible IT - Additions,BOSS Programme,Sapphire Systems Plc,1243,1850.00
DEPARTMENT OF ENERGY AND CLIMATE CHANGE,THE COAL AUTHORITY,30/04/2016,CY - Intangible IT - Additions,BOSS Programme,Sapphire Systems Plc,1244,4717.50
DEPARTMENT OF ENERGY AND CLIMATE CHANGE,THE COAL AUTHORITY,31/03/2016,CY - Intangible IT - Additions,BOSS Programme,Sapphire Systems Plc,1245,25075.00
DEPARTMENT OF ENERGY AND CLIMATE CHANGE,THE COAL AUTHORITY,18/04/2016,CY - Intangible IT - Additions,BOSS Programme,Sapphire Systems Plc,1475,-462.50
DEPARTMENT OF ENERGY AND CLIMATE CHANGE,THE COAL AUTHORITY,28/04/2016,Temporary Contractors,BOSS Programme,Hays,790,1950.00
DEPARTMENT OF ENERGY AND CLIMATE CHANGE,THE COAL AUTHORITY,06/05/2016,Temporary Contractors,BOSS Programme,Hays,1047,1950.00
DEPARTMENT OF ENERGY AND CLIMATE CHANGE,THE COAL AUTHORITY,11/05/2016,Temporary Contractors,BOSS Programme,Hays,1295,1560.00
DEPARTMENT OF ENERGY AND CLIMATE CHANGE,THE COAL AUTHORITY,19/05/2016,Temporary Contractors,BOSS Programme,Hays,1411,1950.00
DEPARTMENT OF ENERGY AND CLIMATE CHANGE,THE COAL AUTHORITY,01/05/2016,eCommerce Commission Charges,Business Development,Worldpay,968,8.91
DEPARTMENT OF ENERGY AND CLIMATE CHANGE,THE COAL AUTHORITY,30/04/2016,Fares - Rail,Business Development,Redfern Travel Ltd,886,159.01
DEPARTMENT OF ENERGY AND CLIMATE CHANGE,THE COAL AUTHORITY,25/04/2016,Damp Proof Survey Fees,Coal Products,Preservation Treatments Surrey Limited,697,1439.00
DEPARTMENT OF ENERGY AND CLIMATE CHANGE,THE COAL AUTHORITY,23/05/2016,Bank Charges,Communications & Brand,Citibank,1308,25.00
DEPARTMENT OF ENERGY AND CLIMATE CHANGE,THE COAL AUTHORITY,30/04/2016,Fares - Rail,Communications & Brand,Redfern Travel Ltd,886,324.81
DEPARTMENT OF ENERGY AND CLIMATE CHANGE,THE COAL AUTHORITY,30/04/2016,Hotel & Accommodation,Communications & Brand,Redfern Travel Ltd,888,170.39
DEPARTMENT OF ENERGY AND CLIMATE CHANGE,THE COAL AUTHORITY,30/04/2016,Hotel & Accommodation,Communications & Brand,Redfern Travel Ltd,888,170.39
DEPARTMENT OF ENERGY AND CLIMATE CHANGE,THE COAL AUTHORITY,30/04/2016,Public Relations,Communications & Brand,Gorkana Group Ltd,915,261.99
DEPARTMENT OF ENERGY AND CLIMATE CHANGE,THE COAL AUTHORITY,30/04/2016,Public Relations,Communications & Brand,Gorkana Group Ltd,916,386.43
DEPARTMENT OF ENERGY AND CLIMATE CHANGE,THE COAL AUTHORITY,30/04/2016,Public Relations,Communications & Brand,Sharpe Pritchard,1160,425.00
DEPARTMENT OF ENERGY AND CLIMATE CHANGE,THE COAL AUTHORITY,24/05/2016,Subsistence Allowances,Communications & Brand,Accruals - Staff Expenses Control,1379,15.00
DEPARTMENT OF ENERGY AND CLIMATE CHANGE,THE COAL AUTHORITY,06/05/2016,Temporary Contractors,Communications & Brand,Key Personnel Solutions Ltd,965,207.90
DEPARTMENT OF ENERGY AND CLIMATE CHANGE,THE COAL AUTHORITY,13/05/2016,Temporary Contractors,Communications & Brand,Key Personnel Solutions Ltd,1162,519.75
DEPARTMENT OF ENERGY AND CLIMATE CHANGE,THE COAL AUTHORITY,20/05/2016,Temporary Contractors,Communications & Brand,Key Personnel Solutions Ltd,1367,516.29
DEPARTMENT OF ENERGY AND CLIMATE CHANGE,THE COAL AUTHORITY,30/04/2016,Fares - Rail,Data Solutions,Redfern Travel Ltd,886,180.87
DEPARTMENT OF ENERGY AND CLIMATE CHANGE,THE COAL AUTHORITY,24/05/2016,Incidentals,Data Solutions,Accruals - Staff Expenses Control,1375,9.16
DEPARTMENT OF ENERGY AND CLIMATE CHANGE,THE COAL AUTHORITY,17/05/2016,Legal - General,Data Solutions,Dla Piper Uk Llp,1296,3432.00
DEPARTMENT OF ENERGY AND CLIMATE CHANGE,THE COAL AUTHORITY,11/05/2016,Mileage Payments,Data Solutions,Accruals - Staff Expenses Control,977,32.94
DEPARTMENT OF ENERGY AND CLIMATE CHANGE,THE COAL AUTHORITY,24/05/2016,Mileage Payments,Data Solutions,Accruals - Staff Expenses Control,1375,3.42
DEPARTMENT OF ENERGY AND CLIMATE CHANGE,THE COAL AUTHORITY,24/05/2016,Subsistence Allowances,Data Solutions,Accruals - Staff Expenses Control,1375,15.05
DEPARTMENT OF ENERGY AND CLIMATE CHANGE,THE COAL AUTHORITY,26/04/2016,CY - Minewater Scheme - Additions,Environment - Coal Mine Build,Atkins Limited,942,4233.35
DEPARTMENT OF ENERGY AND CLIMATE CHANGE,THE COAL AUTHORITY,01/05/2016,CY - Minewater Scheme - Additions,Environment - Coal Mine Build,J N Bentley Limited,1167,-1156.89
DEPARTMENT OF ENERGY AND CLIMATE CHANGE,THE COAL AUTHORITY,01/05/2016,CY - Minewater Scheme - Additions,Environment - Coal Mine Build,J N Bentley Limited,1173,-924.05
DEPARTMENT OF ENERGY AND CLIMATE CHANGE,THE COAL AUTHORITY,01/05/2016,CY - Minewater Scheme - Additions,Environment - Coal Mine Build,J N Bentley Limited,1174,-545.79
DEPARTMENT OF ENERGY AND CLIMATE CHANGE,THE COAL AUTHORITY,30/04/2016,Fares - Rail,Environment - Coal Mine Build,Redfern Travel Ltd,886,136.70
DEPARTMENT OF ENERGY AND CLIMATE CHANGE,THE COAL AUTHORITY,11/05/2016,Fuel (Vehicle),Environment - Coal Mine Build,Accruals - Staff Expenses Control,975,21.34
DEPARTMENT OF ENERGY AND CLIMATE CHANGE,THE COAL AUTHORITY,30/04/2016,Hotel & Accommodation,Environment - Coal Mine Build,Redfern Travel Ltd,888,171.95
DEPARTMENT OF ENERGY AND CLIMATE CHANGE,THE COAL AUTHORITY,06/05/2016,Legal - General,Environment - Coal Mine Build,Anderson Strathern,940,39.00
DEPARTMENT OF ENERGY AND CLIMATE CHANGE,THE COAL AUTHORITY,08/04/2016,Legal - General,Environment - Coal Mine Build,Anderson Strathern,941,26.00
DEPARTMENT OF ENERGY AND CLIMATE CHANGE,THE COAL AUTHORITY,08/04/2016,Legal - General,Environment - Coal Mine Build,Anderson Strathern,941,860.00
DEPARTMENT OF ENERGY AND CLIMATE CHANGE,THE COAL AUTHORITY,29/04/2016,Legal - General,Environment - Coal Mine Build,Walker Morris,1201,2598.30
DEPARTMENT OF ENERGY AND CLIMATE CHANGE,THE COAL AUTHORITY,29/04/2016,Legal - General,Environment - Coal Mine Build,Walker Morris,1201,2657.30
DEPARTMENT OF ENERGY AND CLIMATE CHANGE,THE COAL AUTHORITY,29/04/2016,Minewater Feasibility / Scoping,Environment - Coal Mine Build,Mott Macdonald Ltd,802,1062.90
DEPARTMENT OF ENERGY AND CLIMATE CHANGE,THE COAL AUTHORITY,04/03/2016,Minewater Feasibility / Scoping,Environment - Coal Mine Build,Environment Agency,1178,1887.00
DEPARTMENT OF ENERGY AND CLIMATE CHANGE,THE COAL AUTHORITY,13/05/2016,Minewater Feasibility / Scoping,Environment - Coal Mine Build,Atkins Limited,1180,3553.00
DEPARTMENT OF ENERGY AND CLIMATE CHANGE,THE COAL AUTHORITY,11/05/2016,Subsistence Allowances,Environment - Coal Mine Build,Accruals - Staff Expenses Control,979,2.00
DEPARTMENT OF ENERGY AND CLIMATE CHANGE,THE COAL AUTHORITY,27/04/2016,Temporary Contractors,Environment - Coal Mine Build,Mott Macdonald Ltd,803,16165.70
DEPARTMENT OF ENERGY AND CLIMATE CHANGE,THE COAL AUTHORITY,01/05/2016,eCommerce Commission Charges,Environment - Commercial,Worldpay,968,4.74
DEPARTMENT OF ENERGY AND CLIMATE CHANGE,THE COAL AUTHORITY,27/04/2016,CY - Minewater Scheme - Additions,Environment - Contract Management,Nal Plant Limited,651,26844.67
DEPARTMENT OF ENERGY AND CLIMATE CHANGE,THE COAL AUTHORITY,12/05/2016,CY - Minewater Scheme - Additions,Environment - Contract Management,Balfour Beatty Civil Eng Ltd,1116,17440.67
DEPARTMENT OF ENERGY AND CLIMATE CHANGE,THE COAL AUTHORITY,13/05/2016,CY - Minewater Scheme - Additions,Environment - Contract Management,Atkins Limited,1179,4655.60
DEPARTMENT OF ENERGY AND CLIMATE CHANGE,THE COAL AUTHORITY,03/06/2016,CY - Minewater Scheme - Additions,Environment - Contract Management,1116 Balfour - Vinovium Retention Release,1614,-13840.68
DEPARTMENT OF ENERGY AND CLIMATE CHANGE,THE COAL AUTHORITY,02/03/2016,CY - Subsidence Pumping - Additions,Environment - Contract Management,Ouse&Derwnt Intern Drainge Brd,1364,3220.00
DEPARTMENT OF ENERGY AND CLIMATE CHANGE,THE COAL AUTHORITY,02/03/2016,CY - Subsidence Pumping - Additions,Environment - Contract Management,Ouse&Derwnt Intern Drainge Brd,1364,3220.00
DEPARTMENT OF ENERGY AND CLIMATE CHANGE,THE COAL AUTHORITY,02/03/2016,CY - Subsidence Pumping - Additions,Environment - Contract Management,Ouse&Derwnt Intern Drainge Brd,1364,3220.00
DEPARTMENT OF ENERGY AND CLIMATE CHANGE,THE COAL AUTHORITY,02/03/2016,CY - Subsidence Pumping - Additions,Environment - Contract Management,Ouse&Derwnt Intern Drainge Brd,1364,3220.00
DEPARTMENT OF ENERGY AND CLIMATE CHANGE,THE COAL AUTHORITY,02/03/2016,CY - Subsidence Pumping - Additions,Environment - Contract Management,Ouse&Derwnt Intern Drainge Brd,1364,4485.00
DEPARTMENT OF ENERGY AND CLIMATE CHANGE,THE COAL AUTHORITY,30/04/2016,Hotel & Accommodation,Environment - Contract Management,Redfern Travel Ltd,888,343.90
DEPARTMENT OF ENERGY AND CLIMATE CHANGE,THE COAL AUTHORITY,20/05/2016,Minewater Carbon Reduction Commitments,Environment - Contract Management,Environment Agency,1356,1290.00
DEPARTMENT OF ENERGY AND CLIMATE CHANGE,THE COAL AUTHORITY,29/04/2016,Minewater Consultancy - Operational Sites,Environment - Contract Management,Mott Macdonald Ltd,804,4901.16
DEPARTMENT OF ENERGY AND CLIMATE CHANGE,THE COAL AUTHORITY,29/04/2016,Minewater Consultancy - Operational Sites,Environment - Contract Management,Mott Macdonald Ltd,806,2300.51
DEPARTMENT OF ENERGY AND CLIMATE CHANGE,THE COAL AUTHORITY,29/04/2016,Minewater Consultancy - Operational Sites,Environment - Contract Management,Mott Macdonald Ltd,807,3255.00
DEPARTMENT OF ENERGY AND CLIMATE CHANGE,THE COAL AUTHORITY,05/05/2016,Minewater Consultancy - Operational Sites,Environment - Contract Management,Mott Macdonald Ltd,808,3481.34
DEPARTMENT OF ENERGY AND CLIMATE CHANGE,THE COAL AUTHORITY,01/05/2016,Minewater Consultancy - Operational Sites,Environment - Contract Management,J N Bentley Limited,1172,29.03
DEPARTMENT OF ENERGY AND CLIMATE CHANGE,THE COAL AUTHORITY,01/05/2016,Minewater Consultancy - Operational Sites,Environment - Contract Management,J N Bentley Limited,1175,827.18
DEPARTMENT OF ENERGY AND CLIMATE CHANGE,THE COAL AUTHORITY,01/05/2016,Minewater Consultancy - Operational Sites,Environment - Contract Management,J N Bentley Limited,1176,-33.35
DEPARTMENT OF ENERGY AND CLIMATE CHANGE,THE COAL AUTHORITY,21/10/2015,Minewater Contractor Add. Task Order - Ops Site,Environment - Contract Management,Integrated Water Services Ltd,1184,1822.50
DEPARTMENT OF ENERGY AND CLIMATE CHANGE,THE COAL AUTHORITY,24/05/2016,Minewater Contractor Add. Task Order - Ops Site,Environment - Contract Management,Severn Trent Serv Ops Uk Ltd,1457,180020.26
DEPARTMENT OF ENERGY AND CLIMATE CHANGE,THE COAL AUTHORITY,15/04/2016,Minewater Discharge Consents,Environment - Contract Management,Environment Agency,865,25.00
DEPARTMENT OF ENERGY AND CLIMATE CHANGE,THE COAL AUTHORITY,15/04/2016,Minewater Discharge Consents,Environment - Contract Management,Environment Agency,866,62.18
DEPARTMENT OF ENERGY AND CLIMATE CHANGE,THE COAL AUTHORITY,15/04/2016,Minewater Discharge Consents,Environment - Contract Management,Environment Agency,873,46.64
DEPARTMENT OF ENERGY AND CLIMATE CHANGE,THE COAL AUTHORITY,01/04/2016,Minewater Discharge Consents,Environment - Contract Management,National Coal Mining Museum,938,1026.00
DEPARTMENT OF ENERGY AND CLIMATE CHANGE,THE COAL AUTHORITY,06/05/2016,Minewater Discharge Consents,Environment - Contract Management,Natural Resources Wales,1025,2052.00
DEPARTMENT OF ENERGY AND CLIMATE CHANGE,THE COAL AUTHORITY,06/05/2016,Minewater Discharge Consents,Environment - Contract Management,Natural Resources Wales,1026,342.00
DEPARTMENT OF ENERGY AND CLIMATE CHANGE,THE COAL AUTHORITY,06/05/2016,Minewater Discharge Consents,Environment - Contract Management,Natural Resources Wales,1026,684.00
DEPARTMENT OF ENERGY AND CLIMATE CHANGE,THE COAL AUTHORITY,06/05/2016,Minewater Discharge Consents,Environment - Contract Management,Natural Resources Wales,1027,1026.00
DEPARTMENT OF ENERGY AND CLIMATE CHANGE,THE COAL AUTHORITY,06/05/2016,Minewater Discharge Consents,Environment - Contract Management,Natural Resources Wales,1028,342.00
DEPARTMENT OF ENERGY AND CLIMATE CHANGE,THE COAL AUTHORITY,06/05/2016,Minewater Discharge Consents,Environment - Contract Management,Natural Resources Wales,1028,342.00
DEPARTMENT OF ENERGY AND CLIMATE CHANGE,THE COAL AUTHORITY,06/05/2016,Minewater Discharge Consents,Environment - Contract Management,Natural Resources Wales,1028,2052.00
DEPARTMENT OF ENERGY AND CLIMATE CHANGE,THE COAL AUTHORITY,06/05/2016,Minewater Discharge Consents,Environment - Contract Management,Natural Resources Wales,1028,1026.00
DEPARTMENT OF ENERGY AND CLIMATE CHANGE,THE COAL AUTHORITY,06/05/2016,Minewater Discharge Consents,Environment - Contract Management,Natural Resources Wales,1028,1026.00
DEPARTMENT OF ENERGY AND CLIMATE CHANGE,THE COAL AUTHORITY,06/05/2016,Minewater Discharge Consents,Environment - Contract Management,Natural Resources Wales,1028,1026.00
DEPARTMENT OF ENERGY AND CLIMATE CHANGE,THE COAL AUTHORITY,06/05/2016,Minewater Discharge Consents,Environment - Contract Management,Natural Resources Wales,1028,1026.00
DEPARTMENT OF ENERGY AND CLIMATE CHANGE,THE COAL AUTHORITY,06/05/2016,Minewater Discharge Consents,Environment - Contract Management,Natural Resources Wales,1028,684.00
DEPARTMENT OF ENERGY AND CLIMATE CHANGE,THE COAL AUTHORITY,06/05/2016,Minewater Discharge Consents,Environment - Contract Management,Natural Resources Wales,1028,1026.00
DEPARTMENT OF ENERGY AND CLIMATE CHANGE,THE COAL AUTHORITY,06/05/2016,Minewater Discharge Consents,Environment - Contract Management,Natural Resources Wales,1028,342.00
DEPARTMENT OF ENERGY AND CLIMATE CHANGE,THE COAL AUTHORITY,17/05/2016,Minewater Discharge Consents,Environment - Contract Management,Neath Port Talbot County B C,1195,100.00
DEPARTMENT OF ENERGY AND CLIMATE CHANGE,THE COAL AUTHORITY,18/05/2016,Minewater Discharge Consents,Environment - Contract Management,RMVE doc 1195 paid on GPC,1212,-100.00
DEPARTMENT OF ENERGY AND CLIMATE CHANGE,THE COAL AUTHORITY,30/04/2016,Minewater Landscaping Supervision,Environment - Contract Management,Jmc Engineering Uk Ltd,761,74.00
DEPARTMENT OF ENERGY AND CLIMATE CHANGE,THE COAL AUTHORITY,29/04/2016,Minewater Monitoring & Flow Measurement,Environment - Contract Management,Interlock Surveys,1033,3800.00
DEPARTMENT OF ENERGY AND CLIMATE CHANGE,THE COAL AUTHORITY,22/04/2016,Minewater Power Costs,Environment - Contract Management,British Gas Business,729,522.76
DEPARTMENT OF ENERGY AND CLIMATE CHANGE,THE COAL AUTHORITY,22/04/2016,Minewater Power Costs,Environment - Contract Management,British Gas Business,730,197.25
DEPARTMENT OF ENERGY AND CLIMATE CHANGE,THE COAL AUTHORITY,03/05/2016,Minewater Power Costs,Environment - Contract Management,Edf Energy,772,7499.93
DEPARTMENT OF ENERGY AND CLIMATE CHANGE,THE COAL AUTHORITY,03/05/2016,Minewater Power Costs,Environment - Contract Management,Edf Energy Customers Plc,774,428.48
DEPARTMENT OF ENERGY AND CLIMATE CHANGE,THE COAL AUTHORITY,03/05/2016,Minewater Power Costs,Environment - Contract Management,British Gas Business,871,987.46
DEPARTMENT OF ENERGY AND CLIMATE CHANGE,THE COAL AUTHORITY,03/05/2016,Minewater Power Costs,Environment - Contract Management,British Gas Business,872,531.53
DEPARTMENT OF ENERGY AND CLIMATE CHANGE,THE COAL AUTHORITY,03/05/2016,Minewater Power Costs,Environment - Contract Management,Western Power Distribution,932,360.00
DEPARTMENT OF ENERGY AND CLIMATE CHANGE,THE COAL AUTHORITY,06/05/2016,Minewater Power Costs,Environment - Contract Management,Edf Energy,960,-490.44
DEPARTMENT OF ENERGY AND CLIMATE CHANGE,THE COAL AUTHORITY,06/05/2016,Minewater Power Costs,Environment - Contract Management,Edf Energy,961,1031.45
DEPARTMENT OF ENERGY AND CLIMATE CHANGE,THE COAL AUTHORITY,06/05/2016,Minewater Power Costs,Environment - Contract Management,Edf Energy,961,3252.95
DEPARTMENT OF ENERGY AND CLIMATE CHANGE,THE COAL AUTHORITY,06/05/2016,Minewater Power Costs,Environment - Contract Management,Edf Energy,961,6474.41
DEPARTMENT OF ENERGY AND CLIMATE CHANGE,THE COAL AUTHORITY,06/05/2016,Minewater Power Costs,Environment - Contract Management,Edf Energy,961,8776.77
DEPARTMENT OF ENERGY AND CLIMATE CHANGE,THE COAL AUTHORITY,06/05/2016,Minewater Power Costs,Environment - Contract Management,Edf Energy,961,3781.26
DEPARTMENT OF ENERGY AND CLIMATE CHANGE,THE COAL AUTHORITY,06/05/2016,Minewater Power Costs,Environment - Contract Management,Edf Energy,961,9567.95
DEPARTMENT OF ENERGY AND CLIMATE CHANGE,THE COAL AUTHORITY,06/05/2016,Minewater Power Costs,Environment - Contract Management,Edf Energy,961,4232.22
DEPARTMENT OF ENERGY AND CLIMATE CHANGE,THE COAL AUTHORITY,06/05/2016,Minewater Power Costs,Environment - Contract Management,Edf Energy,961,16856.04
DEPARTMENT OF ENERGY AND CLIMATE CHANGE,THE COAL AUTHORITY,06/05/2016,Minewater Power Costs,Environment - Contract Management,Edf Energy,961,14239.32
DEPARTMENT OF ENERGY AND CLIMATE CHANGE,THE COAL AUTHORITY,06/05/2016,Minewater Power Costs,Environment - Contract Management,Edf Energy,961,13687.92
DEPARTMENT OF ENERGY AND CLIMATE CHANGE,THE COAL AUTHORITY,06/05/2016,Minewater Power Costs,Environment - Contract Management,Edf Energy,961,5924.36
DEPARTMENT OF ENERGY AND CLIMATE CHANGE,THE COAL AUTHORITY,06/05/2016,Minewater Power Costs,Environment - Contract Management,Edf Energy,961,2901.21
DEPARTMENT OF ENERGY AND CLIMATE CHANGE,THE COAL AUTHORITY,06/05/2016,Minewater Power Costs,Environment - Contract Management,Edf Energy,961,7298.56
DEPARTMENT OF ENERGY AND CLIMATE CHANGE,THE COAL AUTHORITY,06/05/2016,Minewater Power Costs,Environment - Contract Management,Edf Energy,961,8645.48
DEPARTMENT OF ENERGY AND CLIMATE CHANGE,THE COAL AUTHORITY,06/05/2016,Minewater Power Costs,Environment - Contract Management,Edf Energy,961,13913.09
DEPARTMENT OF ENERGY AND CLIMATE CHANGE,THE COAL AUTHORITY,06/05/2016,Minewater Power Costs,Environment - Contract Management,British Gas Business,1035,1694.60
DEPARTMENT OF ENERGY AND CLIMATE CHANGE,THE COAL AUTHORITY,11/05/2016,Minewater Power Costs,Environment - Contract Management,British Gas Business,1092,1185.08
DEPARTMENT OF ENERGY AND CLIMATE CHANGE,THE COAL AUTHORITY,11/05/2016,Minewater Power Costs,Environment - Contract Management,British Gas Business,1092,2017.66
DEPARTMENT OF ENERGY AND CLIMATE CHANGE,THE COAL AUTHORITY,11/05/2016,Minewater Power Costs,Environment - Contract Management,British Gas Business,1092,668.16
DEPARTMENT OF ENERGY AND CLIMATE CHANGE,THE COAL AUTHORITY,11/05/2016,Minewater Power Costs,Environment - Contract Management,British Gas Business,1092,585.25
DEPARTMENT OF ENERGY AND CLIMATE CHANGE,THE COAL AUTHORITY,11/05/2016,Minewater Power Costs,Environment - Contract Management,British Gas Business,1092,1798.44
DEPARTMENT OF ENERGY AND CLIMATE CHANGE,THE COAL AUTHORITY,11/05/2016,Minewater Power Costs,Environment - Contract Management,British Gas Business,1092,1085.12
DEPARTMENT OF ENERGY AND CLIMATE CHANGE,THE COAL AUTHORITY,11/05/2016,Minewater Power Costs,Environment - Contract Management,British Gas Business,1092,984.20
DEPARTMENT OF ENERGY AND CLIMATE CHANGE,THE COAL AUTHORITY,11/05/2016,Minewater Power Costs,Environment - Contract Management,British Gas Business,1092,1431.59
DEPARTMENT OF ENERGY AND CLIMATE CHANGE,THE COAL AUTHORITY,11/05/2016,Minewater Power Costs,Environment - Contract Management,British Gas Business,1092,135.91
DEPARTMENT OF ENERGY AND CLIMATE CHANGE,THE COAL AUTHORITY,11/05/2016,Minewater Power Costs,Environment - Contract Management,British Gas Business,1092,506.39
DEPARTMENT OF ENERGY AND CLIMATE CHANGE,THE COAL AUTHORITY,11/05/2016,Minewater Power Costs,Environment - Contract Management,British Gas Business,1092,450.45
DEPARTMENT OF ENERGY AND CLIMATE CHANGE,THE COAL AUTHORITY,11/05/2016,Minewater Power Costs,Environment - Contract Management,British Gas Business,1092,744.63
DEPARTMENT OF ENERGY AND CLIMATE CHANGE,THE COAL AUTHORITY,11/05/2016,Minewater Power Costs,Environment - Contract Management,British Gas Business,1092,510.92
DEPARTMENT OF ENERGY AND CLIMATE CHANGE,THE COAL AUTHORITY,11/05/2016,Minewater Power Costs,Environment - Contract Management,British Gas Business,1092,9.76
DEPARTMENT OF ENERGY AND CLIMATE CHANGE,THE COAL AUTHORITY,11/05/2016,Minewater Power Costs,Environment - Contract Management,British Gas Business,1092,6946.10
DEPARTMENT OF ENERGY AND CLIMATE CHANGE,THE COAL AUTHORITY,11/05/2016,Minewater Power Costs,Environment - Contract Management,British Gas Business,1092,1429.69
DEPARTMENT OF ENERGY AND CLIMATE CHANGE,THE COAL AUTHORITY,11/05/2016,Minewater Power Costs,Environment - Contract Management,British Gas Business,1092,810.05
DEPARTMENT OF ENERGY AND CLIMATE CHANGE,THE COAL AUTHORITY,11/05/2016,Minewater Power Costs,Environment - Contract Management,British Gas Business,1092,1632.41
DEPARTMENT OF ENERGY AND CLIMATE CHANGE,THE COAL AUTHORITY,11/05/2016,Minewater Power Costs,Environment - Contract Management,British Gas Business,1092,900.96
DEPARTMENT OF ENERGY AND CLIMATE CHANGE,THE COAL AUTHORITY,11/05/2016,Minewater Power Costs,Environment - Contract Management,British Gas Business,1092,2953.71
DEPARTMENT OF ENERGY AND CLIMATE CHANGE,THE COAL AUTHORITY,11/05/2016,Minewater Power Costs,Environment - Contract Management,British Gas Business,1092,3039.31
DEPARTMENT OF ENERGY AND CLIMATE CHANGE,THE COAL AUTHORITY,11/05/2016,Minewater Power Costs,Environment - Contract Management,British Gas Business,1092,3781.53
DEPARTMENT OF ENERGY AND CLIMATE CHANGE,THE COAL AUTHORITY,11/05/2016,Minewater Power Costs,Environment - Contract Management,British Gas Business,1092,414.03
DEPARTMENT OF ENERGY AND CLIMATE CHANGE,THE COAL AUTHORITY,11/05/2016,Minewater Power Costs,Environment - Contract Management,British Gas Business,1092,774.72
DEPARTMENT OF ENERGY AND CLIMATE CHANGE,THE COAL AUTHORITY,11/05/2016,Minewater Power Costs,Environment - Contract Management,British Gas Business,1093,753.95
DEPARTMENT OF ENERGY AND CLIMATE CHANGE,THE COAL AUTHORITY,12/05/2016,Minewater Power Costs,Environment - Contract Management,Npower Yorkshire Limited,1190,260.00
DEPARTMENT OF ENERGY AND CLIMATE CHANGE,THE COAL AUTHORITY,12/05/2016,Minewater Power Costs,Environment - Contract Management,Npower Yorkshire Limited,1190,260.00
DEPARTMENT OF ENERGY AND CLIMATE CHANGE,THE COAL AUTHORITY,12/05/2016,Minewater Power Costs,Environment - Contract Management,Npower Yorkshire Limited,1190,260.00
DEPARTMENT OF ENERGY AND CLIMATE CHANGE,THE COAL AUTHORITY,12/05/2016,Minewater Power Costs,Environment - Contract Management,Npower Yorkshire Limited,1190,260.00
DEPARTMENT OF ENERGY AND CLIMATE CHANGE,THE COAL AUTHORITY,12/05/2016,Minewater Power Costs,Environment - Contract Management,Npower Yorkshire Limited,1190,260.00
DEPARTMENT OF ENERGY AND CLIMATE CHANGE,THE COAL AUTHORITY,12/05/2016,Minewater Power Costs,Environment - Contract Management,Npower Yorkshire Limited,1190,260.00
DEPARTMENT OF ENERGY AND CLIMATE CHANGE,THE COAL AUTHORITY,12/05/2016,Minewater Power Costs,Environment - Contract Management,Npower Yorkshire Limited,1190,260.00
DEPARTMENT OF ENERGY AND CLIMATE CHANGE,THE COAL AUTHORITY,12/05/2016,Minewater Power Costs,Environment - Contract Management,Npower Yorkshire Limited,1190,260.00
DEPARTMENT OF ENERGY AND CLIMATE CHANGE,THE COAL AUTHORITY,12/05/2016,Minewater Power Costs,Environment - Contract Management,Npower Yorkshire Limited,1190,260.00
DEPARTMENT OF ENERGY AND CLIMATE CHANGE,THE COAL AUTHORITY,12/05/2016,Minewater Power Costs,Environment - Contract Management,Npower Yorkshire Limited,1190,260.00
DEPARTMENT OF ENERGY AND CLIMATE CHANGE,THE COAL AUTHORITY,12/05/2016,Minewater Power Costs,Environment - Contract Management,Npower Yorkshire Limited,1190,260.00
DEPARTMENT OF ENERGY AND CLIMATE CHANGE,THE COAL AUTHORITY,12/05/2016,Minewater Power Costs,Environment - Contract Management,Npower Yorkshire Limited,1190,260.00
DEPARTMENT OF ENERGY AND CLIMATE CHANGE,THE COAL AUTHORITY,12/05/2016,Minewater Power Costs,Environment - Contract Management,Npower Yorkshire Limited,1190,260.00
DEPARTMENT OF ENERGY AND CLIMATE CHANGE,THE COAL AUTHORITY,12/05/2016,Minewater Power Costs,Environment - Contract Management,Npower Yorkshire Limited,1190,260.00
DEPARTMENT OF ENERGY AND CLIMATE CHANGE,THE COAL AUTHORITY,17/05/2016,Minewater Power Costs,Environment - Contract Management,Edf Energy Customers Plc,1257,-1250.64
DEPARTMENT OF ENERGY AND CLIMATE CHANGE,THE COAL AUTHORITY,17/05/2016,Minewater Power Costs,Environment - Contract Management,Edf Energy Customers Plc,1258,4765.12
DEPARTMENT OF ENERGY AND CLIMATE CHANGE,THE COAL AUTHORITY,17/05/2016,Minewater Power Costs,Environment - Contract Management,Edf Energy Customers Plc,1259,4938.76
DEPARTMENT OF ENERGY AND CLIMATE CHANGE,THE COAL AUTHORITY,17/05/2016,Minewater Power Costs,Environment - Contract Management,Edf Energy Customers Plc,1260,5225.32
DEPARTMENT OF ENERGY AND CLIMATE CHANGE,THE COAL AUTHORITY,17/05/2016,Minewater Power Costs,Environment - Contract Management,Edf Energy Customers Plc,1261,4918.83
DEPARTMENT OF ENERGY AND CLIMATE CHANGE,THE COAL AUTHORITY,17/05/2016,Minewater Power Costs,Environment - Contract Management,Edf Energy Customers Plc,1262,4830.77
DEPARTMENT OF ENERGY AND CLIMATE CHANGE,THE COAL AUTHORITY,17/05/2016,Minewater Power Costs,Environment - Contract Management,Edf Energy Customers Plc,1263,4779.62
DEPARTMENT OF ENERGY AND CLIMATE CHANGE,THE COAL AUTHORITY,17/05/2016,Minewater Power Costs,Environment - Contract Management,Edf Energy Customers Plc,1264,4662.06
DEPARTMENT OF ENERGY AND CLIMATE CHANGE,THE COAL AUTHORITY,17/05/2016,Minewater Power Costs,Environment - Contract Management,Edf Energy Customers Plc,1265,6063.80
DEPARTMENT OF ENERGY AND CLIMATE CHANGE,THE COAL AUTHORITY,17/05/2016,Minewater Power Costs,Environment - Contract Management,Edf Energy Customers Plc,1266,6968.41
DEPARTMENT OF ENERGY AND CLIMATE CHANGE,THE COAL AUTHORITY,17/05/2016,Minewater Power Costs,Environment - Contract Management,Edf Energy Customers Plc,1267,6960.86
DEPARTMENT OF ENERGY AND CLIMATE CHANGE,THE COAL AUTHORITY,10/05/2016,Minewater Power Costs,Environment - Contract Management,National Coal Mining Museum,1366,13485.47
DEPARTMENT OF ENERGY AND CLIMATE CHANGE,THE COAL AUTHORITY,20/05/2016,Minewater Power Costs,Environment - Contract Management,Edf Energy Customers Plc,1384,3275.03
DEPARTMENT OF ENERGY AND CLIMATE CHANGE,THE COAL AUTHORITY,20/05/2016,Minewater Power Costs,Environment - Contract Management,Edf Energy Customers Plc,1385,7182.71
DEPARTMENT OF ENERGY AND CLIMATE CHANGE,THE COAL AUTHORITY,20/04/2016,Minewater Rent,Environment - Contract Management,Savills (Uk) Ltd Client Recpt,747,410.00
DEPARTMENT OF ENERGY AND CLIMATE CHANGE,THE COAL AUTHORITY,01/05/2016,Minewater Rent,Environment - Contract Management,Milton Peterborough Estates,748,300.00
DEPARTMENT OF ENERGY AND CLIMATE CHANGE,THE COAL AUTHORITY,01/05/2016,Minewater Rent,Environment - Contract Management,Milton Peterborough Estates,749,300.00
DEPARTMENT OF ENERGY AND CLIMATE CHANGE,THE COAL AUTHORITY,01/05/2016,Minewater Rent,Environment - Contract Management,Olive Countess Fitzwilliams Wi,750,300.00
DEPARTMENT OF ENERGY AND CLIMATE CHANGE,THE COAL AUTHORITY,01/05/2016,Minewater Rent,Environment - Contract Management,Wentworth Joint Estates,751,300.00
DEPARTMENT OF ENERGY AND CLIMATE CHANGE,THE COAL AUTHORITY,01/05/2016,Minewater Rent,Environment - Contract Management,Sitwell Estate,754,750.00
DEPARTMENT OF ENERGY AND CLIMATE CHANGE,THE COAL AUTHORITY,03/05/2016,Minewater Rent,Environment - Contract Management,Crown Estate,755,813.00
DEPARTMENT OF ENERGY AND CLIMATE CHANGE,THE COAL AUTHORITY,29/04/2016,Minewater Rent,Environment - Contract Management,The National Trust,864,125.00
DEPARTMENT OF ENERGY AND CLIMATE CHANGE,THE COAL AUTHORITY,26/05/2016,Minewater Rent,Environment - Contract Management,Douglas & Angus Estates,1018,2393.00
DEPARTMENT OF ENERGY AND CLIMATE CHANGE,THE COAL AUTHORITY,12/05/2016,Minewater Rent,Environment - Contract Management,Messrs Williams,1040,5.00
DEPARTMENT OF ENERGY AND CLIMATE CHANGE,THE COAL AUTHORITY,12/05/2016,Minewater Rent,Environment - Contract Management,Mr Elliott,1041,200.00
DEPARTMENT OF ENERGY AND CLIMATE CHANGE,THE COAL AUTHORITY,12/05/2016,Minewater Rent,Environment - Contract Management,Mr A McHale,1042,50.00
DEPARTMENT OF ENERGY AND CLIMATE CHANGE,THE COAL AUTHORITY,12/05/2016,Minewater Rent,Environment - Contract Management,Mr M Cook,1043,480.00
DEPARTMENT OF ENERGY AND CLIMATE CHANGE,THE COAL AUTHORITY,12/05/2016,Minewater Rent,Environment - Contract Management,Mr & Mrs A J Marr,1044,3822.47
DEPARTMENT OF ENERGY AND CLIMATE CHANGE,THE COAL AUTHORITY,12/05/2016,Minewater Rent,Environment - Contract Management,Adrian Mclaughlin,1045,100.00
DEPARTMENT OF ENERGY AND CLIMATE CHANGE,THE COAL AUTHORITY,17/05/2016,Minewater Rent,Environment - Contract Management,Freeholders Of Newbiggin-By-Th,1159,400.00
DEPARTMENT OF ENERGY AND CLIMATE CHANGE,THE COAL AUTHORITY,12/05/2016,Minewater Rent,Environment - Contract Management,Lambton Estates No 2 Acct,1181,50.00
DEPARTMENT OF ENERGY AND CLIMATE CHANGE,THE COAL AUTHORITY,23/05/2016,Minewater Rent,Environment - Contract Management,Mr Holmes,1333,800.00
DEPARTMENT OF ENERGY AND CLIMATE CHANGE,THE COAL AUTHORITY,26/05/2016,Minewater Rent,Environment - Contract Management,Mr & Mrs A J Marr,1462,774.19
DEPARTMENT OF ENERGY AND CLIMATE CHANGE,THE COAL AUTHORITY,20/05/2016,Minewater Rent,Environment - Contract Management,Savills Uk Ltd Client Recpt,1470,428.73
DEPARTMENT OF ENERGY AND CLIMATE CHANGE,THE COAL AUTHORITY,25/04/2016,Minewater Sludge Disposal,Environment - Contract Management,Balfour Beatty Civil Eng Ltd,1046,3987.54
DEPARTMENT OF ENERGY AND CLIMATE CHANGE,THE COAL AUTHORITY,13/05/2016,Minewater Sludge Disposal,Environment - Contract Management,Nal Plant Limited,1098,76300.42
DEPARTMENT OF ENERGY AND CLIMATE CHANGE,THE COAL AUTHORITY,02/05/2016,Minewater Telecoms & Telemetry,Environment - Contract Management,O2 (Uk) Limited,859,12.50
DEPARTMENT OF ENERGY AND CLIMATE CHANGE,THE COAL AUTHORITY,02/05/2016,Minewater Telecoms & Telemetry,Environment - Contract Management,O2 (Uk) Limited,860,12.50
DEPARTMENT OF ENERGY AND CLIMATE CHANGE,THE COAL AUTHORITY,02/05/2016,Minewater Telecoms & Telemetry,Environment - Contract Management,O2 (Uk) Limited,861,12.50
DEPARTMENT OF ENERGY AND CLIMATE CHANGE,THE COAL AUTHORITY,12/05/2016,Minewater Telecoms & Telemetry,Environment - Contract Management,British Telecommunications Plc,1186,62.16
DEPARTMENT OF ENERGY AND CLIMATE CHANGE,THE COAL AUTHORITY,17/05/2016,Minewater Telecoms & Telemetry,Environment - Contract Management,Wyless Plc,1359,50.00
DEPARTMENT OF ENERGY AND CLIMATE CHANGE,THE COAL AUTHORITY,16/05/2016,Minewater Telecoms & Telemetry,Environment - Contract Management,Vodafone Limited (Corporate),1365,404.70
DEPARTMENT OF ENERGY AND CLIMATE CHANGE,THE COAL AUTHORITY,26/04/2016,Minewater Water Charges,Environment - Contract Management,Business Stream,934,75.00
DEPARTMENT OF ENERGY AND CLIMATE CHANGE,THE COAL AUTHORITY,12/05/2016,Minewater Water Charges,Environment - Contract Management,Northumbrian Water Limited,1362,2328.07
DEPARTMENT OF ENERGY AND CLIMATE CHANGE,THE COAL AUTHORITY,03/05/2016,Subsidence Pumping Maintenance - Other,Environment - Contract Management,Jeremy Benn Associates Ltd,863,357.66
DEPARTMENT OF ENERGY AND CLIMATE CHANGE,THE COAL AUTHORITY,22/04/2016,Subsidence Pumping Maintenance - Other,Environment - Contract Management,Aggreko UK Ltd,936,2005.60
DEPARTMENT OF ENERGY AND CLIMATE CHANGE,THE COAL AUTHORITY,27/04/2016,Subsidence Pumping Maintenance - Other,Environment - Contract Management,Isle Axholme & Nth Notts Water,937,408.90
DEPARTMENT OF ENERGY AND CLIMATE CHANGE,THE COAL AUTHORITY,03/05/2016,Subsidence Pumping Maintenance - Other,Environment - Contract Management,Selby Area Internal Drain Brd,1121,1626.28
DEPARTMENT OF ENERGY AND CLIMATE CHANGE,THE COAL AUTHORITY,03/05/2016,Subsidence Pumping Maintenance - Other,Environment - Contract Management,Selby Area Internal Drain Brd,1122,6.23
DEPARTMENT OF ENERGY AND CLIMATE CHANGE,THE COAL AUTHORITY,03/05/2016,Subsidence Pumping Maintenance - Other,Environment - Contract Management,Selby Area Internal Drain Brd,1123,1295.74
DEPARTMENT OF ENERGY AND CLIMATE CHANGE,THE COAL AUTHORITY,03/05/2016,Subsidence Pumping Maintenance - Other,Environment - Contract Management,Selby Area Internal Drain Brd,1124,20537.42
DEPARTMENT OF ENERGY AND CLIMATE CHANGE,THE COAL AUTHORITY,03/05/2016,Subsidence Pumping Maintenance - Other,Environment - Contract Management,Selby Area Internal Drain Brd,1148,9667.27
DEPARTMENT OF ENERGY AND CLIMATE CHANGE,THE COAL AUTHORITY,31/03/2016,Subsidence Pumping Maintenance - Other,Environment - Contract Management,Danvm Drainage Commissioners,1318,648.00
DEPARTMENT OF ENERGY AND CLIMATE CHANGE,THE COAL AUTHORITY,31/03/2016,Subsidence Pumping Maintenance - Other,Environment - Contract Management,Danvm Drainage Commissioners,1318,336.00
DEPARTMENT OF ENERGY AND CLIMATE CHANGE,THE COAL AUTHORITY,31/03/2016,Subsidence Pumping Maintenance - Other,Environment - Contract Management,Danvm Drainage Commissioners,1318,328.00
DEPARTMENT OF ENERGY AND CLIMATE CHANGE,THE COAL AUTHORITY,31/03/2016,Subsidence Pumping Maintenance - Other,Environment - Contract Management,Danvm Drainage Commissioners,1318,240.00
DEPARTMENT OF ENERGY AND CLIMATE CHANGE,THE COAL AUTHORITY,31/03/2016,Subsidence Pumping Maintenance - Other,Environment - Contract Management,Danvm Drainage Commissioners,1319,17.00
DEPARTMENT OF ENERGY AND CLIMATE CHANGE,THE COAL AUTHORITY,31/03/2016,Subsidence Pumping Maintenance - Other,Environment - Contract Management,Danvm Drainage Commissioners,1319,17.24
DEPARTMENT OF ENERGY AND CLIMATE CHANGE,THE COAL AUTHORITY,31/03/2016,Subsidence Pumping Maintenance - Other,Environment - Contract Management,Danvm Drainage Commissioners,1322,350.29
DEPARTMENT OF ENERGY AND CLIMATE CHANGE,THE COAL AUTHORITY,31/03/2016,Subsidence Pumping Maintenance - Other,Environment - Contract Management,Danvm Drainage Commissioners,1323,541.80
DEPARTMENT OF ENERGY AND CLIMATE CHANGE,THE COAL AUTHORITY,31/03/2016,Subsidence Pumping Maintenance - Other,Environment - Contract Management,Danvm Drainage Commissioners,1324,462.00
DEPARTMENT OF ENERGY AND CLIMATE CHANGE,THE COAL AUTHORITY,31/03/2016,Subsidence Pumping Maintenance - Other,Environment - Contract Management,Danvm Drainage Commissioners,1325,442.00
DEPARTMENT OF ENERGY AND CLIMATE CHANGE,THE COAL AUTHORITY,31/03/2016,Subsidence Pumping Maintenance - Other,Environment - Contract Management,Danvm Drainage Commissioners,1325,442.00
DEPARTMENT OF ENERGY AND CLIMATE CHANGE,THE COAL AUTHORITY,31/03/2016,Subsidence Pumping Maintenance - Other,Environment - Contract Management,Danvm Drainage Commissioners,1325,442.00
DEPARTMENT OF ENERGY AND CLIMATE CHANGE,THE COAL AUTHORITY,31/03/2016,Subsidence Pumping Maintenance - Other,Environment - Contract Management,Danvm Drainage Commissioners,1325,780.00
DEPARTMENT OF ENERGY AND CLIMATE CHANGE,THE COAL AUTHORITY,31/03/2016,Subsidence Pumping Maintenance - Other,Environment - Contract Management,Danvm Drainage Commissioners,1325,442.00
DEPARTMENT OF ENERGY AND CLIMATE CHANGE,THE COAL AUTHORITY,31/03/2016,Subsidence Pumping Maintenance - Other,Environment - Contract Management,Danvm Drainage Commissioners,1325,442.00
DEPARTMENT OF ENERGY AND CLIMATE CHANGE,THE COAL AUTHORITY,31/03/2016,Subsidence Pumping Maintenance - Other,Environment - Contract Management,Danvm Drainage Commissioners,1325,1716.00
DEPARTMENT OF ENERGY AND CLIMATE CHANGE,THE COAL AUTHORITY,31/03/2016,Subsidence Pumping Maintenance - Other,Environment - Contract Management,Danvm Drainage Commissioners,1325,442.00
DEPARTMENT OF ENERGY AND CLIMATE CHANGE,THE COAL AUTHORITY,31/03/2016,Subsidence Pumping Maintenance - Other,Environment - Contract Management,Danvm Drainage Commissioners,1325,442.00
DEPARTMENT OF ENERGY AND CLIMATE CHANGE,THE COAL AUTHORITY,31/03/2016,Subsidence Pumping Maintenance - Other,Environment - Contract Management,Danvm Drainage Commissioners,1326,300.00
DEPARTMENT OF ENERGY AND CLIMATE CHANGE,THE COAL AUTHORITY,31/03/2016,Subsidence Pumping Maintenance - Other,Environment - Contract Management,Danvm Drainage Commissioners,1327,180.00
DEPARTMENT OF ENERGY AND CLIMATE CHANGE,THE COAL AUTHORITY,31/03/2016,Subsidence Pumping Maintenance - Other,Environment - Contract Management,Danvm Drainage Commissioners,1328,12.76
DEPARTMENT OF ENERGY AND CLIMATE CHANGE,THE COAL AUTHORITY,31/03/2016,Subsidence Pumping Maintenance - Other,Environment - Contract Management,Danvm Drainage Commissioners,1328,15.04
DEPARTMENT OF ENERGY AND CLIMATE CHANGE,THE COAL AUTHORITY,31/03/2016,Subsidence Pumping Maintenance - Other,Environment - Contract Management,Danvm Drainage Commissioners,1328,3296.00
DEPARTMENT OF ENERGY AND CLIMATE CHANGE,THE COAL AUTHORITY,31/03/2016,Subsidence Pumping Maintenance - Other,Environment - Contract Management,Danvm Drainage Commissioners,1328,16.70
DEPARTMENT OF ENERGY AND CLIMATE CHANGE,THE COAL AUTHORITY,31/03/2016,Subsidence Pumping Maintenance - Other,Environment - Contract Management,Danvm Drainage Commissioners,1328,12.80
DEPARTMENT OF ENERGY AND CLIMATE CHANGE,THE COAL AUTHORITY,31/03/2016,Subsidence Pumping Maintenance - Other,Environment - Contract Management,Danvm Drainage Commissioners,1328,17.00
DEPARTMENT OF ENERGY AND CLIMATE CHANGE,THE COAL AUTHORITY,31/03/2016,Subsidence Pumping Maintenance - Other,Environment - Contract Management,Danvm Drainage Commissioners,1328,30.92
DEPARTMENT OF ENERGY AND CLIMATE CHANGE,THE COAL AUTHORITY,31/03/2016,Subsidence Pumping Maintenance - Other,Environment - Contract Management,Danvm Drainage Commissioners,1328,17.00
DEPARTMENT OF ENERGY AND CLIMATE CHANGE,THE COAL AUTHORITY,31/03/2016,Subsidence Pumping Maintenance - Other,Environment - Contract Management,Danvm Drainage Commissioners,1328,16.25
DEPARTMENT OF ENERGY AND CLIMATE CHANGE,THE COAL AUTHORITY,31/03/2016,Subsidence Pumping Maintenance - Other,Environment - Contract Management,Danvm Drainage Commissioners,1328,16.40
DEPARTMENT OF ENERGY AND CLIMATE CHANGE,THE COAL AUTHORITY,31/03/2016,Subsidence Pumping Maintenance - Other,Environment - Contract Management,Danvm Drainage Commissioners,1328,12.76
DEPARTMENT OF ENERGY AND CLIMATE CHANGE,THE COAL AUTHORITY,31/03/2016,Subsidence Pumping Maintenance - Other,Environment - Contract Management,Danvm Drainage Commissioners,1328,30.83
DEPARTMENT OF ENERGY AND CLIMATE CHANGE,THE COAL AUTHORITY,31/03/2016,Subsidence Pumping Maintenance - Other,Environment - Contract Management,Danvm Drainage Commissioners,1328,12.76
DEPARTMENT OF ENERGY AND CLIMATE CHANGE,THE COAL AUTHORITY,31/03/2016,Subsidence Pumping Maintenance - Other,Environment - Contract Management,Danvm Drainage Commissioners,1328,2217.00
DEPARTMENT OF ENERGY AND CLIMATE CHANGE,THE COAL AUTHORITY,31/03/2016,Subsidence Pumping Maintenance - Other,Environment - Contract Management,Danvm Drainage Commissioners,1328,595.75
DEPARTMENT OF ENERGY AND CLIMATE CHANGE,THE COAL AUTHORITY,31/03/2016,Subsidence Pumping Maintenance - Other,Environment - Contract Management,Danvm Drainage Commissioners,1328,16.40
DEPARTMENT OF ENERGY AND CLIMATE CHANGE,THE COAL AUTHORITY,31/03/2016,Subsidence Pumping Maintenance - Other,Environment - Contract Management,Danvm Drainage Commissioners,1328,16.40
DEPARTMENT OF ENERGY AND CLIMATE CHANGE,THE COAL AUTHORITY,31/03/2016,Subsidence Pumping Maintenance - Other,Environment - Contract Management,Danvm Drainage Commissioners,1328,17.00
DEPARTMENT OF ENERGY AND CLIMATE CHANGE,THE COAL AUTHORITY,31/03/2016,Subsidence Pumping Maintenance - Other,Environment - Contract Management,Danvm Drainage Commissioners,1328,5.66
DEPARTMENT OF ENERGY AND CLIMATE CHANGE,THE COAL AUTHORITY,31/03/2016,Subsidence Pumping Maintenance - Other,Environment - Contract Management,Danvm Drainage Commissioners,1328,16.40
DEPARTMENT OF ENERGY AND CLIMATE CHANGE,THE COAL AUTHORITY,31/03/2016,Subsidence Pumping Maintenance - Other,Environment - Contract Management,Danvm Drainage Commissioners,1328,16.40
DEPARTMENT OF ENERGY AND CLIMATE CHANGE,THE COAL AUTHORITY,31/03/2016,Subsidence Pumping Maintenance - Other,Environment - Contract Management,Danvm Drainage Commissioners,1329,-4.27
DEPARTMENT OF ENERGY AND CLIMATE CHANGE,THE COAL AUTHORITY,31/03/2016,Subsidence Pumping Maintenance - Other,Environment - Contract Management,Danvm Drainage Commissioners,1329,-5.45
DEPARTMENT OF ENERGY AND CLIMATE CHANGE,THE COAL AUTHORITY,31/03/2016,Subsidence Pumping Maintenance - Other,Environment - Contract Management,Danvm Drainage Commissioners,1329,-1.09
DEPARTMENT OF ENERGY AND CLIMATE CHANGE,THE COAL AUTHORITY,31/03/2016,Subsidence Pumping Maintenance - Other,Environment - Contract Management,Danvm Drainage Commissioners,1329,-5.73
DEPARTMENT OF ENERGY AND CLIMATE CHANGE,THE COAL AUTHORITY,31/03/2016,Subsidence Pumping Maintenance - Other,Environment - Contract Management,Danvm Drainage Commissioners,1329,-0.88
DEPARTMENT OF ENERGY AND CLIMATE CHANGE,THE COAL AUTHORITY,27/04/2016,Subsidence Pumping Maintenance - Power,Environment - Contract Management,Isle Axholme & Nth Notts Water,937,510.06
DEPARTMENT OF ENERGY AND CLIMATE CHANGE,THE COAL AUTHORITY,06/05/2016,Subsidence Pumping Maintenance - Power,Environment - Contract Management,Edf Energy,961,394.71
DEPARTMENT OF ENERGY AND CLIMATE CHANGE,THE COAL AUTHORITY,06/05/2016,Subsidence Pumping Maintenance - Power,Environment - Contract Management,Edf Energy,961,946.21
DEPARTMENT OF ENERGY AND CLIMATE CHANGE,THE COAL AUTHORITY,06/05/2016,Subsidence Pumping Maintenance - Power,Environment - Contract Management,Edf Energy,961,428.63
DEPARTMENT OF ENERGY AND CLIMATE CHANGE,THE COAL AUTHORITY,11/05/2016,Subsidence Pumping Maintenance - Power,Environment - Contract Management,British Gas Business,1092,261.95
DEPARTMENT OF ENERGY AND CLIMATE CHANGE,THE COAL AUTHORITY,11/05/2016,Subsidence Pumping Maintenance - Power,Environment - Contract Management,British Gas Business,1092,8.19
DEPARTMENT OF ENERGY AND CLIMATE CHANGE,THE COAL AUTHORITY,11/05/2016,Subsidence Pumping Maintenance - Power,Environment - Contract Management,British Gas Business,1092,45.73
DEPARTMENT OF ENERGY AND CLIMATE CHANGE,THE COAL AUTHORITY,11/05/2016,Subsidence Pumping Maintenance - Power,Environment - Contract Management,British Gas Business,1092,589.26
DEPARTMENT OF ENERGY AND CLIMATE CHANGE,THE COAL AUTHORITY,11/05/2016,Subsidence Pumping Maintenance - Power,Environment - Contract Management,British Gas Business,1092,316.41
DEPARTMENT OF ENERGY AND CLIMATE CHANGE,THE COAL AUTHORITY,11/05/2016,Subsidence Pumping Maintenance - Power,Environment - Contract Management,British Gas Business,1092,146.94
DEPARTMENT OF ENERGY AND CLIMATE CHANGE,THE COAL AUTHORITY,11/05/2016,Subsidence Pumping Maintenance - Power,Environment - Contract Management,British Gas Business,1092,23558.70
DEPARTMENT OF ENERGY AND CLIMATE CHANGE,THE COAL AUTHORITY,11/05/2016,Subsidence Pumping Maintenance - Power,Environment - Contract Management,British Gas Business,1092,189.14
DEPARTMENT OF ENERGY AND CLIMATE CHANGE,THE COAL AUTHORITY,11/05/2016,Subsidence Pumping Maintenance - Power,Environment - Contract Management,British Gas Business,1092,214.85
DEPARTMENT OF ENERGY AND CLIMATE CHANGE,THE COAL AUTHORITY,11/05/2016,Subsidence Pumping Maintenance - Power,Environment - Contract Management,British Gas Business,1092,397.60
DEPARTMENT OF ENERGY AND CLIMATE CHANGE,THE COAL AUTHORITY,11/05/2016,Subsidence Pumping Maintenance - Power,Environment - Contract Management,British Gas Business,1092,71.76
DEPARTMENT OF ENERGY AND CLIMATE CHANGE,THE COAL AUTHORITY,11/05/2016,Subsidence Pumping Maintenance - Power,Environment - Contract Management,British Gas Business,1092,38.60
DEPARTMENT OF ENERGY AND CLIMATE CHANGE,THE COAL AUTHORITY,11/05/2016,Subsidence Pumping Maintenance - Power,Environment - Contract Management,British Gas Business,1092,461.03
DEPARTMENT OF ENERGY AND CLIMATE CHANGE,THE COAL AUTHORITY,11/05/2016,Subsidence Pumping Maintenance - Power,Environment - Contract Management,British Gas Business,1092,977.94
DEPARTMENT OF ENERGY AND CLIMATE CHANGE,THE COAL AUTHORITY,11/05/2016,Subsidence Pumping Maintenance - Power,Environment - Contract Management,British Gas Business,1092,366.51
DEPARTMENT OF ENERGY AND CLIMATE CHANGE,THE COAL AUTHORITY,11/05/2016,Subsidence Pumping Maintenance - Power,Environment - Contract Management,British Gas Business,1093,27.59
DEPARTMENT OF ENERGY AND CLIMATE CHANGE,THE COAL AUTHORITY,11/05/2016,Subsidence Pumping Maintenance - Power,Environment - Contract Management,British Gas Business,1093,93.50
DEPARTMENT OF ENERGY AND CLIMATE CHANGE,THE COAL AUTHORITY,11/05/2016,Subsidence Pumping Maintenance - Power,Environment - Contract Management,British Gas Business,1093,11.62
DEPARTMENT OF ENERGY AND CLIMATE CHANGE,THE COAL AUTHORITY,11/05/2016,Subsidence Pumping Maintenance - Power,Environment - Contract Management,British Gas Business,1093,50.10
DEPARTMENT OF ENERGY AND CLIMATE CHANGE,THE COAL AUTHORITY,11/05/2016,Subsidence Pumping Maintenance - Power,Environment - Contract Management,British Gas Business,1093,173.88
DEPARTMENT OF ENERGY AND CLIMATE CHANGE,THE COAL AUTHORITY,11/05/2016,Subsidence Pumping Maintenance - Power,Environment - Contract Management,British Gas Business,1093,48.20
DEPARTMENT OF ENERGY AND CLIMATE CHANGE,THE COAL AUTHORITY,11/05/2016,Subsidence Pumping Maintenance - Power,Environment - Contract Management,British Gas Business,1093,30.18
DEPARTMENT OF ENERGY AND CLIMATE CHANGE,THE COAL AUTHORITY,03/05/2016,Subsidence Pumping Maintenance - Power,Environment - Contract Management,Selby Area Internal Drain Brd,1121,9488.60
DEPARTMENT OF ENERGY AND CLIMATE CHANGE,THE COAL AUTHORITY,03/05/2016,Subsidence Pumping Maintenance - Power,Environment - Contract Management,Selby Area Internal Drain Brd,1122,49.30
DEPARTMENT OF ENERGY AND CLIMATE CHANGE,THE COAL AUTHORITY,03/05/2016,Subsidence Pumping Maintenance - Power,Environment - Contract Management,Selby Area Internal Drain Brd,1124,13920.32
DEPARTMENT OF ENERGY AND CLIMATE CHANGE,THE COAL AUTHORITY,03/05/2016,Subsidence Pumping Maintenance - Power,Environment - Contract Management,Selby Area Internal Drain Brd,1148,2295.91
DEPARTMENT OF ENERGY AND CLIMATE CHANGE,THE COAL AUTHORITY,08/05/2016,Subsidence Pumping Maintenance - Power,Environment - Contract Management,Methley Estates (Holdings) Ltd,1182,448.51
DEPARTMENT OF ENERGY AND CLIMATE CHANGE,THE COAL AUTHORITY,12/05/2016,Subsidence Pumping Maintenance - Power,Environment - Contract Management,Npower Yorkshire Limited,1190,260.00
DEPARTMENT OF ENERGY AND CLIMATE CHANGE,THE COAL AUTHORITY,12/05/2016,Subsidence Pumping Maintenance - Power,Environment - Contract Management,Npower Yorkshire Limited,1190,260.00
DEPARTMENT OF ENERGY AND CLIMATE CHANGE,THE COAL AUTHORITY,12/05/2016,Subsidence Pumping Maintenance - Power,Environment - Contract Management,Npower Yorkshire Limited,1190,260.00
DEPARTMENT OF ENERGY AND CLIMATE CHANGE,THE COAL AUTHORITY,31/03/2016,Subsidence Pumping Maintenance - Power,Environment - Contract Management,Danvm Drainage Commissioners,1320,378.15
DEPARTMENT OF ENERGY AND CLIMATE CHANGE,THE COAL AUTHORITY,31/03/2016,Subsidence Pumping Maintenance - Power,Environment - Contract Management,Danvm Drainage Commissioners,1320,137.81
DEPARTMENT OF ENERGY AND CLIMATE CHANGE,THE COAL AUTHORITY,31/03/2016,Subsidence Pumping Maintenance - Power,Environment - Contract Management,Danvm Drainage Commissioners,1320,1627.57
DEPARTMENT OF ENERGY AND CLIMATE CHANGE,THE COAL AUTHORITY,31/03/2016,Subsidence Pumping Maintenance - Power,Environment - Contract Management,Danvm Drainage Commissioners,1320,189.90
DEPARTMENT OF ENERGY AND CLIMATE CHANGE,THE COAL AUTHORITY,31/03/2016,Subsidence Pumping Maintenance - Power,Environment - Contract Management,Danvm Drainage Commissioners,1320,100.01
DEPARTMENT OF ENERGY AND CLIMATE CHANGE,THE COAL AUTHORITY,31/03/2016,Subsidence Pumping Maintenance - Power,Environment - Contract Management,Danvm Drainage Commissioners,1320,78.71
DEPARTMENT OF ENERGY AND CLIMATE CHANGE,THE COAL AUTHORITY,31/03/2016,Subsidence Pumping Maintenance - Power,Environment - Contract Management,Danvm Drainage Commissioners,1320,347.63
DEPARTMENT OF ENERGY AND CLIMATE CHANGE,THE COAL AUTHORITY,31/03/2016,Subsidence Pumping Maintenance - Power,Environment - Contract Management,Danvm Drainage Commissioners,1320,70.41
DEPARTMENT OF ENERGY AND CLIMATE CHANGE,THE COAL AUTHORITY,31/03/2016,Subsidence Pumping Maintenance - Power,Environment - Contract Management,Danvm Drainage Commissioners,1320,705.65
DEPARTMENT OF ENERGY AND CLIMATE CHANGE,THE COAL AUTHORITY,31/03/2016,Subsidence Pumping Maintenance - Power,Environment - Contract Management,Danvm Drainage Commissioners,1320,322.59
DEPARTMENT OF ENERGY AND CLIMATE CHANGE,THE COAL AUTHORITY,31/03/2016,Subsidence Pumping Maintenance - Power,Environment - Contract Management,Danvm Drainage Commissioners,1321,487.12
DEPARTMENT OF ENERGY AND CLIMATE CHANGE,THE COAL AUTHORITY,27/04/2016,Temporary Contractors,Environment - Contract Management,Huxley Associates,661,2240.00
DEPARTMENT OF ENERGY AND CLIMATE CHANGE,THE COAL AUTHORITY,04/05/2016,Temporary Contractors,Environment - Contract Management,Huxley Associates,769,2240.00
DEPARTMENT OF ENERGY AND CLIMATE CHANGE,THE COAL AUTHORITY,12/05/2016,Temporary Contractors,Environment - Contract Management,Huxley Associates,1105,2072.00
DEPARTMENT OF ENERGY AND CLIMATE CHANGE,THE COAL AUTHORITY,16/05/2016,Temporary Contractors,Environment - Contract Management,Huxley Associates,1164,2240.00
DEPARTMENT OF ENERGY AND CLIMATE CHANGE,THE COAL AUTHORITY,23/05/2016,Temporary Contractors,Environment - Contract Management,Huxley Associates,1392,2240.00
DEPARTMENT OF ENERGY AND CLIMATE CHANGE,THE COAL AUTHORITY,25/04/2016,CY - Non-coal Minewater - Additions,Environment - DEFRA - EA Programme,Veolia Water Ind Outsourcing L,845,61205.59
DEPARTMENT OF ENERGY AND CLIMATE CHANGE,THE COAL AUTHORITY,01/05/2016,CY - Non-coal Minewater - Additions,Environment - DEFRA - EA Programme,J N Bentley Limited,1168,3802.48
DEPARTMENT OF ENERGY AND CLIMATE CHANGE,THE COAL AUTHORITY,30/04/2016,Fares - Rail,Environment - DEFRA - EA Programme,Redfern Travel Ltd,886,294.45
DEPARTMENT OF ENERGY AND CLIMATE CHANGE,THE COAL AUTHORITY,30/04/2016,Hotel & Accommodation,Environment - DEFRA - EA Programme,Redfern Travel Ltd,888,404.36
DEPARTMENT OF ENERGY AND CLIMATE CHANGE,THE COAL AUTHORITY,01/06/2016,Minewater Chemicals - Operational Sites,Environment - DEFRA - EA Programme,845 Veolia Water Ind Outsourcing L,1564,41520.53
DEPARTMENT OF ENERGY AND CLIMATE CHANGE,THE COAL AUTHORITY,25/04/2016,Minewater Contractor Maint. Visits - Ops Site,Environment - DEFRA - EA Programme,Veolia Water Ind Outsourcing L,845,33096.74
DEPARTMENT OF ENERGY AND CLIMATE CHANGE,THE COAL AUTHORITY,25/05/2016,Minewater Cost Benefit Analysis,Environment - DEFRA - EA Programme,Enviro Centre,1539,6525.00
DEPARTMENT OF ENERGY AND CLIMATE CHANGE,THE COAL AUTHORITY,25/05/2016,Minewater Cost Benefit Analysis,Environment - DEFRA - EA Programme,Enviro Centre,1539,6525.00
DEPARTMENT OF ENERGY AND CLIMATE CHANGE,THE COAL AUTHORITY,05/05/2016,Minewater Feasibility / Scoping,Environment - DEFRA - EA Programme,Atkins Limited,929,908.00
DEPARTMENT OF ENERGY AND CLIMATE CHANGE,THE COAL AUTHORITY,29/03/2016,Minewater Feasibility / Scoping,Environment - DEFRA - EA Programme,Amec Env & Infrastructure Uk L,930,1474.00
DEPARTMENT OF ENERGY AND CLIMATE CHANGE,THE COAL AUTHORITY,11/05/2016,Minewater Feasibility / Scoping,Environment - DEFRA - EA Programme,Aecom Infrastructure & Env,1015,-4034.00
DEPARTMENT OF ENERGY AND CLIMATE CHANGE,THE COAL AUTHORITY,30/04/2016,Minewater Feasibility / Scoping,Environment - DEFRA - EA Programme,Amec Env & Infrastructure Uk L,1185,10703.60
DEPARTMENT OF ENERGY AND CLIMATE CHANGE,THE COAL AUTHORITY,18/05/2016,Minewater Feasibility / Scoping,Environment - DEFRA - EA Programme,Aecom Infrastructure & Env,1363,4034.00
DEPARTMENT OF ENERGY AND CLIMATE CHANGE,THE COAL AUTHORITY,30/04/2016,Minewater Land Agents (Acquisitions),Environment - DEFRA - EA Programme,Mark N Carey Limited,1141,695.50
DEPARTMENT OF ENERGY AND CLIMATE CHANGE,THE COAL AUTHORITY,30/04/2016,Minewater Land Agents (Acquisitions),Environment - DEFRA - EA Programme,Mark N Carey Limited,1144,97.50
DEPARTMENT OF ENERGY AND CLIMATE CHANGE,THE COAL AUTHORITY,25/04/2016,Minewater Power Costs,Environment - DEFRA - EA Programme,Veolia Water Ind Outsourcing L,845,205.01
DEPARTMENT OF ENERGY AND CLIMATE CHANGE,THE COAL AUTHORITY,25/04/2016,Minewater Power Costs,Environment - DEFRA - EA Programme,Veolia Water Ind Outsourcing L,845,990.30
DEPARTMENT OF ENERGY AND CLIMATE CHANGE,THE COAL AUTHORITY,25/04/2016,Minewater Power Costs,Environment - DEFRA - EA Programme,Veolia Water Ind Outsourcing L,845,535.17
DEPARTMENT OF ENERGY AND CLIMATE CHANGE,THE COAL AUTHORITY,25/04/2016,Minewater Power Costs,Environment - DEFRA - EA Programme,Veolia Water Ind Outsourcing L,846,-468.31
DEPARTMENT OF ENERGY AND CLIMATE CHANGE,THE COAL AUTHORITY,06/05/2016,Minewater Power Costs,Environment - DEFRA - EA Programme,Edf Energy,961,30535.09
DEPARTMENT OF ENERGY AND CLIMATE CHANGE,THE COAL AUTHORITY,06/05/2016,Minewater Power Costs,Environment - DEFRA - EA Programme,Edf Energy,961,2244.65
DEPARTMENT OF ENERGY AND CLIMATE CHANGE,THE COAL AUTHORITY,12/05/2016,Minewater Power Costs,Environment - DEFRA - EA Programme,Npower Yorkshire Limited,1190,260.00
DEPARTMENT OF ENERGY AND CLIMATE CHANGE,THE COAL AUTHORITY,20/05/2016,Minewater Rent,Environment - DEFRA - EA Programme,Brownfield Investments Ltd,756,19812.50
DEPARTMENT OF ENERGY AND CLIMATE CHANGE,THE COAL AUTHORITY,25/04/2016,Minewater Sludge Disposal,Environment - DEFRA - EA Programme,Veolia Water Ind Outsourcing L,845,27083.34
DEPARTMENT OF ENERGY AND CLIMATE CHANGE,THE COAL AUTHORITY,18/05/2016,Subsistence Allowances,Environment - DEFRA - EA Programme,Accruals - Staff Expenses Control,1215,7.55
DEPARTMENT OF ENERGY AND CLIMATE CHANGE,THE COAL AUTHORITY,01/05/2016,CY - Non-coal Minewater - Additions,Environment - DEFRA - LEP Programme,J N Bentley Limited,1169,-2989.72
DEPARTMENT OF ENERGY AND CLIMATE CHANGE,THE COAL AUTHORITY,01/05/2016,CY - Non-coal Minewater - Additions,Environment - DEFRA - LEP Programme,J N Bentley Limited,1171,927.81
DEPARTMENT OF ENERGY AND CLIMATE CHANGE,THE COAL AUTHORITY,18/05/2016,Incidentals,Environment - DEFRA - LEP Programme,Accruals - Staff Expenses Control,1219,5.00
DEPARTMENT OF ENERGY AND CLIMATE CHANGE,THE COAL AUTHORITY,05/05/2016,Minewater Feasibility / Scoping,Environment - DEFRA - LEP Programme,Atkins Limited,927,4348.10
DEPARTMENT OF ENERGY AND CLIMATE CHANGE,THE COAL AUTHORITY,05/05/2016,Minewater Feasibility / Scoping,Environment - DEFRA - LEP Programme,Atkins Limited,928,1599.20
DEPARTMENT OF ENERGY AND CLIMATE CHANGE,THE COAL AUTHORITY,29/04/2016,Minewater Feasibility / Scoping,Environment - DEFRA - LEP Programme,Aecom Infrastructure & Env,933,7077.38
DEPARTMENT OF ENERGY AND CLIMATE CHANGE,THE COAL AUTHORITY,09/05/2016,Minewater Investigation Studies,Environment - DEFRA - LEP Programme,Wrc Plc,1053,14000.00
DEPARTMENT OF ENERGY AND CLIMATE CHANGE,THE COAL AUTHORITY,30/04/2016,Minewater Land Agents (Acquisitions),Environment - DEFRA - LEP Programme,Mark N Carey Limited,1142,1085.50
DEPARTMENT OF ENERGY AND CLIMATE CHANGE,THE COAL AUTHORITY,30/04/2016,Minewater Land Agents (Acquisitions),Environment - DEFRA - LEP Programme,Mark N Carey Limited,1143,448.50
DEPARTMENT OF ENERGY AND CLIMATE CHANGE,THE COAL AUTHORITY,30/04/2016,Minewater Land Agents (Acquisitions),Environment - DEFRA - LEP Programme,Mark N Carey Limited,1147,1592.50
DEPARTMENT OF ENERGY AND CLIMATE CHANGE,THE COAL AUTHORITY,18/05/2016,Subsistence Allowances,Environment - DEFRA - LEP Programme,Accruals - Staff Expenses Control,1219,14.65
DEPARTMENT OF ENERGY AND CLIMATE CHANGE,THE COAL AUTHORITY,18/05/2016,Subsistence Allowances,Environment - DEFRA - LEP Programme,Accruals - Staff Expenses Control,1219,7.00
DEPARTMENT OF ENERGY AND CLIMATE CHANGE,THE COAL AUTHORITY,26/05/2016,CY - Minewater Scheme - Additions,Environment - Innovation,Aquatreat Environmental Products Ltd,1472,46550.00
DEPARTMENT OF ENERGY AND CLIMATE CHANGE,THE COAL AUTHORITY,26/05/2016,CY - Minewater Scheme - Additions,Environment - Innovation,Aquatreat Environmental Products Ltd,1473,-49000.00
DEPARTMENT OF ENERGY AND CLIMATE CHANGE,THE COAL AUTHORITY,31/03/2016,CY - Tangible IT - Additions,Environment - Innovation,EMS UK LTD,1287,28698.55
DEPARTMENT OF ENERGY AND CLIMATE CHANGE,THE COAL AUTHORITY,30/04/2016,Fares - Air,Environment - Innovation,Redfern Travel Ltd,886,147.69
DEPARTMENT OF ENERGY AND CLIMATE CHANGE,THE COAL AUTHORITY,30/04/2016,Fares - Public Transport,Environment - Innovation,Ace Of Mansfield Ltd,881,75.00
DEPARTMENT OF ENERGY AND CLIMATE CHANGE,THE COAL AUTHORITY,30/04/2016,Hotel & Accommodation,Environment - Innovation,Redfern Travel Ltd,888,186.34
DEPARTMENT OF ENERGY AND CLIMATE CHANGE,THE COAL AUTHORITY,10/03/2016,Innovation Costs,Environment - Innovation,CL:AIRE,1005,500.00
DEPARTMENT OF ENERGY AND CLIMATE CHANGE,THE COAL AUTHORITY,08/01/2016,Innovation Costs,Environment - Innovation,Water Powered Technologies,1017,4500.00
DEPARTMENT OF ENERGY AND CLIMATE CHANGE,THE COAL AUTHORITY,04/05/2016,Innovation Costs,Environment - Innovation,Clare McCallan Consulting,1292,375.00
DEPARTMENT OF ENERGY AND CLIMATE CHANGE,THE COAL AUTHORITY,29/04/2016,Temporary Contractors,Environment - Innovation,Huxley Associates,662,2160.00
DEPARTMENT OF ENERGY AND CLIMATE CHANGE,THE COAL AUTHORITY,09/05/2016,Temporary Contractors,Environment - Innovation,Huxley Associates,962,1674.00
DEPARTMENT OF ENERGY AND CLIMATE CHANGE,THE COAL AUTHORITY,16/05/2016,Temporary Contractors,Environment - Innovation,Huxley Associates,1163,2160.00
DEPARTMENT OF ENERGY AND CLIMATE CHANGE,THE COAL AUTHORITY,23/05/2016,Temporary Contractors,Environment - Innovation,Huxley Associates,1390,2160.00
DEPARTMENT OF ENERGY AND CLIMATE CHANGE,THE COAL AUTHORITY,14/03/2016,Business Meetings,Environment - Management,Ransomwood Estates Ltd,701,300.00
DEPARTMENT OF ENERGY AND CLIMATE CHANGE,THE COAL AUTHORITY,30/04/2016,Fares - Air,Environment - Management,Redfern Travel Ltd,886,216.31
DEPARTMENT OF ENERGY AND CLIMATE CHANGE,THE COAL AUTHORITY,30/04/2016,Fares - Rail,Environment - Management,Redfern Travel Ltd,887,-143.13
DEPARTMENT OF ENERGY AND CLIMATE CHANGE,THE COAL AUTHORITY,28/04/2016,Site Repairs & Maintenance,Environment - Management,Mason Land Surveys Ltd,654,1283.09
DEPARTMENT OF ENERGY AND CLIMATE CHANGE,THE COAL AUTHORITY,18/05/2016,Subsistence Allowances,Environment - Management,Accruals - Staff Expenses Control,1216,11.56
DEPARTMENT OF ENERGY AND CLIMATE CHANGE,THE COAL AUTHORITY,11/05/2016,Fares - Public Transport,Environment - Technical,Accruals - Staff Expenses Control,979,10.40
DEPARTMENT OF ENERGY AND CLIMATE CHANGE,THE COAL AUTHORITY,30/04/2016,Fares - Rail,Environment - Technical,Redfern Travel Ltd,887,-35.32
DEPARTMENT OF ENERGY AND CLIMATE CHANGE,THE COAL AUTHORITY,11/05/2016,Fares - Rail,Environment - Technical,Accruals - Staff Expenses Control,979,132.50
DEPARTMENT OF ENERGY AND CLIMATE CHANGE,THE COAL AUTHORITY,30/04/2016,Hotel & Accommodation,Environment - Technical,Redfern Travel Ltd,888,302.05
DEPARTMENT OF ENERGY AND CLIMATE CHANGE,THE COAL AUTHORITY,11/05/2016,Hotel & Accommodation,Environment - Technical,Accruals - Staff Expenses Control,979,70.83
DEPARTMENT OF ENERGY AND CLIMATE CHANGE,THE COAL AUTHORITY,31/05/2016,Minewater Borehole Contractors,Environment - Technical,Soil Engineering Geoservices L,1310,43322.13
DEPARTMENT OF ENERGY AND CLIMATE CHANGE,THE COAL AUTHORITY,30/04/2016,Minewater Borehole Project Management,Environment - Technical,Jmc Engineering Uk Ltd,763,148.00
DEPARTMENT OF ENERGY AND CLIMATE CHANGE,THE COAL AUTHORITY,06/05/2016,Minewater Cost Benefit Analysis,Environment - Technical,Atkins Limited,944,848.00
DEPARTMENT OF ENERGY AND CLIMATE CHANGE,THE COAL AUTHORITY,06/05/2016,Minewater Cost Benefit Analysis,Environment - Technical,Atkins Limited,944,3050.00
DEPARTMENT OF ENERGY AND CLIMATE CHANGE,THE COAL AUTHORITY,06/05/2016,Minewater Cost Benefit Analysis,Environment - Technical,Atkins Limited,944,2185.00
DEPARTMENT OF ENERGY AND CLIMATE CHANGE,THE COAL AUTHORITY,28/04/2016,Minewater Investigation Studies,Environment - Technical,Mott Macdonald Ltd,801,3417.70
DEPARTMENT OF ENERGY AND CLIMATE CHANGE,THE COAL AUTHORITY,30/04/2016,Minewater Land Agents (Acquisitions),Environment - Technical,Jmc Engineering Uk Ltd,759,643.80
DEPARTMENT OF ENERGY AND CLIMATE CHANGE,THE COAL AUTHORITY,30/04/2016,Minewater Land Agents (Acquisitions),Environment - Technical,Jmc Engineering Uk Ltd,760,318.20
DEPARTMENT OF ENERGY AND CLIMATE CHANGE,THE COAL AUTHORITY,30/04/2016,Minewater Land Agents (Acquisitions),Environment - Technical,Jmc Engineering Uk Ltd,762,88.80
DEPARTMENT OF ENERGY AND CLIMATE CHANGE,THE COAL AUTHORITY,30/04/2016,Minewater Land Agents (Acquisitions),Environment - Technical,Jmc Engineering Uk Ltd,764,199.80
DEPARTMENT OF ENERGY AND CLIMATE CHANGE,THE COAL AUTHORITY,30/04/2016,Minewater Land Agents (Acquisitions),Environment - Technical,Jmc Engineering Uk Ltd,766,421.80
DEPARTMENT OF ENERGY AND CLIMATE CHANGE,THE COAL AUTHORITY,30/04/2016,Minewater Land Agents (Acquisitions),Environment - Technical,Mark N Carey Limited,1140,1313.00
DEPARTMENT OF ENERGY AND CLIMATE CHANGE,THE COAL AUTHORITY,29/04/2016,Minewater Land Agents (Acquisitions),Environment - Technical,Cornerstone  Projects Ltd,1249,58.00
DEPARTMENT OF ENERGY AND CLIMATE CHANGE,THE COAL AUTHORITY,11/05/2016,Professional Subscriptions,Environment - Technical,The Geological Society,998,115.00
DEPARTMENT OF ENERGY AND CLIMATE CHANGE,THE COAL AUTHORITY,23/05/2016,Software Support & Maintenance - On Premise,Environment - Technical,Isodaq Technology,1460,2587.50
DEPARTMENT OF ENERGY AND CLIMATE CHANGE,THE COAL AUTHORITY,11/05/2016,Subsistence Allowances,Environment - Technical,Accruals - Staff Expenses Control,979,3.00
DEPARTMENT OF ENERGY AND CLIMATE CHANGE,THE COAL AUTHORITY,11/05/2016,Subsistence Allowances,Environment - Technical,Accruals - Staff Expenses Control,979,18.48
DEPARTMENT OF ENERGY AND CLIMATE CHANGE,THE COAL AUTHORITY,18/05/2016,Subsistence Allowances,Environment - Technical,Accruals - Staff Expenses Control,1215,7.85
DEPARTMENT OF ENERGY AND CLIMATE CHANGE,THE COAL AUTHORITY,30/04/2016,Temporary Contractors,Environment - Technical,Huxley Associates,663,1880.00
DEPARTMENT OF ENERGY AND CLIMATE CHANGE,THE COAL AUTHORITY,07/05/2016,Temporary Contractors,Environment - Technical,Huxley Associates,924,1880.00
DEPARTMENT OF ENERGY AND CLIMATE CHANGE,THE COAL AUTHORITY,15/05/2016,Temporary Contractors,Environment - Technical,Huxley Associates,1099,1880.00
DEPARTMENT OF ENERGY AND CLIMATE CHANGE,THE COAL AUTHORITY,19/05/2016,Temporary Contractors,Environment - Technical,Atkins Limited,1360,6076.35
DEPARTMENT OF ENERGY AND CLIMATE CHANGE,THE COAL AUTHORITY,23/05/2016,Temporary Contractors,Environment - Technical,Huxley Associates,1391,1880.00
DEPARTMENT OF ENERGY AND CLIMATE CHANGE,THE COAL AUTHORITY,20/05/2016,Temporary Contractors,Environment - Technical,Atkins Limited,1459,462.96
DEPARTMENT OF ENERGY AND CLIMATE CHANGE,THE COAL AUTHORITY,24/05/2016,Business Meetings,Executive,Eastwood Hall,1382,601.67
DEPARTMENT OF ENERGY AND CLIMATE CHANGE,THE COAL AUTHORITY,18/05/2016,Fares - Public Transport,Executive,Accruals - Staff Expenses Control,1216,1.50
DEPARTMENT OF ENERGY AND CLIMATE CHANGE,THE COAL AUTHORITY,24/05/2016,Fares - Public Transport,Executive,Accruals - Staff Expenses Control,1379,6.00
DEPARTMENT OF ENERGY AND CLIMATE CHANGE,THE COAL AUTHORITY,30/04/2016,Hotel & Accommodation,Executive,Redfern Travel Ltd,888,1876.58
DEPARTMENT OF ENERGY AND CLIMATE CHANGE,THE COAL AUTHORITY,18/05/2016,Incidentals,Executive,Accruals - Staff Expenses Control,1215,26.31
DEPARTMENT OF ENERGY AND CLIMATE CHANGE,THE COAL AUTHORITY,24/05/2016,Incidentals,Executive,Accruals - Staff Expenses Control,1379,6.50
DEPARTMENT OF ENERGY AND CLIMATE CHANGE,THE COAL AUTHORITY,18/05/2016,Membership Subscriptions,Executive,Accruals - Staff Expenses Control,1215,8.96
DEPARTMENT OF ENERGY AND CLIMATE CHANGE,THE COAL AUTHORITY,18/05/2016,Mileage Payments,Executive,Accruals - Staff Expenses Control,1215,20.44
DEPARTMENT OF ENERGY AND CLIMATE CHANGE,THE COAL AUTHORITY,18/05/2016,Mileage Payments,Executive,Accruals - Staff Expenses Control,1216,34.74
DEPARTMENT OF ENERGY AND CLIMATE CHANGE,THE COAL AUTHORITY,24/05/2016,Mileage Payments,Executive,Accruals - Staff Expenses Control,1379,76.50
DEPARTMENT OF ENERGY AND CLIMATE CHANGE,THE COAL AUTHORITY,18/05/2016,Subsistence Allowances,Executive,Accruals - Staff Expenses Control,1215,48.22
DEPARTMENT OF ENERGY AND CLIMATE CHANGE,THE COAL AUTHORITY,18/05/2016,Subsistence Allowances,Executive,Accruals - Staff Expenses Control,1216,17.61
DEPARTMENT OF ENERGY AND CLIMATE CHANGE,THE COAL AUTHORITY,24/05/2016,Subsistence Allowances,Executive,Accruals - Staff Expenses Control,1379,27.20
DEPARTMENT OF ENERGY AND CLIMATE CHANGE,THE COAL AUTHORITY,14/04/2016,Canteen Equipment,Facilities,ITN Plus,1103,77.50
DEPARTMENT OF ENERGY AND CLIMATE CHANGE,THE COAL AUTHORITY,29/04/2016,Cleaning Materials,Facilities,Floorbrite Cleaning & Facilities Services,702,619.87
DEPARTMENT OF ENERGY AND CLIMATE CHANGE,THE COAL AUTHORITY,29/04/2016,Contract Hire Vehicles,Facilities,Pentagon,659,21.15
DEPARTMENT OF ENERGY AND CLIMATE CHANGE,THE COAL AUTHORITY,29/04/2016,Contract Hire Vehicles,Facilities,Pentagon,660,21.15
DEPARTMENT OF ENERGY AND CLIMATE CHANGE,THE COAL AUTHORITY,03/05/2016,Contract Hire Vehicles,Facilities,Pentagon,704,21.15
DEPARTMENT OF ENERGY AND CLIMATE CHANGE,THE COAL AUTHORITY,03/05/2016,Contract Hire Vehicles,Facilities,Pentagon,705,21.15
DEPARTMENT OF ENERGY AND CLIMATE CHANGE,THE COAL AUTHORITY,26/04/2016,Contract Hire Vehicles,Facilities,Autoglass,999,189.33
DEPARTMENT OF ENERGY AND CLIMATE CHANGE,THE COAL AUTHORITY,01/05/2016,Contract Hire Vehicles,Facilities,Alphabet (Uk) Fleet Man Ltd,1031,3786.20
DEPARTMENT OF ENERGY AND CLIMATE CHANGE,THE COAL AUTHORITY,30/04/2016,Contract Hire Vehicles,Facilities,Auto Smart Valeting Ltd,1054,712.00
DEPARTMENT OF ENERGY AND CLIMATE CHANGE,THE COAL AUTHORITY,20/05/2016,Contract Hire Vehicles,Facilities,Pentagon,1349,21.15
DEPARTMENT OF ENERGY AND CLIMATE CHANGE,THE COAL AUTHORITY,23/05/2016,Contract Hire Vehicles,Facilities,Pentagon,1368,21.15
DEPARTMENT OF ENERGY AND CLIMATE CHANGE,THE COAL AUTHORITY,23/05/2016,Contract Hire Vehicles,Facilities,Pentagon,1388,21.15
DEPARTMENT OF ENERGY AND CLIMATE CHANGE,THE COAL AUTHORITY,06/05/2016,Electricity Usage,Facilities,Edf Energy,961,11443.58
DEPARTMENT OF ENERGY AND CLIMATE CHANGE,THE COAL AUTHORITY,12/05/2016,Electricity Usage,Facilities,Npower Yorkshire Limited,1190,260.00
DEPARTMENT OF ENERGY AND CLIMATE CHANGE,THE COAL AUTHORITY,27/04/2016,Fuel (Vehicle),Facilities,Allstar Business Solutions Ltd,634,36.99
DEPARTMENT OF ENERGY AND CLIMATE CHANGE,THE COAL AUTHORITY,27/04/2016,Fuel (Vehicle),Facilities,Allstar Business Solutions Ltd,635,70.43
DEPARTMENT OF ENERGY AND CLIMATE CHANGE,THE COAL AUTHORITY,27/04/2016,Fuel (Vehicle),Facilities,Allstar Business Solutions Ltd,636,36.55
DEPARTMENT OF ENERGY AND CLIMATE CHANGE,THE COAL AUTHORITY,27/04/2016,Fuel (Vehicle),Facilities,Allstar Business Solutions Ltd,637,28.15
DEPARTMENT OF ENERGY AND CLIMATE CHANGE,THE COAL AUTHORITY,27/04/2016,Fuel (Vehicle),Facilities,Allstar Business Solutions Ltd,638,43.28
DEPARTMENT OF ENERGY AND CLIMATE CHANGE,THE COAL AUTHORITY,27/04/2016,Fuel (Vehicle),Facilities,Allstar Business Solutions Ltd,639,25.48
DEPARTMENT OF ENERGY AND CLIMATE CHANGE,THE COAL AUTHORITY,04/05/2016,Fuel (Vehicle),Facilities,Allstar Business Solutions Ltd,831,31.86
DEPARTMENT OF ENERGY AND CLIMATE CHANGE,THE COAL AUTHORITY,04/05/2016,Fuel (Vehicle),Facilities,Allstar Business Solutions Ltd,832,50.75
DEPARTMENT OF ENERGY AND CLIMATE CHANGE,THE COAL AUTHORITY,04/05/2016,Fuel (Vehicle),Facilities,Allstar Business Solutions Ltd,833,82.21
DEPARTMENT OF ENERGY AND CLIMATE CHANGE,THE COAL AUTHORITY,04/05/2016,Fuel (Vehicle),Facilities,Allstar Business Solutions Ltd,834,47.53
DEPARTMENT OF ENERGY AND CLIMATE CHANGE,THE COAL AUTHORITY,04/05/2016,Fuel (Vehicle),Facilities,Allstar Business Solutions Ltd,835,53.57
DEPARTMENT OF ENERGY AND CLIMATE CHANGE,THE COAL AUTHORITY,11/05/2016,Fuel (Vehicle),Facilities,Allstar Business Solutions Ltd,1064,56.07
DEPARTMENT OF ENERGY AND CLIMATE CHANGE,THE COAL AUTHORITY,11/05/2016,Fuel (Vehicle),Facilities,Allstar Business Solutions Ltd,1065,53.85
DEPARTMENT OF ENERGY AND CLIMATE CHANGE,THE COAL AUTHORITY,11/05/2016,Fuel (Vehicle),Facilities,Allstar Business Solutions Ltd,1066,55.13
DEPARTMENT OF ENERGY AND CLIMATE CHANGE,THE COAL AUTHORITY,11/05/2016,Fuel (Vehicle),Facilities,Allstar Business Solutions Ltd,1067,31.44
DEPARTMENT OF ENERGY AND CLIMATE CHANGE,THE COAL AUTHORITY,11/05/2016,Fuel (Vehicle),Facilities,Allstar Business Solutions Ltd,1068,19.18
DEPARTMENT OF ENERGY AND CLIMATE CHANGE,THE COAL AUTHORITY,18/05/2016,Fuel (Vehicle),Facilities,Allstar Business Solutions Ltd,1224,72.28
DEPARTMENT OF ENERGY AND CLIMATE CHANGE,THE COAL AUTHORITY,18/05/2016,Fuel (Vehicle),Facilities,Allstar Business Solutions Ltd,1225,15.53
DEPARTMENT OF ENERGY AND CLIMATE CHANGE,THE COAL AUTHORITY,18/05/2016,Fuel (Vehicle),Facilities,Allstar Business Solutions Ltd,1226,50.07
DEPARTMENT OF ENERGY AND CLIMATE CHANGE,THE COAL AUTHORITY,18/05/2016,Fuel (Vehicle),Facilities,Allstar Business Solutions Ltd,1227,70.24
DEPARTMENT OF ENERGY AND CLIMATE CHANGE,THE COAL AUTHORITY,18/05/2016,Fuel (Vehicle),Facilities,Allstar Business Solutions Ltd,1228,38.57
DEPARTMENT OF ENERGY AND CLIMATE CHANGE,THE COAL AUTHORITY,18/05/2016,Fuel (Vehicle),Facilities,Allstar Business Solutions Ltd,1229,78.55
DEPARTMENT OF ENERGY AND CLIMATE CHANGE,THE COAL AUTHORITY,18/05/2016,Fuel (Vehicle),Facilities,Allstar Business Solutions Ltd,1230,14.62
DEPARTMENT OF ENERGY AND CLIMATE CHANGE,THE COAL AUTHORITY,18/05/2016,Fuel (Vehicle),Facilities,Allstar Business Solutions Ltd,1231,33.57
DEPARTMENT OF ENERGY AND CLIMATE CHANGE,THE COAL AUTHORITY,25/05/2016,Fuel (Vehicle),Facilities,Allstar Business Solutions Ltd,1516,55.50
DEPARTMENT OF ENERGY AND CLIMATE CHANGE,THE COAL AUTHORITY,25/05/2016,Fuel (Vehicle),Facilities,Allstar Business Solutions Ltd,1517,24.68
DEPARTMENT OF ENERGY AND CLIMATE CHANGE,THE COAL AUTHORITY,25/05/2016,Fuel (Vehicle),Facilities,Allstar Business Solutions Ltd,1519,39.42
DEPARTMENT OF ENERGY AND CLIMATE CHANGE,THE COAL AUTHORITY,25/05/2016,Fuel (Vehicle),Facilities,Allstar Business Solutions Ltd,1520,45.65
DEPARTMENT OF ENERGY AND CLIMATE CHANGE,THE COAL AUTHORITY,25/05/2016,Fuel (Vehicle),Facilities,Allstar Business Solutions Ltd,1521,25.87
DEPARTMENT OF ENERGY AND CLIMATE CHANGE,THE COAL AUTHORITY,25/05/2016,Fuel (Vehicle),Facilities,Allstar Business Solutions Ltd,1522,20.41
DEPARTMENT OF ENERGY AND CLIMATE CHANGE,THE COAL AUTHORITY,30/04/2016,Outsourced Canteen Staff,Facilities,Servest,1286,1549.26
DEPARTMENT OF ENERGY AND CLIMATE CHANGE,THE COAL AUTHORITY,01/05/2016,Outsourced Cleaning Staff,Facilities,Floorbrite Cleaning & Facilities Services,1000,3861.52
DEPARTMENT OF ENERGY AND CLIMATE CHANGE,THE COAL AUTHORITY,29/04/2016,Outsourced Security Staff,Facilities,Axis Security Limited,1397,5606.28
DEPARTMENT OF ENERGY AND CLIMATE CHANGE,THE COAL AUTHORITY,29/04/2016,Outsourced Security Staff,Facilities,Axis Security Limited,1398,6717.87
DEPARTMENT OF ENERGY AND CLIMATE CHANGE,THE COAL AUTHORITY,29/04/2016,Outsourced Security Staff,Facilities,Axis Security Limited,1399,6474.24
DEPARTMENT OF ENERGY AND CLIMATE CHANGE,THE COAL AUTHORITY,29/04/2016,Plant Maintenance,Facilities,Stannah lift Services Limited,810,40.00
DEPARTMENT OF ENERGY AND CLIMATE CHANGE,THE COAL AUTHORITY,30/05/2016,Plant Maintenance,Facilities,Mansfield Refrigeration & Air Conditioning Co Ltd,815,994.00
DEPARTMENT OF ENERGY AND CLIMATE CHANGE,THE COAL AUTHORITY,29/04/2016,Plant Maintenance,Facilities,Stannah lift Services Limited,851,94.29
DEPARTMENT OF ENERGY AND CLIMATE CHANGE,THE COAL AUTHORITY,29/04/2016,Plant Maintenance,Facilities,Stannah lift Services Limited,852,94.29
DEPARTMENT OF ENERGY AND CLIMATE CHANGE,THE COAL AUTHORITY,29/04/2016,Plant Maintenance,Facilities,Stannah lift Services Limited,862,60.00
DEPARTMENT OF ENERGY AND CLIMATE CHANGE,THE COAL AUTHORITY,30/04/2016,Plant Maintenance,Facilities,Mansfield Refrigeration & Air Conditioning Co Ltd,1001,245.46
DEPARTMENT OF ENERGY AND CLIMATE CHANGE,THE COAL AUTHORITY,11/05/2016,Plant Maintenance,Facilities,Mansfield Refrigeration & Air Conditioning Co Ltd,1002,137.00
DEPARTMENT OF ENERGY AND CLIMATE CHANGE,THE COAL AUTHORITY,19/05/2016,Plant Maintenance,Facilities,Dakro Environmental Ltd,1294,520.00
DEPARTMENT OF ENERGY AND CLIMATE CHANGE,THE COAL AUTHORITY,28/04/2016,Site Repairs & Maintenance,Facilities,Ulyett Landscapes Ltd,670,310.00
DEPARTMENT OF ENERGY AND CLIMATE CHANGE,THE COAL AUTHORITY,29/04/2016,Site Repairs & Maintenance,Facilities,Ulyett Landscapes Ltd,671,749.16
DEPARTMENT OF ENERGY AND CLIMATE CHANGE,THE COAL AUTHORITY,22/04/2016,Site Repairs & Maintenance,Facilities,British Gas Energy Services Ltd T/A BMSI,698,275.00
DEPARTMENT OF ENERGY AND CLIMATE CHANGE,THE COAL AUTHORITY,04/05/2016,Site Repairs & Maintenance,Facilities,WST Limited,814,240.00
DEPARTMENT OF ENERGY AND CLIMATE CHANGE,THE COAL AUTHORITY,28/04/2016,Site Repairs & Maintenance,Facilities,Tyco Integrated Fire & Security,1050,225.00
DEPARTMENT OF ENERGY AND CLIMATE CHANGE,THE COAL AUTHORITY,26/05/2016,Site Repairs & Maintenance,Facilities,Leverton Uk Ltd,1484,350.00
DEPARTMENT OF ENERGY AND CLIMATE CHANGE,THE COAL AUTHORITY,26/05/2016,Site Repairs & Maintenance,Facilities,Leverton Uk Ltd,1485,49.92
DEPARTMENT OF ENERGY AND CLIMATE CHANGE,THE COAL AUTHORITY,28/04/2016,Site Services,Facilities,Banner Business Solutions,672,64.80
DEPARTMENT OF ENERGY AND CLIMATE CHANGE,THE COAL AUTHORITY,27/04/2016,Site Services,Facilities,Banner Business Solutions,856,55.80
DEPARTMENT OF ENERGY AND CLIMATE CHANGE,THE COAL AUTHORITY,20/04/2016,Site Services,Facilities,Banner Business Solutions,857,30.60
DEPARTMENT OF ENERGY AND CLIMATE CHANGE,THE COAL AUTHORITY,13/04/2016,Site Services,Facilities,Banner Business Solutions,858,72.00
DEPARTMENT OF ENERGY AND CLIMATE CHANGE,THE COAL AUTHORITY,23/04/2016,Site Services,Facilities,Garry Dalton,1003,80.00
DEPARTMENT OF ENERGY AND CLIMATE CHANGE,THE COAL AUTHORITY,29/04/2016,Site Services,Facilities,Allen Vending Services,1051,75.00
DEPARTMENT OF ENERGY AND CLIMATE CHANGE,THE COAL AUTHORITY,22/04/2016,Site Services,Facilities,Biffa Waste Services Ltd,1223,358.24
DEPARTMENT OF ENERGY AND CLIMATE CHANGE,THE COAL AUTHORITY,18/05/2016,Site Services,Facilities,Banner Business Solutions,1357,45.00
DEPARTMENT OF ENERGY AND CLIMATE CHANGE,THE COAL AUTHORITY,18/05/2016,Site Services,Facilities,Banner Business Solutions,1358,45.00
DEPARTMENT OF ENERGY AND CLIMATE CHANGE,THE COAL AUTHORITY,28/04/2016,Stationery,Facilities,Banner Business Solutions,673,1.60
DEPARTMENT OF ENERGY AND CLIMATE CHANGE,THE COAL AUTHORITY,27/04/2016,Stationery,Facilities,Banner Business Solutions,853,424.64
DEPARTMENT OF ENERGY AND CLIMATE CHANGE,THE COAL AUTHORITY,23/04/2016,Stationery,Facilities,Banner Business Solutions,854,11.98
DEPARTMENT OF ENERGY AND CLIMATE CHANGE,THE COAL AUTHORITY,23/04/2016,Stationery,Facilities,Banner Business Solutions,855,11.01
DEPARTMENT OF ENERGY AND CLIMATE CHANGE,THE COAL AUTHORITY,04/05/2016,Stationery,Facilities,Banner Business Solutions,966,1.30
DEPARTMENT OF ENERGY AND CLIMATE CHANGE,THE COAL AUTHORITY,04/05/2016,Stationery,Facilities,Banner Business Solutions,967,99.98
DEPARTMENT OF ENERGY AND CLIMATE CHANGE,THE COAL AUTHORITY,11/05/2016,Stationery,Facilities,Banner Business Solutions,1107,87.76
DEPARTMENT OF ENERGY AND CLIMATE CHANGE,THE COAL AUTHORITY,26/04/2016,Temporary Contractors,Facilities,Thorn Baker Limited,674,522.00
DEPARTMENT OF ENERGY AND CLIMATE CHANGE,THE COAL AUTHORITY,04/05/2016,Temporary Contractors,Facilities,Thorn Baker Limited,850,486.00
DEPARTMENT OF ENERGY AND CLIMATE CHANGE,THE COAL AUTHORITY,10/05/2016,Temporary Contractors,Facilities,Thorn Baker Limited,1106,435.00
DEPARTMENT OF ENERGY AND CLIMATE CHANGE,THE COAL AUTHORITY,17/05/2016,Temporary Contractors,Facilities,Thorn Baker Limited,1280,468.00
DEPARTMENT OF ENERGY AND CLIMATE CHANGE,THE COAL AUTHORITY,30/04/2016,Applications Consultancy,Finance Projects & Business Planning,Sapphire Systems Plc,1016,58.08
DEPARTMENT OF ENERGY AND CLIMATE CHANGE,THE COAL AUTHORITY,29/04/2016,Bank Charges,Finance Projects & Business Planning,National Westminster Bank Plc,811,71.41
DEPARTMENT OF ENERGY AND CLIMATE CHANGE,THE COAL AUTHORITY,29/04/2016,Bank Charges,Finance Projects & Business Planning,National Westminster Bank Plc,1020,25.00
DEPARTMENT OF ENERGY AND CLIMATE CHANGE,THE COAL AUTHORITY,23/05/2016,Bank Charges,Finance Projects & Business Planning,Citibank,1309,79.00
DEPARTMENT OF ENERGY AND CLIMATE CHANGE,THE COAL AUTHORITY,23/05/2016,Bank Charges,Finance Projects & Business Planning,Remove April Citibank invoices,1332,-104.00
DEPARTMENT OF ENERGY AND CLIMATE CHANGE,THE COAL AUTHORITY,25/05/2016,Bank Charges,Finance Projects & Business Planning,CANCELLATION OF 172/173,1456,-126.74
DEPARTMENT OF ENERGY AND CLIMATE CHANGE,THE COAL AUTHORITY,30/04/2016,Fares - Air,Finance Projects & Business Planning,Redfern Travel Ltd,886,216.31
DEPARTMENT OF ENERGY AND CLIMATE CHANGE,THE COAL AUTHORITY,30/04/2016,Fares - Public Transport,Finance Projects & Business Planning,Ace Of Mansfield Ltd,881,70.00
DEPARTMENT OF ENERGY AND CLIMATE CHANGE,THE COAL AUTHORITY,18/05/2016,Fares - Public Transport,Finance Projects & Business Planning,Accruals - Staff Expenses Control,1218,6.40
DEPARTMENT OF ENERGY AND CLIMATE CHANGE,THE COAL AUTHORITY,30/04/2016,Fares - Rail,Finance Projects & Business Planning,Redfern Travel Ltd,886,2184.98
DEPARTMENT OF ENERGY AND CLIMATE CHANGE,THE COAL AUTHORITY,30/04/2016,Fares - Rail,Finance Projects & Business Planning,Redfern Travel Ltd,886,930.91
DEPARTMENT OF ENERGY AND CLIMATE CHANGE,THE COAL AUTHORITY,24/05/2016,Incidentals,Finance Projects & Business Planning,Accruals - Staff Expenses Control,1376,5.83
DEPARTMENT OF ENERGY AND CLIMATE CHANGE,THE COAL AUTHORITY,06/05/2016,Membership Subscriptions,Finance Projects & Business Planning,Association for Project Management,1351,556.00
DEPARTMENT OF ENERGY AND CLIMATE CHANGE,THE COAL AUTHORITY,30/04/2016,Payroll Processing Fees,Finance Projects & Business Planning,Cgi It Uk Ltd,667,1074.73
DEPARTMENT OF ENERGY AND CLIMATE CHANGE,THE COAL AUTHORITY,01/05/2016,Postage & Couriers,Finance Projects & Business Planning,Security Plus Limited,732,46.00
DEPARTMENT OF ENERGY AND CLIMATE CHANGE,THE COAL AUTHORITY,30/04/2016,Software Support & Maintenance - SaaS,Finance Projects & Business Planning,Bottomline Technologies,911,91.00
DEPARTMENT OF ENERGY AND CLIMATE CHANGE,THE COAL AUTHORITY,24/05/2016,Subsistence Allowances,Finance Projects & Business Planning,Accruals - Staff Expenses Control,1376,15.74
DEPARTMENT OF ENERGY AND CLIMATE CHANGE,THE COAL AUTHORITY,03/05/2016,External Agency / Introduction Fees,HR & OD,Thorn Baker Limited,1006,3900.00
DEPARTMENT OF ENERGY AND CLIMATE CHANGE,THE COAL AUTHORITY,25/04/2016,External Agency / Introduction Fees,HR & OD,Conrad Consulting,1008,5025.00
DEPARTMENT OF ENERGY AND CLIMATE CHANGE,THE COAL AUTHORITY,17/05/2016,External Agency / Introduction Fees,HR & OD,Gatenby Sanderson Ltd,1196,-1333.33
DEPARTMENT OF ENERGY AND CLIMATE CHANGE,THE COAL AUTHORITY,31/03/2016,External Agency / Introduction Fees,HR & OD,Hays,1291,4750.00
DEPARTMENT OF ENERGY AND CLIMATE CHANGE,THE COAL AUTHORITY,24/05/2016,External Agency / Introduction Fees,HR & OD,Conrad Consulting,1481,5025.00
DEPARTMENT OF ENERGY AND CLIMATE CHANGE,THE COAL AUTHORITY,30/04/2016,Fares - Public Transport,HR & OD,Ace Of Mansfield Ltd,881,6.00
DEPARTMENT OF ENERGY AND CLIMATE CHANGE,THE COAL AUTHORITY,25/05/2016,Incidentals,HR & OD,Accruals - Staff Expenses Control,1402,10.00
DEPARTMENT OF ENERGY AND CLIMATE CHANGE,THE COAL AUTHORITY,16/05/2016,Mileage Payments,HR & OD,Kieran J Mavin,1101,11.60
DEPARTMENT OF ENERGY AND CLIMATE CHANGE,THE COAL AUTHORITY,16/05/2016,Mileage Payments,HR & OD,Joseph M Smedley,1102,17.00
DEPARTMENT OF ENERGY AND CLIMATE CHANGE,THE COAL AUTHORITY,25/04/2016,Software Support & Maintenance - On Premise,HR & OD,Computers In Personnel Ltd,1009,3345.00
DEPARTMENT OF ENERGY AND CLIMATE CHANGE,THE COAL AUTHORITY,24/05/2016,Subsistence Allowances,HR & OD,Accruals - Staff Expenses Control,1379,2.53
DEPARTMENT OF ENERGY AND CLIMATE CHANGE,THE COAL AUTHORITY,25/05/2016,Subsistence Allowances,HR & OD,Accruals - Staff Expenses Control,1402,54.25
DEPARTMENT OF ENERGY AND CLIMATE CHANGE,THE COAL AUTHORITY,30/04/2016,Fares - Rail,ICT Management,Redfern Travel Ltd,886,401.96
DEPARTMENT OF ENERGY AND CLIMATE CHANGE,THE COAL AUTHORITY,30/04/2016,Hotel & Accommodation,ICT Management,Redfern Travel Ltd,888,691.17
DEPARTMENT OF ENERGY AND CLIMATE CHANGE,THE COAL AUTHORITY,26/04/2016,Applications Consultancy,Infrastructure Management,Nowcomm,904,1900.00
DEPARTMENT OF ENERGY AND CLIMATE CHANGE,THE COAL AUTHORITY,23/05/2016,Applications Consultancy,Infrastructure Management,Nowcomm,1440,2250.00
DEPARTMENT OF ENERGY AND CLIMATE CHANGE,THE COAL AUTHORITY,30/04/2016,Fares - Public Transport,Infrastructure Management,Ace Of Mansfield Ltd,881,40.00
DEPARTMENT OF ENERGY AND CLIMATE CHANGE,THE COAL AUTHORITY,11/05/2016,Fares - Public Transport,Infrastructure Management,Accruals - Staff Expenses Control,982,6.00
DEPARTMENT OF ENERGY AND CLIMATE CHANGE,THE COAL AUTHORITY,12/04/2016,Hardware Equipment & Support,Infrastructure Management,Nowcomm,903,3900.00
DEPARTMENT OF ENERGY AND CLIMATE CHANGE,THE COAL AUTHORITY,17/05/2016,Hardware Equipment & Support,Infrastructure Management,Tier 1 Asset Management Ltd,1200,-209.00
DEPARTMENT OF ENERGY AND CLIMATE CHANGE,THE COAL AUTHORITY,11/05/2016,Hardware Licenses,Infrastructure Management,Computer Computer Ltd,1023,1559.38
DEPARTMENT OF ENERGY AND CLIMATE CHANGE,THE COAL AUTHORITY,29/05/2016,Hardware Licenses,Infrastructure Management,Nowcomm,1394,8475.00
DEPARTMENT OF ENERGY AND CLIMATE CHANGE,THE COAL AUTHORITY,30/04/2016,Hotel & Accommodation,Infrastructure Management,Redfern Travel Ltd,888,77.17
DEPARTMENT OF ENERGY AND CLIMATE CHANGE,THE COAL AUTHORITY,11/05/2016,Incidentals,Infrastructure Management,Accruals - Staff Expenses Control,984,7.50
DEPARTMENT OF ENERGY AND CLIMATE CHANGE,THE COAL AUTHORITY,29/04/2016,Information Security testing & audit,Infrastructure Management,Digital Assurance Consulting Limited,914,2340.00
DEPARTMENT OF ENERGY AND CLIMATE CHANGE,THE COAL AUTHORITY,23/05/2016,Internet Service Provider & Comms,Infrastructure Management,Nowcomm,1440,25000.00
DEPARTMENT OF ENERGY AND CLIMATE CHANGE,THE COAL AUTHORITY,23/05/2016,Internet Service Provider & Comms,Infrastructure Management,Nowcomm,1440,14120.00
DEPARTMENT OF ENERGY AND CLIMATE CHANGE,THE COAL AUTHORITY,11/05/2016,Mileage Payments,Infrastructure Management,Accruals - Staff Expenses Control,976,14.40
DEPARTMENT OF ENERGY AND CLIMATE CHANGE,THE COAL AUTHORITY,11/05/2016,Mileage Payments,Infrastructure Management,Accruals - Staff Expenses Control,982,55.80
DEPARTMENT OF ENERGY AND CLIMATE CHANGE,THE COAL AUTHORITY,11/05/2016,Mileage Payments,Infrastructure Management,Accruals - Staff Expenses Control,984,22.50
DEPARTMENT OF ENERGY AND CLIMATE CHANGE,THE COAL AUTHORITY,25/05/2016,Mileage Payments,Infrastructure Management,Accruals - Staff Expenses Control,1447,40.50
DEPARTMENT OF ENERGY AND CLIMATE CHANGE,THE COAL AUTHORITY,25/04/2016,Peripherals / Consumables (MEP),Infrastructure Management,Nowcomm,905,851.44
DEPARTMENT OF ENERGY AND CLIMATE CHANGE,THE COAL AUTHORITY,24/03/2016,Peripherals / Consumables (MEP),Infrastructure Management,Rdc,1288,1254.15
DEPARTMENT OF ENERGY AND CLIMATE CHANGE,THE COAL AUTHORITY,08/04/2016,Requests For Change,Infrastructure Management,Scisys Uk Ltd,907,904.00
DEPARTMENT OF ENERGY AND CLIMATE CHANGE,THE COAL AUTHORITY,08/04/2016,Requests For Change,Infrastructure Management,Scisys Uk Ltd,908,1968.64
DEPARTMENT OF ENERGY AND CLIMATE CHANGE,THE COAL AUTHORITY,09/05/2016,Requests For Change,Infrastructure Management,Scisys Uk Ltd,995,4247.10
DEPARTMENT OF ENERGY AND CLIMATE CHANGE,THE COAL AUTHORITY,12/05/2016,Requests For Change,Infrastructure Management,Scisys Uk Ltd,1152,389.40
DEPARTMENT OF ENERGY AND CLIMATE CHANGE,THE COAL AUTHORITY,11/05/2016,Staff Events,Infrastructure Management,Accruals - Staff Expenses Control,984,9.50
DEPARTMENT OF ENERGY AND CLIMATE CHANGE,THE COAL AUTHORITY,11/05/2016,Subsistence Allowances,Infrastructure Management,Accruals - Staff Expenses Control,982,17.07
DEPARTMENT OF ENERGY AND CLIMATE CHANGE,THE COAL AUTHORITY,01/05/2016,Temporary Contractors,Infrastructure Management,Playcool Limited,707,7140.00
DEPARTMENT OF ENERGY AND CLIMATE CHANGE,THE COAL AUTHORITY,09/05/2016,Applications Consultancy,Mining Information,Scisys Uk Ltd,996,966.77
DEPARTMENT OF ENERGY AND CLIMATE CHANGE,THE COAL AUTHORITY,23/05/2016,Applications Consultancy,Mining Information,Nowcomm,1440,10125.00
DEPARTMENT OF ENERGY AND CLIMATE CHANGE,THE COAL AUTHORITY,25/04/2016,CY - Intangible IT - Additions,Mining Information,Scisys Uk Ltd,906,8918.50
DEPARTMENT OF ENERGY AND CLIMATE CHANGE,THE COAL AUTHORITY,01/05/2016,eCommerce Commission Charges,Mining Information,Worldpay,968,17.86
DEPARTMENT OF ENERGY AND CLIMATE CHANGE,THE COAL AUTHORITY,30/04/2016,Fares - Rail,Mining Information,Redfern Travel Ltd,886,180.87
DEPARTMENT OF ENERGY AND CLIMATE CHANGE,THE COAL AUTHORITY,24/05/2016,Incidentals,Mining Information,Accruals - Staff Expenses Control,1374,9.16
DEPARTMENT OF ENERGY AND CLIMATE CHANGE,THE COAL AUTHORITY,11/05/2016,Mileage Payments,Mining Information,Accruals - Staff Expenses Control,981,11.25
DEPARTMENT OF ENERGY AND CLIMATE CHANGE,THE COAL AUTHORITY,24/05/2016,Mileage Payments,Mining Information,Accruals - Staff Expenses Control,1374,15.75
DEPARTMENT OF ENERGY AND CLIMATE CHANGE,THE COAL AUTHORITY,13/05/2016,Requests For Change,Mining Information,Scisys Uk Ltd,1289,1464.35
DEPARTMENT OF ENERGY AND CLIMATE CHANGE,THE COAL AUTHORITY,18/04/2016,Software Support & Maintenance - On Premise,Mining Information,Computacenter (Uk) Ltd,910,60749.99
DEPARTMENT OF ENERGY AND CLIMATE CHANGE,THE COAL AUTHORITY,11/05/2016,Software Support & Maintenance - On Premise,Mining Information,Esri (Uk) Limited,1153,80538.00
DEPARTMENT OF ENERGY AND CLIMATE CHANGE,THE COAL AUTHORITY,26/04/2016,Stationery,Mining Information,Canon (Uk) Ltd,1004,346.42
DEPARTMENT OF ENERGY AND CLIMATE CHANGE,THE COAL AUTHORITY,11/05/2016,Subsistence Allowances,Mining Information,Accruals - Staff Expenses Control,979,2.00
DEPARTMENT OF ENERGY AND CLIMATE CHANGE,THE COAL AUTHORITY,24/05/2016,Subsistence Allowances,Mining Information,Accruals - Staff Expenses Control,1374,11.10
DEPARTMENT OF ENERGY AND CLIMATE CHANGE,THE COAL AUTHORITY,09/05/2016,Applications Consultancy,Mining Reports Retail,Scisys Uk Ltd,996,483.38
DEPARTMENT OF ENERGY AND CLIMATE CHANGE,THE COAL AUTHORITY,23/05/2016,Applications Consultancy,Mining Reports Retail,Nowcomm,1440,5062.50
DEPARTMENT OF ENERGY AND CLIMATE CHANGE,THE COAL AUTHORITY,21/04/2016,BGS Royalty,Mining Reports Retail,Nerc,733,13135.50
DEPARTMENT OF ENERGY AND CLIMATE CHANGE,THE COAL AUTHORITY,25/04/2016,CY - Intangible IT - Additions,Mining Reports Retail,Scisys Uk Ltd,906,8918.50
DEPARTMENT OF ENERGY AND CLIMATE CHANGE,THE COAL AUTHORITY,13/05/2016,CY - Intangible IT - Additions,Mining Reports Retail,Scisys Uk Ltd,1290,3069.27
DEPARTMENT OF ENERGY AND CLIMATE CHANGE,THE COAL AUTHORITY,04/05/2016,eCommerce Commission Charges,Mining Reports Retail,Worldpay Limited,926,937.31
DEPARTMENT OF ENERGY AND CLIMATE CHANGE,THE COAL AUTHORITY,01/05/2016,eCommerce Commission Charges,Mining Reports Retail,Worldpay,968,1703.51
DEPARTMENT OF ENERGY AND CLIMATE CHANGE,THE COAL AUTHORITY,30/04/2016,Fares - Public Transport,Mining Reports Retail,Ace Of Mansfield Ltd,881,70.00
DEPARTMENT OF ENERGY AND CLIMATE CHANGE,THE COAL AUTHORITY,30/04/2016,Fares - Rail,Mining Reports Retail,Redfern Travel Ltd,886,1451.30
DEPARTMENT OF ENERGY AND CLIMATE CHANGE,THE COAL AUTHORITY,30/04/2016,Hotel & Accommodation,Mining Reports Retail,Redfern Travel Ltd,888,519.00
DEPARTMENT OF ENERGY AND CLIMATE CHANGE,THE COAL AUTHORITY,17/05/2016,Legal - General,Mining Reports Retail,Dla Piper Uk Llp,1296,7086.00
DEPARTMENT OF ENERGY AND CLIMATE CHANGE,THE COAL AUTHORITY,11/05/2016,Other Hosting / IaaS,Mining Reports Retail,Bytemark Limited,1007,124.00
DEPARTMENT OF ENERGY AND CLIMATE CHANGE,THE COAL AUTHORITY,01/05/2016,Postage & Couriers,Mining Reports Retail,Security Plus Limited,732,46.00
DEPARTMENT OF ENERGY AND CLIMATE CHANGE,THE COAL AUTHORITY,31/03/2016,Requests For Change,Mining Reports Retail,Scisys Uk Ltd,909,2493.00
DEPARTMENT OF ENERGY AND CLIMATE CHANGE,THE COAL AUTHORITY,13/05/2016,Requests For Change,Mining Reports Retail,Scisys Uk Ltd,1289,1464.35
DEPARTMENT OF ENERGY AND CLIMATE CHANGE,THE COAL AUTHORITY,18/04/2016,Software Support & Maintenance - On Premise,Mining Reports Retail,Computacenter (Uk) Ltd,910,30374.99
DEPARTMENT OF ENERGY AND CLIMATE CHANGE,THE COAL AUTHORITY,24/05/2016,Subsistence Allowances,Mining Reports Retail,Accruals - Staff Expenses Control,1379,22.62
DEPARTMENT OF ENERGY AND CLIMATE CHANGE,THE COAL AUTHORITY,29/04/2016,Temporary Contractors,Mining Reports Retail,Key Personnel Solutions Ltd,686,857.56
DEPARTMENT OF ENERGY AND CLIMATE CHANGE,THE COAL AUTHORITY,06/05/2016,Temporary Contractors,Mining Reports Retail,Key Personnel Solutions Ltd,965,410.01
DEPARTMENT OF ENERGY AND CLIMATE CHANGE,THE COAL AUTHORITY,06/05/2016,Temporary Contractors,Mining Reports Retail,Key Personnel Solutions Ltd,965,435.93
DEPARTMENT OF ENERGY AND CLIMATE CHANGE,THE COAL AUTHORITY,13/05/2016,Temporary Contractors,Mining Reports Retail,Key Personnel Solutions Ltd,1162,435.93
DEPARTMENT OF ENERGY AND CLIMATE CHANGE,THE COAL AUTHORITY,13/05/2016,Temporary Contractors,Mining Reports Retail,Key Personnel Solutions Ltd,1162,416.16
DEPARTMENT OF ENERGY AND CLIMATE CHANGE,THE COAL AUTHORITY,13/05/2016,Temporary Contractors,Mining Reports Retail,Key Personnel Solutions Ltd,1162,416.67
DEPARTMENT OF ENERGY AND CLIMATE CHANGE,THE COAL AUTHORITY,20/05/2016,Temporary Contractors,Mining Reports Retail,Key Personnel Solutions Ltd,1367,242.76
DEPARTMENT OF ENERGY AND CLIMATE CHANGE,THE COAL AUTHORITY,20/05/2016,Temporary Contractors,Mining Reports Retail,Key Personnel Solutions Ltd,1367,556.14
DEPARTMENT OF ENERGY AND CLIMATE CHANGE,THE COAL AUTHORITY,20/05/2016,Temporary Contractors,Mining Reports Retail,Key Personnel Solutions Ltd,1367,414.63
DEPARTMENT OF ENERGY AND CLIMATE CHANGE,THE COAL AUTHORITY,05/05/2016,Training & Education,Mining Reports Retail,Sucessful Training,1019,2584.00
DEPARTMENT OF ENERGY AND CLIMATE CHANGE,THE COAL AUTHORITY,30/04/2016,Fares - Rail,Procurement,Redfern Travel Ltd,886,306.86
DEPARTMENT OF ENERGY AND CLIMATE CHANGE,THE COAL AUTHORITY,09/05/2016,Applications Consultancy,PS&S - Commercial Delivery,Scisys Uk Ltd,996,120.84
DEPARTMENT OF ENERGY AND CLIMATE CHANGE,THE COAL AUTHORITY,23/05/2016,Applications Consultancy,PS&S - Commercial Delivery,Nowcomm,1440,1265.63
DEPARTMENT OF ENERGY AND CLIMATE CHANGE,THE COAL AUTHORITY,27/04/2016,Fuel (Vehicle),PS&S - Commercial Delivery,Allstar Business Solutions Ltd,646,41.01
DEPARTMENT OF ENERGY AND CLIMATE CHANGE,THE COAL AUTHORITY,04/05/2016,Fuel (Vehicle),PS&S - Commercial Delivery,Allstar Business Solutions Ltd,836,59.20
DEPARTMENT OF ENERGY AND CLIMATE CHANGE,THE COAL AUTHORITY,11/05/2016,Fuel (Vehicle),PS&S - Commercial Delivery,Allstar Business Solutions Ltd,1079,63.35
DEPARTMENT OF ENERGY AND CLIMATE CHANGE,THE COAL AUTHORITY,18/05/2016,Fuel (Vehicle),PS&S - Commercial Delivery,Allstar Business Solutions Ltd,1235,45.70
DEPARTMENT OF ENERGY AND CLIMATE CHANGE,THE COAL AUTHORITY,27/05/2016,Fuel (Vehicle),PS&S - Commercial Delivery,VAT RECLMD PM BUSNESS MLGE,1515,-53.11
DEPARTMENT OF ENERGY AND CLIMATE CHANGE,THE COAL AUTHORITY,25/05/2016,Fuel (Vehicle),PS&S - Commercial Delivery,Allstar Business Solutions Ltd,1525,60.78
DEPARTMENT OF ENERGY AND CLIMATE CHANGE,THE COAL AUTHORITY,29/04/2016,Mine Entry Inspection - Contractor & Claim Costs,PS&S - Commercial Delivery,Alliance Contracting Solutions Ltd,719,42.40
DEPARTMENT OF ENERGY AND CLIMATE CHANGE,THE COAL AUTHORITY,06/05/2016,Mine Entry Inspection - Contractor & Claim Costs,PS&S - Commercial Delivery,Llettyshenkin Cons Co Ltd,882,682.50
DEPARTMENT OF ENERGY AND CLIMATE CHANGE,THE COAL AUTHORITY,22/04/2016,Mine Entry Inspection - Contractor & Claim Costs,PS&S - Commercial Delivery,Registers Of Scotland,1311,20.00
DEPARTMENT OF ENERGY AND CLIMATE CHANGE,THE COAL AUTHORITY,24/04/2016,Mine Entry Inspection - Contractor & Claim Costs,PS&S - Commercial Delivery,Registers Of Scotland,1312,20.00
DEPARTMENT OF ENERGY AND CLIMATE CHANGE,THE COAL AUTHORITY,23/05/2016,Mine Entry Inspection - Contractor & Claim Costs,PS&S - Commercial Delivery,Cornerstone  Projects Ltd,1346,58.00
DEPARTMENT OF ENERGY AND CLIMATE CHANGE,THE COAL AUTHORITY,23/05/2016,Mine Entry Inspection - Contractor & Claim Costs,PS&S - Commercial Delivery,Jim Davies Civil Engineering,1404,458.05
DEPARTMENT OF ENERGY AND CLIMATE CHANGE,THE COAL AUTHORITY,23/05/2016,Mine Entry Inspection - Contractor & Claim Costs,PS&S - Commercial Delivery,Jim Davies Civil Engineering,1406,1250.00
DEPARTMENT OF ENERGY AND CLIMATE CHANGE,THE COAL AUTHORITY,23/05/2016,Mine Entry Inspection - Contractor & Claim Costs,PS&S - Commercial Delivery,Jim Davies Civil Engineering,1408,1000.00
DEPARTMENT OF ENERGY AND CLIMATE CHANGE,THE COAL AUTHORITY,26/05/2016,Mine Entry Inspection - Contractor & Claim Costs,PS&S - Commercial Delivery,Llettyshenkin Cons Co Ltd,1476,460.00
DEPARTMENT OF ENERGY AND CLIMATE CHANGE,THE COAL AUTHORITY,23/05/2016,Mine Entry Inspection - Contractor & Claim Costs,PS&S - Commercial Delivery,Balfour Beatty Civil Eng Ltd,1494,5278.52
DEPARTMENT OF ENERGY AND CLIMATE CHANGE,THE COAL AUTHORITY,14/05/2016,Office Telephony - Line Rent,PS&S - Commercial Delivery,British Telecommunications Plc,1465,2328.09
DEPARTMENT OF ENERGY AND CLIMATE CHANGE,THE COAL AUTHORITY,13/05/2016,Requests For Change,PS&S - Commercial Delivery,Scisys Uk Ltd,1289,585.74
DEPARTMENT OF ENERGY AND CLIMATE CHANGE,THE COAL AUTHORITY,13/05/2016,Requests For Change,PS&S - Commercial Delivery,Scisys Uk Ltd,1289,292.87
DEPARTMENT OF ENERGY AND CLIMATE CHANGE,THE COAL AUTHORITY,18/04/2016,Software Support & Maintenance - On Premise,PS&S - Commercial Delivery,Computacenter (Uk) Ltd,910,7593.75
DEPARTMENT OF ENERGY AND CLIMATE CHANGE,THE COAL AUTHORITY,30/04/2016,Tips - Maintenance,PS&S - Commercial Delivery,United Utilities Water Plc,1032,534.49
DEPARTMENT OF ENERGY AND CLIMATE CHANGE,THE COAL AUTHORITY,12/05/2016,Tips - Maintenance,PS&S - Commercial Delivery,Onsite Central Limited,1117,8274.00
DEPARTMENT OF ENERGY AND CLIMATE CHANGE,THE COAL AUTHORITY,20/05/2016,Tips - Maintenance,PS&S - Commercial Delivery,R Jackson,1274,500.00
DEPARTMENT OF ENERGY AND CLIMATE CHANGE,THE COAL AUTHORITY,23/05/2016,Tips - Maintenance,PS&S - Commercial Delivery,Jim Davies Civil Engineering,1405,906.56
DEPARTMENT OF ENERGY AND CLIMATE CHANGE,THE COAL AUTHORITY,17/05/2016,Tips - Outsourced Management,PS&S - Commercial Delivery,Halcrow Group Limited,1314,3559.00
DEPARTMENT OF ENERGY AND CLIMATE CHANGE,THE COAL AUTHORITY,17/05/2016,Legal - General,PS&S - Daw Mill,Dla Piper Uk Llp,1296,741.00
DEPARTMENT OF ENERGY AND CLIMATE CHANGE,THE COAL AUTHORITY,30/04/2016,Subsidence - Contractor & Claim Costs,PS&S - Daw Mill,Hardyman & Co Ltd,753,7792.85
DEPARTMENT OF ENERGY AND CLIMATE CHANGE,THE COAL AUTHORITY,30/04/2016,Subsidence - Contractor & Claim Costs,PS&S - Daw Mill,Studio-G Architecture Llp,775,2044.25
DEPARTMENT OF ENERGY AND CLIMATE CHANGE,THE COAL AUTHORITY,13/05/2016,Subsidence - Contractor & Claim Costs,PS&S - Daw Mill,D S Williams Painters & Decs,1086,27569.87
DEPARTMENT OF ENERGY AND CLIMATE CHANGE,THE COAL AUTHORITY,16/05/2016,Subsidence - Contractor & Claim Costs,PS&S - Daw Mill,Mrs Dyde,1094,33000.00
DEPARTMENT OF ENERGY AND CLIMATE CHANGE,THE COAL AUTHORITY,16/05/2016,Subsidence - Contractor & Claim Costs,PS&S - Daw Mill,Mrs Evans,1096,3686.33
DEPARTMENT OF ENERGY AND CLIMATE CHANGE,THE COAL AUTHORITY,16/05/2016,Subsidence - Contractor & Claim Costs,PS&S - Daw Mill,Mr D Howl,1097,250.00
DEPARTMENT OF ENERGY AND CLIMATE CHANGE,THE COAL AUTHORITY,23/05/2016,Subsidence - Contractor & Claim Costs,PS&S - Daw Mill,Mr F Loach,1307,15276.69
DEPARTMENT OF ENERGY AND CLIMATE CHANGE,THE COAL AUTHORITY,06/04/2016,Subsidence - Contractor & Claim Costs,PS&S - Daw Mill,Interlock Surveys,1315,950.00
DEPARTMENT OF ENERGY AND CLIMATE CHANGE,THE COAL AUTHORITY,30/04/2016,Hotel & Accommodation,PS&S - Engineering,Redfern Travel Ltd,888,619.10
DEPARTMENT OF ENERGY AND CLIMATE CHANGE,THE COAL AUTHORITY,14/05/2016,Office Telephony - Call Charges,PS&S - Engineering,British Telecommunications Plc,1465,27.09
DEPARTMENT OF ENERGY AND CLIMATE CHANGE,THE COAL AUTHORITY,24/04/2016,Temporary Contractors,PS&S - Engineering,Venture Finance Plc,669,943.67
DEPARTMENT OF ENERGY AND CLIMATE CHANGE,THE COAL AUTHORITY,08/05/2016,Temporary Contractors,PS&S - Engineering,Venture Finance Plc,1021,866.32
DEPARTMENT OF ENERGY AND CLIMATE CHANGE,THE COAL AUTHORITY,08/05/2016,Temporary Contractors,PS&S - Engineering,Venture Finance Plc,1022,959.14
DEPARTMENT OF ENERGY AND CLIMATE CHANGE,THE COAL AUTHORITY,15/05/2016,Temporary Contractors,PS&S - Engineering,Venture Finance Plc,1297,1036.49
DEPARTMENT OF ENERGY AND CLIMATE CHANGE,THE COAL AUTHORITY,22/05/2016,Temporary Contractors,PS&S - Engineering,Venture Finance Plc,1480,1005.55
DEPARTMENT OF ENERGY AND CLIMATE CHANGE,THE COAL AUTHORITY,09/05/2016,Applications Consultancy,PS&S - General Claims,Scisys Uk Ltd,996,120.85
DEPARTMENT OF ENERGY AND CLIMATE CHANGE,THE COAL AUTHORITY,23/05/2016,Applications Consultancy,PS&S - General Claims,Nowcomm,1440,1265.63
DEPARTMENT OF ENERGY AND CLIMATE CHANGE,THE COAL AUTHORITY,29/04/2016,Bridgewater - Contractor & Claim Costs,PS&S - General Claims,The Bridgewater Canal Co Ltd,780,946.00
DEPARTMENT OF ENERGY AND CLIMATE CHANGE,THE COAL AUTHORITY,06/05/2016,Bridgewater - Contractor & Claim Costs,PS&S - General Claims,The Bridgewater Canal Co Ltd,876,2193.00
DEPARTMENT OF ENERGY AND CLIMATE CHANGE,THE COAL AUTHORITY,06/05/2016,Bridgewater - Contractor & Claim Costs,PS&S - General Claims,The Bridgewater Canal Co Ltd,877,8707.50
DEPARTMENT OF ENERGY AND CLIMATE CHANGE,THE COAL AUTHORITY,06/05/2016,Bridgewater - Contractor & Claim Costs,PS&S - General Claims,The Bridgewater Canal Co Ltd,878,640.68
DEPARTMENT OF ENERGY AND CLIMATE CHANGE,THE COAL AUTHORITY,06/05/2016,Bridgewater - Contractor & Claim Costs,PS&S - General Claims,The Bridgewater Canal Co Ltd,879,903.00
DEPARTMENT OF ENERGY AND CLIMATE CHANGE,THE COAL AUTHORITY,06/05/2016,Bridgewater - Contractor & Claim Costs,PS&S - General Claims,The Bridgewater Canal Co Ltd,880,4940.60
DEPARTMENT OF ENERGY AND CLIMATE CHANGE,THE COAL AUTHORITY,16/04/2016,Contract Hire Vehicles,PS&S - General Claims,Lex Autolease Ltd,727,10524.48
DEPARTMENT OF ENERGY AND CLIMATE CHANGE,THE COAL AUTHORITY,27/04/2016,Fuel (Vehicle),PS&S - General Claims,Allstar Business Solutions Ltd,640,54.13
DEPARTMENT OF ENERGY AND CLIMATE CHANGE,THE COAL AUTHORITY,27/04/2016,Fuel (Vehicle),PS&S - General Claims,Allstar Business Solutions Ltd,641,67.94
DEPARTMENT OF ENERGY AND CLIMATE CHANGE,THE COAL AUTHORITY,27/04/2016,Fuel (Vehicle),PS&S - General Claims,Allstar Business Solutions Ltd,642,46.09
DEPARTMENT OF ENERGY AND CLIMATE CHANGE,THE COAL AUTHORITY,27/04/2016,Fuel (Vehicle),PS&S - General Claims,Allstar Business Solutions Ltd,644,42.28
DEPARTMENT OF ENERGY AND CLIMATE CHANGE,THE COAL AUTHORITY,27/04/2016,Fuel (Vehicle),PS&S - General Claims,Allstar Business Solutions Ltd,645,48.02
DEPARTMENT OF ENERGY AND CLIMATE CHANGE,THE COAL AUTHORITY,27/04/2016,Fuel (Vehicle),PS&S - General Claims,Allstar Business Solutions Ltd,647,57.28
DEPARTMENT OF ENERGY AND CLIMATE CHANGE,THE COAL AUTHORITY,27/04/2016,Fuel (Vehicle),PS&S - General Claims,Allstar Business Solutions Ltd,648,38.24
DEPARTMENT OF ENERGY AND CLIMATE CHANGE,THE COAL AUTHORITY,04/05/2016,Fuel (Vehicle),PS&S - General Claims,Allstar Business Solutions Ltd,842,61.25
DEPARTMENT OF ENERGY AND CLIMATE CHANGE,THE COAL AUTHORITY,04/05/2016,Fuel (Vehicle),PS&S - General Claims,Allstar Business Solutions Ltd,843,87.25
DEPARTMENT OF ENERGY AND CLIMATE CHANGE,THE COAL AUTHORITY,11/05/2016,Fuel (Vehicle),PS&S - General Claims,Allstar Business Solutions Ltd,1069,67.43
DEPARTMENT OF ENERGY AND CLIMATE CHANGE,THE COAL AUTHORITY,11/05/2016,Fuel (Vehicle),PS&S - General Claims,Allstar Business Solutions Ltd,1070,49.98
DEPARTMENT OF ENERGY AND CLIMATE CHANGE,THE COAL AUTHORITY,11/05/2016,Fuel (Vehicle),PS&S - General Claims,Allstar Business Solutions Ltd,1071,53.16
DEPARTMENT OF ENERGY AND CLIMATE CHANGE,THE COAL AUTHORITY,11/05/2016,Fuel (Vehicle),PS&S - General Claims,Allstar Business Solutions Ltd,1072,54.25
DEPARTMENT OF ENERGY AND CLIMATE CHANGE,THE COAL AUTHORITY,11/05/2016,Fuel (Vehicle),PS&S - General Claims,Allstar Business Solutions Ltd,1073,116.84
DEPARTMENT OF ENERGY AND CLIMATE CHANGE,THE COAL AUTHORITY,11/05/2016,Fuel (Vehicle),PS&S - General Claims,Allstar Business Solutions Ltd,1076,51.01
DEPARTMENT OF ENERGY AND CLIMATE CHANGE,THE COAL AUTHORITY,11/05/2016,Fuel (Vehicle),PS&S - General Claims,Allstar Business Solutions Ltd,1077,37.89
DEPARTMENT OF ENERGY AND CLIMATE CHANGE,THE COAL AUTHORITY,11/05/2016,Fuel (Vehicle),PS&S - General Claims,Allstar Business Solutions Ltd,1078,70.02
DEPARTMENT OF ENERGY AND CLIMATE CHANGE,THE COAL AUTHORITY,18/05/2016,Fuel (Vehicle),PS&S - General Claims,Allstar Business Solutions Ltd,1232,58.54
DEPARTMENT OF ENERGY AND CLIMATE CHANGE,THE COAL AUTHORITY,18/05/2016,Fuel (Vehicle),PS&S - General Claims,Allstar Business Solutions Ltd,1233,66.70
DEPARTMENT OF ENERGY AND CLIMATE CHANGE,THE COAL AUTHORITY,18/05/2016,Fuel (Vehicle),PS&S - General Claims,Allstar Business Solutions Ltd,1236,109.61
DEPARTMENT OF ENERGY AND CLIMATE CHANGE,THE COAL AUTHORITY,18/05/2016,Fuel (Vehicle),PS&S - General Claims,Allstar Business Solutions Ltd,1237,37.40
DEPARTMENT OF ENERGY AND CLIMATE CHANGE,THE COAL AUTHORITY,18/05/2016,Fuel (Vehicle),PS&S - General Claims,Allstar Business Solutions Ltd,1238,52.28
DEPARTMENT OF ENERGY AND CLIMATE CHANGE,THE COAL AUTHORITY,18/05/2016,Fuel (Vehicle),PS&S - General Claims,Allstar Business Solutions Ltd,1239,61.00
DEPARTMENT OF ENERGY AND CLIMATE CHANGE,THE COAL AUTHORITY,18/05/2016,Fuel (Vehicle),PS&S - General Claims,Allstar Business Solutions Ltd,1242,55.18
DEPARTMENT OF ENERGY AND CLIMATE CHANGE,THE COAL AUTHORITY,27/05/2016,Fuel (Vehicle),PS&S - General Claims,VAT RECLMD PM BUSNESS MLGE,1515,-206.75
DEPARTMENT OF ENERGY AND CLIMATE CHANGE,THE COAL AUTHORITY,25/05/2016,Fuel (Vehicle),PS&S - General Claims,Allstar Business Solutions Ltd,1523,44.45
DEPARTMENT OF ENERGY AND CLIMATE CHANGE,THE COAL AUTHORITY,25/05/2016,Fuel (Vehicle),PS&S - General Claims,Allstar Business Solutions Ltd,1524,42.28
DEPARTMENT OF ENERGY AND CLIMATE CHANGE,THE COAL AUTHORITY,25/05/2016,Fuel (Vehicle),PS&S - General Claims,Allstar Business Solutions Ltd,1528,64.42
DEPARTMENT OF ENERGY AND CLIMATE CHANGE,THE COAL AUTHORITY,25/05/2016,Fuel (Vehicle),PS&S - General Claims,Allstar Business Solutions Ltd,1529,106.23
DEPARTMENT OF ENERGY AND CLIMATE CHANGE,THE COAL AUTHORITY,25/05/2016,Fuel (Vehicle),PS&S - General Claims,Allstar Business Solutions Ltd,1530,46.01
DEPARTMENT OF ENERGY AND CLIMATE CHANGE,THE COAL AUTHORITY,25/05/2016,Fuel (Vehicle),PS&S - General Claims,Allstar Business Solutions Ltd,1531,62.28
DEPARTMENT OF ENERGY AND CLIMATE CHANGE,THE COAL AUTHORITY,25/05/2016,Fuel (Vehicle),PS&S - General Claims,Allstar Business Solutions Ltd,1532,65.14
DEPARTMENT OF ENERGY AND CLIMATE CHANGE,THE COAL AUTHORITY,30/04/2016,Hotel & Accommodation,PS&S - General Claims,Redfern Travel Ltd,888,755.81
DEPARTMENT OF ENERGY AND CLIMATE CHANGE,THE COAL AUTHORITY,17/05/2016,Legal - General,PS&S - General Claims,Dla Piper Uk Llp,1296,158359.94
DEPARTMENT OF ENERGY AND CLIMATE CHANGE,THE COAL AUTHORITY,06/05/2016,Legal - Property Title Search,PS&S - General Claims,Land Registry,875,12.00
DEPARTMENT OF ENERGY AND CLIMATE CHANGE,THE COAL AUTHORITY,18/05/2016,Legal - Property Title Search,PS&S - General Claims,Land Registry,1283,18.00
DEPARTMENT OF ENERGY AND CLIMATE CHANGE,THE COAL AUTHORITY,20/05/2016,Legal - Property Title Search,PS&S - General Claims,Land Registry,1284,12.00
DEPARTMENT OF ENERGY AND CLIMATE CHANGE,THE COAL AUTHORITY,18/05/2016,Legal - Property Title Search,PS&S - General Claims,Land Registry,1305,18.00
DEPARTMENT OF ENERGY AND CLIMATE CHANGE,THE COAL AUTHORITY,27/05/2016,Legal - Property Title Search,PS&S - General Claims,Land Registry,1537,12.00
DEPARTMENT OF ENERGY AND CLIMATE CHANGE,THE COAL AUTHORITY,11/05/2016,Mileage Payments,PS&S - General Claims,Accruals - Staff Expenses Control,980,38.95
DEPARTMENT OF ENERGY AND CLIMATE CHANGE,THE COAL AUTHORITY,24/05/2016,Mine Entry Inspection - Outsourced Management,PS&S - General Claims,Mines Rescue Service Limited,1396,1092.00
DEPARTMENT OF ENERGY AND CLIMATE CHANGE,THE COAL AUTHORITY,13/05/2016,Requests For Change,PS&S - General Claims,Scisys Uk Ltd,1289,1757.22
DEPARTMENT OF ENERGY AND CLIMATE CHANGE,THE COAL AUTHORITY,18/04/2016,Software Support & Maintenance - On Premise,PS&S - General Claims,Computacenter (Uk) Ltd,910,7593.75
DEPARTMENT OF ENERGY AND CLIMATE CHANGE,THE COAL AUTHORITY,10/03/2016,Software Support & Maintenance - On Premise,PS&S - General Claims,Xp Solutions Software Ltd,913,1737.00
DEPARTMENT OF ENERGY AND CLIMATE CHANGE,THE COAL AUTHORITY,17/05/2016,Software Support & Maintenance - On Premise,PS&S - General Claims,Trimble Solutions UK Ltd,1316,1120.00
DEPARTMENT OF ENERGY AND CLIMATE CHANGE,THE COAL AUTHORITY,26/04/2016,Subsidence - Consultancy,PS&S - General Claims,Aecom Infrastructure & Env,777,48927.93
DEPARTMENT OF ENERGY AND CLIMATE CHANGE,THE COAL AUTHORITY,29/04/2016,Subsidence - Contractor & Claim Costs,PS&S - General Claims,Alliance Contracting Solutions Ltd,629,23696.00
DEPARTMENT OF ENERGY AND CLIMATE CHANGE,THE COAL AUTHORITY,03/05/2016,Subsidence - Contractor & Claim Costs,PS&S - General Claims,Pecks Storage Ltd,677,146.64
DEPARTMENT OF ENERGY AND CLIMATE CHANGE,THE COAL AUTHORITY,03/05/2016,Subsidence - Contractor & Claim Costs,PS&S - General Claims,J Wood,678,1127.00
DEPARTMENT OF ENERGY AND CLIMATE CHANGE,THE COAL AUTHORITY,03/05/2016,Subsidence - Contractor & Claim Costs,PS&S - General Claims,Sarah Mains Residential Ltd,684,675.00
DEPARTMENT OF ENERGY AND CLIMATE CHANGE,THE COAL AUTHORITY,29/04/2016,Subsidence - Contractor & Claim Costs,PS&S - General Claims,Alliance Contracting Solutions Ltd,708,506.00
DEPARTMENT OF ENERGY AND CLIMATE CHANGE,THE COAL AUTHORITY,29/04/2016,Subsidence - Contractor & Claim Costs,PS&S - General Claims,Alliance Contracting Solutions Ltd,720,47.75
DEPARTMENT OF ENERGY AND CLIMATE CHANGE,THE COAL AUTHORITY,05/05/2016,Subsidence - Contractor & Claim Costs,PS&S - General Claims,Mr C Maddison,789,4000.00
DEPARTMENT OF ENERGY AND CLIMATE CHANGE,THE COAL AUTHORITY,09/05/2016,Subsidence - Contractor & Claim Costs,PS&S - General Claims,Mr M Featherstone,923,1000.00
DEPARTMENT OF ENERGY AND CLIMATE CHANGE,THE COAL AUTHORITY,10/05/2016,Subsidence - Contractor & Claim Costs,PS&S - General Claims,Mr M Featherstone,963,356.20
DEPARTMENT OF ENERGY AND CLIMATE CHANGE,THE COAL AUTHORITY,10/05/2016,Subsidence - Contractor & Claim Costs,PS&S - General Claims,Soil Engineering Geoservices L,992,40207.85
DEPARTMENT OF ENERGY AND CLIMATE CHANGE,THE COAL AUTHORITY,10/05/2016,Subsidence - Contractor & Claim Costs,PS&S - General Claims,Llettyshenkin Cons Co Ltd,1014,1101.21
DEPARTMENT OF ENERGY AND CLIMATE CHANGE,THE COAL AUTHORITY,11/05/2016,Subsidence - Contractor & Claim Costs,PS&S - General Claims,Nal Plant Limited,1059,1841.35
DEPARTMENT OF ENERGY AND CLIMATE CHANGE,THE COAL AUTHORITY,13/05/2016,Subsidence - Contractor & Claim Costs,PS&S - General Claims,Cornerstone  Projects Ltd,1080,217.90
DEPARTMENT OF ENERGY AND CLIMATE CHANGE,THE COAL AUTHORITY,16/05/2016,Subsidence - Contractor & Claim Costs,PS&S - General Claims,M & C Morrison,1095,1350.00
DEPARTMENT OF ENERGY AND CLIMATE CHANGE,THE COAL AUTHORITY,11/03/2016,Subsidence - Contractor & Claim Costs,PS&S - General Claims,Valuation Office Agency,1151,4586.81
DEPARTMENT OF ENERGY AND CLIMATE CHANGE,THE COAL AUTHORITY,12/05/2016,Subsidence - Contractor & Claim Costs,PS&S - General Claims,Fife Council,1158,1104.00
DEPARTMENT OF ENERGY AND CLIMATE CHANGE,THE COAL AUTHORITY,29/04/2016,Subsidence - Contractor & Claim Costs,PS&S - General Claims,Cornerstone  Projects Ltd,1250,153.00
DEPARTMENT OF ENERGY AND CLIMATE CHANGE,THE COAL AUTHORITY,29/04/2016,Subsidence - Contractor & Claim Costs,PS&S - General Claims,Cornerstone  Projects Ltd,1256,58.00
DEPARTMENT OF ENERGY AND CLIMATE CHANGE,THE COAL AUTHORITY,20/05/2016,Subsidence - Contractor & Claim Costs,PS&S - General Claims,Culture & Sport Glasgow,1277,7902.47
DEPARTMENT OF ENERGY AND CLIMATE CHANGE,THE COAL AUTHORITY,17/05/2016,Subsidence - Contractor & Claim Costs,PS&S - General Claims,Wardell Armstrong Llp,1317,35561.93
DEPARTMENT OF ENERGY AND CLIMATE CHANGE,THE COAL AUTHORITY,23/05/2016,Subsidence - Contractor & Claim Costs,PS&S - General Claims,Cornerstone  Projects Ltd,1342,78.00
DEPARTMENT OF ENERGY AND CLIMATE CHANGE,THE COAL AUTHORITY,23/05/2016,Subsidence - Contractor & Claim Costs,PS&S - General Claims,Cornerstone  Projects Ltd,1348,271.90
DEPARTMENT OF ENERGY AND CLIMATE CHANGE,THE COAL AUTHORITY,17/05/2016,Subsidence - Contractor & Claim Costs,PS&S - General Claims,Northumbrian Water Limited,1389,94.26
DEPARTMENT OF ENERGY AND CLIMATE CHANGE,THE COAL AUTHORITY,23/05/2016,Subsidence - Contractor & Claim Costs,PS&S - General Claims,Jim Davies Civil Engineering,1407,275.40
DEPARTMENT OF ENERGY AND CLIMATE CHANGE,THE COAL AUTHORITY,23/05/2016,Subsidence - Contractor & Claim Costs,PS&S - General Claims,Jim Davies Civil Engineering,1409,281.70
DEPARTMENT OF ENERGY AND CLIMATE CHANGE,THE COAL AUTHORITY,23/05/2016,Subsidence - Contractor & Claim Costs,PS&S - General Claims,Jim Davies Civil Engineering,1410,3374.29
DEPARTMENT OF ENERGY AND CLIMATE CHANGE,THE COAL AUTHORITY,23/05/2016,Subsidence - Contractor & Claim Costs,PS&S - General Claims,Jim Davies Civil Engineering,1412,558.00
DEPARTMENT OF ENERGY AND CLIMATE CHANGE,THE COAL AUTHORITY,23/05/2016,Subsidence - Contractor & Claim Costs,PS&S - General Claims,Balfour Beatty Civil Eng Ltd,1491,2692.82
DEPARTMENT OF ENERGY AND CLIMATE CHANGE,THE COAL AUTHORITY,11/05/2016,Subsistence Allowances,PS&S - General Claims,Accruals - Staff Expenses Control,985,6.75
DEPARTMENT OF ENERGY AND CLIMATE CHANGE,THE COAL AUTHORITY,28/04/2016,Surface Hazards - Contractor & Claim Costs,PS&S - General Claims,Alliance Contracting Solutions Ltd,614,280.00
DEPARTMENT OF ENERGY AND CLIMATE CHANGE,THE COAL AUTHORITY,28/04/2016,Surface Hazards - Contractor & Claim Costs,PS&S - General Claims,Alliance Contracting Solutions Ltd,615,582.50
DEPARTMENT OF ENERGY AND CLIMATE CHANGE,THE COAL AUTHORITY,28/04/2016,Surface Hazards - Contractor & Claim Costs,PS&S - General Claims,Alliance Contracting Solutions Ltd,617,376.75
DEPARTMENT OF ENERGY AND CLIMATE CHANGE,THE COAL AUTHORITY,28/04/2016,Surface Hazards - Contractor & Claim Costs,PS&S - General Claims,Alliance Contracting Solutions Ltd,618,401.00
DEPARTMENT OF ENERGY AND CLIMATE CHANGE,THE COAL AUTHORITY,28/04/2016,Surface Hazards - Contractor & Claim Costs,PS&S - General Claims,Alliance Contracting Solutions Ltd,619,294.50
DEPARTMENT OF ENERGY AND CLIMATE CHANGE,THE COAL AUTHORITY,28/04/2016,Surface Hazards - Contractor & Claim Costs,PS&S - General Claims,Alliance Contracting Solutions Ltd,620,242.50
DEPARTMENT OF ENERGY AND CLIMATE CHANGE,THE COAL AUTHORITY,28/04/2016,Surface Hazards - Contractor & Claim Costs,PS&S - General Claims,Alliance Contracting Solutions Ltd,621,51.43
DEPARTMENT OF ENERGY AND CLIMATE CHANGE,THE COAL AUTHORITY,28/04/2016,Surface Hazards - Contractor & Claim Costs,PS&S - General Claims,Alliance Contracting Solutions Ltd,622,61.90
DEPARTMENT OF ENERGY AND CLIMATE CHANGE,THE COAL AUTHORITY,28/04/2016,Surface Hazards - Contractor & Claim Costs,PS&S - General Claims,Alliance Contracting Solutions Ltd,623,24.50
DEPARTMENT OF ENERGY AND CLIMATE CHANGE,THE COAL AUTHORITY,28/04/2016,Surface Hazards - Contractor & Claim Costs,PS&S - General Claims,Alliance Contracting Solutions Ltd,624,347.50
DEPARTMENT OF ENERGY AND CLIMATE CHANGE,THE COAL AUTHORITY,28/04/2016,Surface Hazards - Contractor & Claim Costs,PS&S - General Claims,Alliance Contracting Solutions Ltd,625,356.24
DEPARTMENT OF ENERGY AND CLIMATE CHANGE,THE COAL AUTHORITY,29/04/2016,Surface Hazards - Contractor & Claim Costs,PS&S - General Claims,Alliance Contracting Solutions Ltd,626,2172.40
DEPARTMENT OF ENERGY AND CLIMATE CHANGE,THE COAL AUTHORITY,29/04/2016,Surface Hazards - Contractor & Claim Costs,PS&S - General Claims,Alliance Contracting Solutions Ltd,628,8594.39
DEPARTMENT OF ENERGY AND CLIMATE CHANGE,THE COAL AUTHORITY,28/04/2016,Surface Hazards - Contractor & Claim Costs,PS&S - General Claims,Alliance Contracting Solutions Ltd,630,203.00
DEPARTMENT OF ENERGY AND CLIMATE CHANGE,THE COAL AUTHORITY,28/04/2016,Surface Hazards - Contractor & Claim Costs,PS&S - General Claims,Alliance Contracting Solutions Ltd,631,331.25
DEPARTMENT OF ENERGY AND CLIMATE CHANGE,THE COAL AUTHORITY,28/04/2016,Surface Hazards - Contractor & Claim Costs,PS&S - General Claims,Alliance Contracting Solutions Ltd,632,439.25
DEPARTMENT OF ENERGY AND CLIMATE CHANGE,THE COAL AUTHORITY,28/04/2016,Surface Hazards - Contractor & Claim Costs,PS&S - General Claims,Alliance Contracting Solutions Ltd,633,257.00
DEPARTMENT OF ENERGY AND CLIMATE CHANGE,THE COAL AUTHORITY,27/04/2016,Surface Hazards - Contractor & Claim Costs,PS&S - General Claims,Nal Plant Limited,652,188.37
DEPARTMENT OF ENERGY AND CLIMATE CHANGE,THE COAL AUTHORITY,29/04/2016,Surface Hazards - Contractor & Claim Costs,PS&S - General Claims,Alliance Contracting Solutions Ltd,709,265.00
DEPARTMENT OF ENERGY AND CLIMATE CHANGE,THE COAL AUTHORITY,29/04/2016,Surface Hazards - Contractor & Claim Costs,PS&S - General Claims,Alliance Contracting Solutions Ltd,710,306.50
DEPARTMENT OF ENERGY AND CLIMATE CHANGE,THE COAL AUTHORITY,29/04/2016,Surface Hazards - Contractor & Claim Costs,PS&S - General Claims,Alliance Contracting Solutions Ltd,711,275.00
DEPARTMENT OF ENERGY AND CLIMATE CHANGE,THE COAL AUTHORITY,29/04/2016,Surface Hazards - Contractor & Claim Costs,PS&S - General Claims,Alliance Contracting Solutions Ltd,712,795.63
DEPARTMENT OF ENERGY AND CLIMATE CHANGE,THE COAL AUTHORITY,29/04/2016,Surface Hazards - Contractor & Claim Costs,PS&S - General Claims,Alliance Contracting Solutions Ltd,713,327.85
DEPARTMENT OF ENERGY AND CLIMATE CHANGE,THE COAL AUTHORITY,29/04/2016,Surface Hazards - Contractor & Claim Costs,PS&S - General Claims,Alliance Contracting Solutions Ltd,714,289.25
DEPARTMENT OF ENERGY AND CLIMATE CHANGE,THE COAL AUTHORITY,29/04/2016,Surface Hazards - Contractor & Claim Costs,PS&S - General Claims,Alliance Contracting Solutions Ltd,715,276.00
DEPARTMENT OF ENERGY AND CLIMATE CHANGE,THE COAL AUTHORITY,29/04/2016,Surface Hazards - Contractor & Claim Costs,PS&S - General Claims,Alliance Contracting Solutions Ltd,716,185.70
DEPARTMENT OF ENERGY AND CLIMATE CHANGE,THE COAL AUTHORITY,29/04/2016,Surface Hazards - Contractor & Claim Costs,PS&S - General Claims,Alliance Contracting Solutions Ltd,717,124.28
DEPARTMENT OF ENERGY AND CLIMATE CHANGE,THE COAL AUTHORITY,29/04/2016,Surface Hazards - Contractor & Claim Costs,PS&S - General Claims,Alliance Contracting Solutions Ltd,718,375.00
DEPARTMENT OF ENERGY AND CLIMATE CHANGE,THE COAL AUTHORITY,29/04/2016,Surface Hazards - Contractor & Claim Costs,PS&S - General Claims,Alliance Contracting Solutions Ltd,721,268.55
DEPARTMENT OF ENERGY AND CLIMATE CHANGE,THE COAL AUTHORITY,29/04/2016,Surface Hazards - Contractor & Claim Costs,PS&S - General Claims,Alliance Contracting Solutions Ltd,722,167.13
DEPARTMENT OF ENERGY AND CLIMATE CHANGE,THE COAL AUTHORITY,29/04/2016,Surface Hazards - Contractor & Claim Costs,PS&S - General Claims,Alliance Contracting Solutions Ltd,723,306.05
DEPARTMENT OF ENERGY AND CLIMATE CHANGE,THE COAL AUTHORITY,29/04/2016,Surface Hazards - Contractor & Claim Costs,PS&S - General Claims,Alliance Contracting Solutions Ltd,724,417.50
DEPARTMENT OF ENERGY AND CLIMATE CHANGE,THE COAL AUTHORITY,29/04/2016,Surface Hazards - Contractor & Claim Costs,PS&S - General Claims,Alliance Contracting Solutions Ltd,725,531.43
DEPARTMENT OF ENERGY AND CLIMATE CHANGE,THE COAL AUTHORITY,29/04/2016,Surface Hazards - Contractor & Claim Costs,PS&S - General Claims,Alliance Contracting Solutions Ltd,726,312.13
DEPARTMENT OF ENERGY AND CLIMATE CHANGE,THE COAL AUTHORITY,29/04/2016,Surface Hazards - Contractor & Claim Costs,PS&S - General Claims,Alliance Contracting Solutions Ltd,731,219.63
DEPARTMENT OF ENERGY AND CLIMATE CHANGE,THE COAL AUTHORITY,29/04/2016,Surface Hazards - Contractor & Claim Costs,PS&S - General Claims,Alliance Contracting Solutions Ltd,738,237.85
DEPARTMENT OF ENERGY AND CLIMATE CHANGE,THE COAL AUTHORITY,29/04/2016,Surface Hazards - Contractor & Claim Costs,PS&S - General Claims,Alliance Contracting Solutions Ltd,739,224.70
DEPARTMENT OF ENERGY AND CLIMATE CHANGE,THE COAL AUTHORITY,29/04/2016,Surface Hazards - Contractor & Claim Costs,PS&S - General Claims,Alliance Contracting Solutions Ltd,740,77.14
DEPARTMENT OF ENERGY AND CLIMATE CHANGE,THE COAL AUTHORITY,29/04/2016,Surface Hazards - Contractor & Claim Costs,PS&S - General Claims,Alliance Contracting Solutions Ltd,741,2922.46
DEPARTMENT OF ENERGY AND CLIMATE CHANGE,THE COAL AUTHORITY,03/05/2016,Surface Hazards - Contractor & Claim Costs,PS&S - General Claims,Nal Plant Limited,848,311.44
DEPARTMENT OF ENERGY AND CLIMATE CHANGE,THE COAL AUTHORITY,06/05/2016,Surface Hazards - Contractor & Claim Costs,PS&S - General Claims,Furnace United Rugby Football CLub,868,4440.70
DEPARTMENT OF ENERGY AND CLIMATE CHANGE,THE COAL AUTHORITY,06/05/2016,Surface Hazards - Contractor & Claim Costs,PS&S - General Claims,Cornerstone  Projects Ltd,894,113.00
DEPARTMENT OF ENERGY AND CLIMATE CHANGE,THE COAL AUTHORITY,06/05/2016,Surface Hazards - Contractor & Claim Costs,PS&S - General Claims,Cornerstone  Projects Ltd,895,103.00
DEPARTMENT OF ENERGY AND CLIMATE CHANGE,THE COAL AUTHORITY,06/05/2016,Surface Hazards - Contractor & Claim Costs,PS&S - General Claims,Cornerstone  Projects Ltd,896,121.00
DEPARTMENT OF ENERGY AND CLIMATE CHANGE,THE COAL AUTHORITY,06/05/2016,Surface Hazards - Contractor & Claim Costs,PS&S - General Claims,Cornerstone  Projects Ltd,897,58.00
DEPARTMENT OF ENERGY AND CLIMATE CHANGE,THE COAL AUTHORITY,06/05/2016,Surface Hazards - Contractor & Claim Costs,PS&S - General Claims,Cornerstone  Projects Ltd,898,58.00
DEPARTMENT OF ENERGY AND CLIMATE CHANGE,THE COAL AUTHORITY,06/05/2016,Surface Hazards - Contractor & Claim Costs,PS&S - General Claims,Cornerstone  Projects Ltd,899,153.00
DEPARTMENT OF ENERGY AND CLIMATE CHANGE,THE COAL AUTHORITY,06/05/2016,Surface Hazards - Contractor & Claim Costs,PS&S - General Claims,Cornerstone  Projects Ltd,900,262.90
DEPARTMENT OF ENERGY AND CLIMATE CHANGE,THE COAL AUTHORITY,06/05/2016,Surface Hazards - Contractor & Claim Costs,PS&S - General Claims,Cornerstone  Projects Ltd,901,237.90
DEPARTMENT OF ENERGY AND CLIMATE CHANGE,THE COAL AUTHORITY,09/05/2016,Surface Hazards - Contractor & Claim Costs,PS&S - General Claims,Durham County Council,921,11842.00
DEPARTMENT OF ENERGY AND CLIMATE CHANGE,THE COAL AUTHORITY,11/05/2016,Surface Hazards - Contractor & Claim Costs,PS&S - General Claims,Nal Plant Limited,1060,343.79
DEPARTMENT OF ENERGY AND CLIMATE CHANGE,THE COAL AUTHORITY,11/05/2016,Surface Hazards - Contractor & Claim Costs,PS&S - General Claims,Nal Plant Limited,1061,617.47
DEPARTMENT OF ENERGY AND CLIMATE CHANGE,THE COAL AUTHORITY,11/05/2016,Surface Hazards - Contractor & Claim Costs,PS&S - General Claims,Nal Plant Limited,1062,654.00
DEPARTMENT OF ENERGY AND CLIMATE CHANGE,THE COAL AUTHORITY,13/05/2016,Surface Hazards - Contractor & Claim Costs,PS&S - General Claims,Cornerstone  Projects Ltd,1081,103.00
DEPARTMENT OF ENERGY AND CLIMATE CHANGE,THE COAL AUTHORITY,13/05/2016,Surface Hazards - Contractor & Claim Costs,PS&S - General Claims,Cornerstone  Projects Ltd,1083,103.00
DEPARTMENT OF ENERGY AND CLIMATE CHANGE,THE COAL AUTHORITY,13/05/2016,Surface Hazards - Contractor & Claim Costs,PS&S - General Claims,Balfour Beatty Civil Eng Ltd,1109,487.26
DEPARTMENT OF ENERGY AND CLIMATE CHANGE,THE COAL AUTHORITY,13/05/2016,Surface Hazards - Contractor & Claim Costs,PS&S - General Claims,Balfour Beatty Civil Eng Ltd,1110,197.30
DEPARTMENT OF ENERGY AND CLIMATE CHANGE,THE COAL AUTHORITY,13/05/2016,Surface Hazards - Contractor & Claim Costs,PS&S - General Claims,Balfour Beatty Civil Eng Ltd,1111,160.29
DEPARTMENT OF ENERGY AND CLIMATE CHANGE,THE COAL AUTHORITY,12/05/2016,Surface Hazards - Contractor & Claim Costs,PS&S - General Claims,Onsite Central Limited,1113,934.50
DEPARTMENT OF ENERGY AND CLIMATE CHANGE,THE COAL AUTHORITY,13/05/2016,Surface Hazards - Contractor & Claim Costs,PS&S - General Claims,J Murphy & Sons Limited,1118,10268.04
DEPARTMENT OF ENERGY AND CLIMATE CHANGE,THE COAL AUTHORITY,17/05/2016,Surface Hazards - Contractor & Claim Costs,PS&S - General Claims,Balfour Beatty Civil Eng Ltd,1145,11476.50
DEPARTMENT OF ENERGY AND CLIMATE CHANGE,THE COAL AUTHORITY,17/05/2016,Surface Hazards - Contractor & Claim Costs,PS&S - General Claims,Balfour Beatty Civil Eng Ltd,1146,16518.62
DEPARTMENT OF ENERGY AND CLIMATE CHANGE,THE COAL AUTHORITY,09/05/2016,Surface Hazards - Contractor & Claim Costs,PS&S - General Claims,Newcastle City Council,1161,8412.17
DEPARTMENT OF ENERGY AND CLIMATE CHANGE,THE COAL AUTHORITY,17/05/2016,Surface Hazards - Contractor & Claim Costs,PS&S - General Claims,B A Hodgson,1165,1320.00
DEPARTMENT OF ENERGY AND CLIMATE CHANGE,THE COAL AUTHORITY,12/05/2016,Surface Hazards - Contractor & Claim Costs,PS&S - General Claims,West Star Property & Inv Lt,1191,45.83
DEPARTMENT OF ENERGY AND CLIMATE CHANGE,THE COAL AUTHORITY,29/04/2016,Surface Hazards - Contractor & Claim Costs,PS&S - General Claims,Cornerstone  Projects Ltd,1251,108.74
DEPARTMENT OF ENERGY AND CLIMATE CHANGE,THE COAL AUTHORITY,29/04/2016,Surface Hazards - Contractor & Claim Costs,PS&S - General Claims,Cornerstone  Projects Ltd,1252,103.00
DEPARTMENT OF ENERGY AND CLIMATE CHANGE,THE COAL AUTHORITY,29/04/2016,Surface Hazards - Contractor & Claim Costs,PS&S - General Claims,Cornerstone  Projects Ltd,1253,78.00
DEPARTMENT OF ENERGY AND CLIMATE CHANGE,THE COAL AUTHORITY,29/04/2016,Surface Hazards - Contractor & Claim Costs,PS&S - General Claims,Cornerstone  Projects Ltd,1254,153.00
DEPARTMENT OF ENERGY AND CLIMATE CHANGE,THE COAL AUTHORITY,29/04/2016,Surface Hazards - Contractor & Claim Costs,PS&S - General Claims,Cornerstone  Projects Ltd,1255,303.90
DEPARTMENT OF ENERGY AND CLIMATE CHANGE,THE COAL AUTHORITY,20/05/2016,Surface Hazards - Contractor & Claim Costs,PS&S - General Claims,Mr D Clarke,1273,55.88
DEPARTMENT OF ENERGY AND CLIMATE CHANGE,THE COAL AUTHORITY,20/04/2016,Surface Hazards - Contractor & Claim Costs,PS&S - General Claims,Network Rail,1313,-7412.86
DEPARTMENT OF ENERGY AND CLIMATE CHANGE,THE COAL AUTHORITY,23/05/2016,Surface Hazards - Contractor & Claim Costs,PS&S - General Claims,Cornerstone  Projects Ltd,1338,103.00
DEPARTMENT OF ENERGY AND CLIMATE CHANGE,THE COAL AUTHORITY,23/05/2016,Surface Hazards - Contractor & Claim Costs,PS&S - General Claims,Cornerstone  Projects Ltd,1339,106.00
DEPARTMENT OF ENERGY AND CLIMATE CHANGE,THE COAL AUTHORITY,23/05/2016,Surface Hazards - Contractor & Claim Costs,PS&S - General Claims,Cornerstone  Projects Ltd,1340,58.00
DEPARTMENT OF ENERGY AND CLIMATE CHANGE,THE COAL AUTHORITY,23/05/2016,Surface Hazards - Contractor & Claim Costs,PS&S - General Claims,Cornerstone  Projects Ltd,1341,58.00
DEPARTMENT OF ENERGY AND CLIMATE CHANGE,THE COAL AUTHORITY,23/05/2016,Surface Hazards - Contractor & Claim Costs,PS&S - General Claims,Cornerstone  Projects Ltd,1343,58.00
DEPARTMENT OF ENERGY AND CLIMATE CHANGE,THE COAL AUTHORITY,23/05/2016,Surface Hazards - Contractor & Claim Costs,PS&S - General Claims,Cornerstone  Projects Ltd,1344,103.00
DEPARTMENT OF ENERGY AND CLIMATE CHANGE,THE COAL AUTHORITY,23/05/2016,Surface Hazards - Contractor & Claim Costs,PS&S - General Claims,Cornerstone  Projects Ltd,1345,58.00
DEPARTMENT OF ENERGY AND CLIMATE CHANGE,THE COAL AUTHORITY,23/05/2016,Surface Hazards - Contractor & Claim Costs,PS&S - General Claims,Cornerstone  Projects Ltd,1347,103.00
DEPARTMENT OF ENERGY AND CLIMATE CHANGE,THE COAL AUTHORITY,25/05/2016,Surface Hazards - Contractor & Claim Costs,PS&S - General Claims,Alliance Contracting Solutions Ltd,1433,1189.87
DEPARTMENT OF ENERGY AND CLIMATE CHANGE,THE COAL AUTHORITY,25/05/2016,Surface Hazards - Contractor & Claim Costs,PS&S - General Claims,Alliance Contracting Solutions Ltd,1434,3063.21
DEPARTMENT OF ENERGY AND CLIMATE CHANGE,THE COAL AUTHORITY,25/05/2016,Surface Hazards - Contractor & Claim Costs,PS&S - General Claims,Alliance Contracting Solutions Ltd,1435,1766.62
DEPARTMENT OF ENERGY AND CLIMATE CHANGE,THE COAL AUTHORITY,25/05/2016,Surface Hazards - Contractor & Claim Costs,PS&S - General Claims,Alliance Contracting Solutions Ltd,1437,25096.66
DEPARTMENT OF ENERGY AND CLIMATE CHANGE,THE COAL AUTHORITY,25/05/2016,Surface Hazards - Contractor & Claim Costs,PS&S - General Claims,Alliance Contracting Solutions Ltd,1438,606.30
DEPARTMENT OF ENERGY AND CLIMATE CHANGE,THE COAL AUTHORITY,25/05/2016,Surface Hazards - Contractor & Claim Costs,PS&S - General Claims,Alliance Contracting Solutions Ltd,1439,40000.00
DEPARTMENT OF ENERGY AND CLIMATE CHANGE,THE COAL AUTHORITY,26/05/2016,Surface Hazards - Contractor & Claim Costs,PS&S - General Claims,John Murray,1464,1000.00
DEPARTMENT OF ENERGY AND CLIMATE CHANGE,THE COAL AUTHORITY,26/05/2016,Surface Hazards - Contractor & Claim Costs,PS&S - General Claims,Alliance Contracting Solutions Ltd,1474,1902.16
DEPARTMENT OF ENERGY AND CLIMATE CHANGE,THE COAL AUTHORITY,26/05/2016,Surface Hazards - Contractor & Claim Costs,PS&S - General Claims,Llettyshenkin Cons Co Ltd,1477,12149.83
DEPARTMENT OF ENERGY AND CLIMATE CHANGE,THE COAL AUTHORITY,26/05/2016,Surface Hazards - Contractor & Claim Costs,PS&S - General Claims,Llettyshenkin Cons Co Ltd,1478,440.30
DEPARTMENT OF ENERGY AND CLIMATE CHANGE,THE COAL AUTHORITY,26/05/2016,Surface Hazards - Contractor & Claim Costs,PS&S - General Claims,Llettyshenkin Cons Co Ltd,1479,2868.60
DEPARTMENT OF ENERGY AND CLIMATE CHANGE,THE COAL AUTHORITY,23/05/2016,Surface Hazards - Contractor & Claim Costs,PS&S - General Claims,Balfour Beatty Civil Eng Ltd,1486,12992.37
DEPARTMENT OF ENERGY AND CLIMATE CHANGE,THE COAL AUTHORITY,23/05/2016,Surface Hazards - Contractor & Claim Costs,PS&S - General Claims,Balfour Beatty Civil Eng Ltd,1488,1017.15
DEPARTMENT OF ENERGY AND CLIMATE CHANGE,THE COAL AUTHORITY,23/05/2016,Surface Hazards - Contractor & Claim Costs,PS&S - General Claims,Balfour Beatty Civil Eng Ltd,1489,1292.30
DEPARTMENT OF ENERGY AND CLIMATE CHANGE,THE COAL AUTHORITY,23/05/2016,Surface Hazards - Contractor & Claim Costs,PS&S - General Claims,Balfour Beatty Civil Eng Ltd,1493,439.12
DEPARTMENT OF ENERGY AND CLIMATE CHANGE,THE COAL AUTHORITY,23/05/2016,Surface Hazards - Contractor & Claim Costs,PS&S - General Claims,Balfour Beatty Civil Eng Ltd,1495,3827.65
DEPARTMENT OF ENERGY AND CLIMATE CHANGE,THE COAL AUTHORITY,28/04/2016,Surface Hazards - Equipment,PS&S - General Claims,Environmental Scientifics Grp,779,1640.72
DEPARTMENT OF ENERGY AND CLIMATE CHANGE,THE COAL AUTHORITY,25/05/2016,Surface Hazards - Equipment,PS&S - General Claims,Accruals - Staff Expenses Control,1413,25.95
DEPARTMENT OF ENERGY AND CLIMATE CHANGE,THE COAL AUTHORITY,24/05/2016,Surface Hazards - Outsourced Management,PS&S - General Claims,Mines Rescue Service Limited,1395,17800.00
DEPARTMENT OF ENERGY AND CLIMATE CHANGE,THE COAL AUTHORITY,29/01/2016,Training & Education,PS&S - General Claims,Symmons Madge Associates Llp,1156,698.05
DEPARTMENT OF ENERGY AND CLIMATE CHANGE,THE COAL AUTHORITY,29/04/2016,Subsidence - Contractor & Claim Costs,PS&S - Hatfield,Nal Plant Limited,650,259.95
DEPARTMENT OF ENERGY AND CLIMATE CHANGE,THE COAL AUTHORITY,29/04/2016,Subsidence - Contractor & Claim Costs,PS&S - Hatfield,Nal Plant Limited,653,491.89
DEPARTMENT OF ENERGY AND CLIMATE CHANGE,THE COAL AUTHORITY,26/04/2016,Subsidence - Contractor & Claim Costs,PS&S - Hatfield,Briggs Land Drainage & Excavations Ltd,656,670.00
DEPARTMENT OF ENERGY AND CLIMATE CHANGE,THE COAL AUTHORITY,03/05/2016,Subsidence - Contractor & Claim Costs,PS&S - Hatfield,C Goldthorpe & Sons,679,8214.00
DEPARTMENT OF ENERGY AND CLIMATE CHANGE,THE COAL AUTHORITY,03/05/2016,Subsidence - Contractor & Claim Costs,PS&S - Hatfield,J H Pickup & Co,680,250.00
DEPARTMENT OF ENERGY AND CLIMATE CHANGE,THE COAL AUTHORITY,29/04/2016,Subsidence - Contractor & Claim Costs,PS&S - Hatfield,Nal Plant Limited,849,491.90
DEPARTMENT OF ENERGY AND CLIMATE CHANGE,THE COAL AUTHORITY,05/05/2016,Subsidence - Contractor & Claim Costs,PS&S - Hatfield,Jeremy Benn Associates Ltd,869,5017.00
DEPARTMENT OF ENERGY AND CLIMATE CHANGE,THE COAL AUTHORITY,06/05/2016,Subsidence - Contractor & Claim Costs,PS&S - Hatfield,Jeremy Benn Associates Ltd,989,2237.50
DEPARTMENT OF ENERGY AND CLIMATE CHANGE,THE COAL AUTHORITY,17/05/2016,Subsidence - Contractor & Claim Costs,PS&S - Hatfield,Mr M Whiteley,1157,8339.19
DEPARTMENT OF ENERGY AND CLIMATE CHANGE,THE COAL AUTHORITY,26/05/2016,Subsidence - Contractor & Claim Costs,PS&S - Hatfield,Steve Vine Land Drainage Sltns,1416,35.00
DEPARTMENT OF ENERGY AND CLIMATE CHANGE,THE COAL AUTHORITY,26/05/2016,Subsidence - Contractor & Claim Costs,PS&S - Hatfield,Steve Vine Land Drainage Sltns,1417,175.00
DEPARTMENT OF ENERGY AND CLIMATE CHANGE,THE COAL AUTHORITY,26/05/2016,Subsidence - Contractor & Claim Costs,PS&S - Hatfield,Steve Vine Land Drainage Sltns,1418,35.00
DEPARTMENT OF ENERGY AND CLIMATE CHANGE,THE COAL AUTHORITY,26/05/2016,Subsidence - Contractor & Claim Costs,PS&S - Hatfield,Steve Vine Land Drainage Sltns,1419,35.00
DEPARTMENT OF ENERGY AND CLIMATE CHANGE,THE COAL AUTHORITY,26/05/2016,Subsidence - Contractor & Claim Costs,PS&S - Hatfield,Steve Vine Land Drainage Sltns,1420,35.00
DEPARTMENT OF ENERGY AND CLIMATE CHANGE,THE COAL AUTHORITY,26/05/2016,Subsidence - Contractor & Claim Costs,PS&S - Hatfield,Steve Vine Land Drainage Sltns,1421,35.00
DEPARTMENT OF ENERGY AND CLIMATE CHANGE,THE COAL AUTHORITY,26/05/2016,Subsidence - Contractor & Claim Costs,PS&S - Hatfield,Steve Vine Land Drainage Sltns,1422,350.00
DEPARTMENT OF ENERGY AND CLIMATE CHANGE,THE COAL AUTHORITY,26/05/2016,Subsidence - Contractor & Claim Costs,PS&S - Hatfield,Steve Vine Land Drainage Sltns,1423,35.00
DEPARTMENT OF ENERGY AND CLIMATE CHANGE,THE COAL AUTHORITY,26/05/2016,Subsidence - Contractor & Claim Costs,PS&S - Hatfield,Steve Vine Land Drainage Sltns,1424,140.00
DEPARTMENT OF ENERGY AND CLIMATE CHANGE,THE COAL AUTHORITY,26/05/2016,Subsidence - Contractor & Claim Costs,PS&S - Hatfield,Steve Vine Land Drainage Sltns,1425,625.00
DEPARTMENT OF ENERGY AND CLIMATE CHANGE,THE COAL AUTHORITY,26/05/2016,Subsidence - Contractor & Claim Costs,PS&S - Hatfield,Steve Vine Land Drainage Sltns,1426,400.00
DEPARTMENT OF ENERGY AND CLIMATE CHANGE,THE COAL AUTHORITY,26/05/2016,Subsidence - Contractor & Claim Costs,PS&S - Hatfield,Steve Vine Land Drainage Sltns,1427,200.00
DEPARTMENT OF ENERGY AND CLIMATE CHANGE,THE COAL AUTHORITY,26/05/2016,Subsidence - Contractor & Claim Costs,PS&S - Hatfield,Steve Vine Land Drainage Sltns,1428,175.00
DEPARTMENT OF ENERGY AND CLIMATE CHANGE,THE COAL AUTHORITY,26/05/2016,Subsidence - Contractor & Claim Costs,PS&S - Hatfield,Steve Vine Land Drainage Sltns,1429,245.00
DEPARTMENT OF ENERGY AND CLIMATE CHANGE,THE COAL AUTHORITY,26/05/2016,Subsidence - Contractor & Claim Costs,PS&S - Hatfield,Steve Vine Land Drainage Sltns,1431,245.00
DEPARTMENT OF ENERGY AND CLIMATE CHANGE,THE COAL AUTHORITY,26/05/2016,Subsidence - Contractor & Claim Costs,PS&S - Hatfield,Steve Vine Land Drainage Sltns,1432,2275.00
DEPARTMENT OF ENERGY AND CLIMATE CHANGE,THE COAL AUTHORITY,26/05/2016,Subsidence - Contractor & Claim Costs,PS&S - Hatfield,Mr P Waite,1467,73930.00
DEPARTMENT OF ENERGY AND CLIMATE CHANGE,THE COAL AUTHORITY,26/05/2016,Subsidence - Contractor & Claim Costs,PS&S - Hatfield,J H Pickup & Co,1496,2607.60
DEPARTMENT OF ENERGY AND CLIMATE CHANGE,THE COAL AUTHORITY,26/05/2016,Subsidence - Contractor & Claim Costs,PS&S - Hatfield,J H Pickup & Co,1503,789.00
DEPARTMENT OF ENERGY AND CLIMATE CHANGE,THE COAL AUTHORITY,17/05/2016,Contract Hire Vehicles,PS&S - Industry Claims,Lex Autolease Ltd,1393,-432.39
DEPARTMENT OF ENERGY AND CLIMATE CHANGE,THE COAL AUTHORITY,30/04/2016,Fares - Rail,PS&S - Industry Claims,Redfern Travel Ltd,886,197.44
DEPARTMENT OF ENERGY AND CLIMATE CHANGE,THE COAL AUTHORITY,27/04/2016,Fuel (Vehicle),PS&S - Industry Claims,Allstar Business Solutions Ltd,643,69.93
DEPARTMENT OF ENERGY AND CLIMATE CHANGE,THE COAL AUTHORITY,27/04/2016,Fuel (Vehicle),PS&S - Industry Claims,Allstar Business Solutions Ltd,649,52.28
DEPARTMENT OF ENERGY AND CLIMATE CHANGE,THE COAL AUTHORITY,04/05/2016,Fuel (Vehicle),PS&S - Industry Claims,Allstar Business Solutions Ltd,837,52.28
DEPARTMENT OF ENERGY AND CLIMATE CHANGE,THE COAL AUTHORITY,04/05/2016,Fuel (Vehicle),PS&S - Industry Claims,Allstar Business Solutions Ltd,840,51.84
DEPARTMENT OF ENERGY AND CLIMATE CHANGE,THE COAL AUTHORITY,04/05/2016,Fuel (Vehicle),PS&S - Industry Claims,Allstar Business Solutions Ltd,841,70.97
DEPARTMENT OF ENERGY AND CLIMATE CHANGE,THE COAL AUTHORITY,11/05/2016,Fuel (Vehicle),PS&S - Industry Claims,Allstar Business Solutions Ltd,1075,52.28
DEPARTMENT OF ENERGY AND CLIMATE CHANGE,THE COAL AUTHORITY,18/05/2016,Fuel (Vehicle),PS&S - Industry Claims,Allstar Business Solutions Ltd,1234,27.51
DEPARTMENT OF ENERGY AND CLIMATE CHANGE,THE COAL AUTHORITY,18/05/2016,Fuel (Vehicle),PS&S - Industry Claims,Allstar Business Solutions Ltd,1240,63.39
DEPARTMENT OF ENERGY AND CLIMATE CHANGE,THE COAL AUTHORITY,18/05/2016,Fuel (Vehicle),PS&S - Industry Claims,Allstar Business Solutions Ltd,1241,52.28
DEPARTMENT OF ENERGY AND CLIMATE CHANGE,THE COAL AUTHORITY,27/05/2016,Fuel (Vehicle),PS&S - Industry Claims,VAT RECLMD PM BUSNESS MLGE,1515,-84.19
DEPARTMENT OF ENERGY AND CLIMATE CHANGE,THE COAL AUTHORITY,25/05/2016,Fuel (Vehicle),PS&S - Industry Claims,Allstar Business Solutions Ltd,1526,114.36
DEPARTMENT OF ENERGY AND CLIMATE CHANGE,THE COAL AUTHORITY,25/05/2016,Fuel (Vehicle),PS&S - Industry Claims,Allstar Business Solutions Ltd,1527,42.72
DEPARTMENT OF ENERGY AND CLIMATE CHANGE,THE COAL AUTHORITY,30/04/2016,Hotel & Accommodation,PS&S - Industry Claims,Redfern Travel Ltd,888,1512.95
DEPARTMENT OF ENERGY AND CLIMATE CHANGE,THE COAL AUTHORITY,11/05/2016,Mileage Payments,PS&S - Industry Claims,Accruals - Staff Expenses Control,974,369.00
DEPARTMENT OF ENERGY AND CLIMATE CHANGE,THE COAL AUTHORITY,11/05/2016,Mileage Payments,PS&S - Industry Claims,Accruals - Staff Expenses Control,983,5.00
DEPARTMENT OF ENERGY AND CLIMATE CHANGE,THE COAL AUTHORITY,18/05/2016,Mileage Payments,PS&S - Industry Claims,Accruals - Staff Expenses Control,1214,446.68
DEPARTMENT OF ENERGY AND CLIMATE CHANGE,THE COAL AUTHORITY,24/05/2016,Mileage Payments,PS&S - Industry Claims,Accruals - Staff Expenses Control,1380,255.43
DEPARTMENT OF ENERGY AND CLIMATE CHANGE,THE COAL AUTHORITY,18/05/2016,Subsistence Allowances,PS&S - Industry Claims,Accruals - Staff Expenses Control,1215,3.92
DEPARTMENT OF ENERGY AND CLIMATE CHANGE,THE COAL AUTHORITY,20/05/2016,Subsistence Allowances,PS&S - Industry Claims,Royal Bank Of Scotland,1270,8.12
DEPARTMENT OF ENERGY AND CLIMATE CHANGE,THE COAL AUTHORITY,24/05/2016,Subsistence Allowances,PS&S - Industry Claims,Accruals - Staff Expenses Control,1380,15.69
DEPARTMENT OF ENERGY AND CLIMATE CHANGE,THE COAL AUTHORITY,06/05/2016,Sundry Office Expenses,PS&S - Industry Claims,Accruals - Staff Expenses Control,867,6.09
DEPARTMENT OF ENERGY AND CLIMATE CHANGE,THE COAL AUTHORITY,29/04/2016,Subsidence - Consultancy,PS&S - Kellingley,Valuation Office Agency,1085,1159.49
DEPARTMENT OF ENERGY AND CLIMATE CHANGE,THE COAL AUTHORITY,30/04/2016,Subsidence - Contractor & Claim Costs,PS&S - Kellingley,Briggs Land Drainage & Excavations Ltd,655,1772.40
DEPARTMENT OF ENERGY AND CLIMATE CHANGE,THE COAL AUTHORITY,03/05/2016,Subsidence - Contractor & Claim Costs,PS&S - Kellingley,Mr P Stansfield,681,2315.53
DEPARTMENT OF ENERGY AND CLIMATE CHANGE,THE COAL AUTHORITY,03/05/2016,Subsidence - Contractor & Claim Costs,PS&S - Kellingley,WILES & MAGUIRE,682,846.00
DEPARTMENT OF ENERGY AND CLIMATE CHANGE,THE COAL AUTHORITY,03/05/2016,Subsidence - Contractor & Claim Costs,PS&S - Kellingley,Townend Clegg & Co,683,2131.98
DEPARTMENT OF ENERGY AND CLIMATE CHANGE,THE COAL AUTHORITY,03/05/2016,Subsidence - Contractor & Claim Costs,PS&S - Kellingley,C Cooper & Sons,685,175.00
DEPARTMENT OF ENERGY AND CLIMATE CHANGE,THE COAL AUTHORITY,29/01/2016,Subsidence - Contractor & Claim Costs,PS&S - Kellingley,Neil Thompson,742,4332.04
DEPARTMENT OF ENERGY AND CLIMATE CHANGE,THE COAL AUTHORITY,30/04/2016,Subsidence - Contractor & Claim Costs,PS&S - Kellingley,Hardyman & Co Ltd,752,9352.46
DEPARTMENT OF ENERGY AND CLIMATE CHANGE,THE COAL AUTHORITY,01/05/2016,Subsidence - Contractor & Claim Costs,PS&S - Kellingley,Farrington Holmes Asbestos Solutions,782,150.00
DEPARTMENT OF ENERGY AND CLIMATE CHANGE,THE COAL AUTHORITY,01/05/2016,Subsidence - Contractor & Claim Costs,PS&S - Kellingley,Farrington Holmes Asbestos Solutions,783,150.00
DEPARTMENT OF ENERGY AND CLIMATE CHANGE,THE COAL AUTHORITY,01/05/2016,Subsidence - Contractor & Claim Costs,PS&S - Kellingley,Farrington Holmes Asbestos Solutions,785,150.00
DEPARTMENT OF ENERGY AND CLIMATE CHANGE,THE COAL AUTHORITY,01/05/2016,Subsidence - Contractor & Claim Costs,PS&S - Kellingley,Farrington Holmes Asbestos Solutions,786,150.00
DEPARTMENT OF ENERGY AND CLIMATE CHANGE,THE COAL AUTHORITY,01/05/2016,Subsidence - Contractor & Claim Costs,PS&S - Kellingley,Farrington Holmes Asbestos Solutions,787,175.00
DEPARTMENT OF ENERGY AND CLIMATE CHANGE,THE COAL AUTHORITY,06/05/2016,Subsidence - Contractor & Claim Costs,PS&S - Kellingley,K W Garden Maintenance & Landscaping,847,175.00
DEPARTMENT OF ENERGY AND CLIMATE CHANGE,THE COAL AUTHORITY,09/05/2016,Subsidence - Contractor & Claim Costs,PS&S - Kellingley,North Yorkshire County Council,918,23242.80
DEPARTMENT OF ENERGY AND CLIMATE CHANGE,THE COAL AUTHORITY,09/05/2016,Subsidence - Contractor & Claim Costs,PS&S - Kellingley,North Yorkshire County Council,919,67236.51
DEPARTMENT OF ENERGY AND CLIMATE CHANGE,THE COAL AUTHORITY,09/05/2016,Subsidence - Contractor & Claim Costs,PS&S - Kellingley,J Dixon & Son,920,52754.46
DEPARTMENT OF ENERGY AND CLIMATE CHANGE,THE COAL AUTHORITY,09/05/2016,Subsidence - Contractor & Claim Costs,PS&S - Kellingley,J H Pickup & Co,922,240.00
DEPARTMENT OF ENERGY AND CLIMATE CHANGE,THE COAL AUTHORITY,10/05/2016,Subsidence - Contractor & Claim Costs,PS&S - Kellingley,Ransomes Land & Mineral Surveyors,964,639.00
DEPARTMENT OF ENERGY AND CLIMATE CHANGE,THE COAL AUTHORITY,30/04/2016,Subsidence - Contractor & Claim Costs,PS&S - Kellingley,Ray Holt Land Drainage Ltd,993,8267.36
DEPARTMENT OF ENERGY AND CLIMATE CHANGE,THE COAL AUTHORITY,11/05/2016,Subsidence - Contractor & Claim Costs,PS&S - Kellingley,Bridgett Conservation Limited,997,21031.86
DEPARTMENT OF ENERGY AND CLIMATE CHANGE,THE COAL AUTHORITY,12/05/2016,Subsidence - Contractor & Claim Costs,PS&S - Kellingley,Farrington Holmes Asbestos Solutions,1087,175.00
DEPARTMENT OF ENERGY AND CLIMATE CHANGE,THE COAL AUTHORITY,16/05/2016,Subsidence - Contractor & Claim Costs,PS&S - Kellingley,Neil Thompson,1154,1843.79
DEPARTMENT OF ENERGY AND CLIMATE CHANGE,THE COAL AUTHORITY,13/05/2016,Subsidence - Contractor & Claim Costs,PS&S - Kellingley,Bradley Building Contractors,1155,2548.30
DEPARTMENT OF ENERGY AND CLIMATE CHANGE,THE COAL AUTHORITY,20/05/2016,Subsidence - Contractor & Claim Costs,PS&S - Kellingley,Mrs A Richardson,1271,45.00
DEPARTMENT OF ENERGY AND CLIMATE CHANGE,THE COAL AUTHORITY,20/05/2016,Subsidence - Contractor & Claim Costs,PS&S - Kellingley,Mr D Pickerill,1272,1480.00
DEPARTMENT OF ENERGY AND CLIMATE CHANGE,THE COAL AUTHORITY,20/05/2016,Subsidence - Contractor & Claim Costs,PS&S - Kellingley,Yorkshire Water,1275,75.84
DEPARTMENT OF ENERGY AND CLIMATE CHANGE,THE COAL AUTHORITY,20/05/2016,Subsidence - Contractor & Claim Costs,PS&S - Kellingley,Yorkshire Water,1276,53.75
DEPARTMENT OF ENERGY AND CLIMATE CHANGE,THE COAL AUTHORITY,20/05/2016,Subsidence - Contractor & Claim Costs,PS&S - Kellingley,Mr I Stringer,1278,210.00
DEPARTMENT OF ENERGY AND CLIMATE CHANGE,THE COAL AUTHORITY,23/05/2016,Subsidence - Contractor & Claim Costs,PS&S - Kellingley,Ransomes Land & Mineral Surveyors,1336,754.00
DEPARTMENT OF ENERGY AND CLIMATE CHANGE,THE COAL AUTHORITY,23/05/2016,Subsidence - Contractor & Claim Costs,PS&S - Kellingley,Ransomes Land & Mineral Surveyors,1337,529.00
DEPARTMENT OF ENERGY AND CLIMATE CHANGE,THE COAL AUTHORITY,23/05/2016,Subsidence - Contractor & Claim Costs,PS&S - Kellingley,Ransomes Land & Mineral Surveyors,1352,838.00
DEPARTMENT OF ENERGY AND CLIMATE CHANGE,THE COAL AUTHORITY,23/05/2016,Subsidence - Contractor & Claim Costs,PS&S - Kellingley,Mr A Jackson,1353,1400.00
DEPARTMENT OF ENERGY AND CLIMATE CHANGE,THE COAL AUTHORITY,24/05/2016,Subsidence - Contractor & Claim Costs,PS&S - Kellingley,AXA Insurance,1383,24792.87
DEPARTMENT OF ENERGY AND CLIMATE CHANGE,THE COAL AUTHORITY,30/04/2016,Fares - Rail,PS&S - Management,Redfern Travel Ltd,886,318.02
DEPARTMENT OF ENERGY AND CLIMATE CHANGE,THE COAL AUTHORITY,30/04/2016,Mine Entry Inspection - Outsourced Management,PS&S - Management,Interlock Surveys,990,8048.25
DEPARTMENT OF ENERGY AND CLIMATE CHANGE,THE COAL AUTHORITY,30/04/2016,Mine Entry Inspection - Outsourced Management,PS&S - Management,Interlock Surveys,991,5330.00
DEPARTMENT OF ENERGY AND CLIMATE CHANGE,THE COAL AUTHORITY,05/05/2016,Subsidence - Contractor & Claim Costs,PS&S - Thoresby,Mr J A Pickard,776,600.00
DEPARTMENT OF ENERGY AND CLIMATE CHANGE,THE COAL AUTHORITY,06/05/2016,Subsidence - Contractor & Claim Costs,PS&S - Thoresby,Cornerstone  Projects Ltd,892,103.00
DEPARTMENT OF ENERGY AND CLIMATE CHANGE,THE COAL AUTHORITY,06/05/2016,Subsidence - Contractor & Claim Costs,PS&S - Thoresby,Cornerstone  Projects Ltd,893,103.00
DEPARTMENT OF ENERGY AND CLIMATE CHANGE,THE COAL AUTHORITY,09/05/2016,Subsidence - Contractor & Claim Costs,PS&S - Thoresby,Mr Robin Orr,939,1498.00
DEPARTMENT OF ENERGY AND CLIMATE CHANGE,THE COAL AUTHORITY,13/05/2016,Subsidence - Contractor & Claim Costs,PS&S - Thoresby,Cornerstone  Projects Ltd,1082,103.00
DEPARTMENT OF ENERGY AND CLIMATE CHANGE,THE COAL AUTHORITY,13/05/2016,Subsidence - Contractor & Claim Costs,PS&S - Thoresby,Cornerstone  Projects Ltd,1084,103.00
DEPARTMENT OF ENERGY AND CLIMATE CHANGE,THE COAL AUTHORITY,01/05/2016,Applications Consultancy,Records,Daisy Communications Ltd,1024,7600.00
DEPARTMENT OF ENERGY AND CLIMATE CHANGE,THE COAL AUTHORITY,29/04/2016,Temporary Contractors,Records,Key Personnel Solutions Ltd,686,505.69
DEPARTMENT OF ENERGY AND CLIMATE CHANGE,THE COAL AUTHORITY,06/05/2016,Temporary Contractors,Records,Key Personnel Solutions Ltd,965,408.04
DEPARTMENT OF ENERGY AND CLIMATE CHANGE,THE COAL AUTHORITY,13/05/2016,Temporary Contractors,Records,Key Personnel Solutions Ltd,1162,404.55
DEPARTMENT OF ENERGY AND CLIMATE CHANGE,THE COAL AUTHORITY,20/05/2016,Temporary Contractors,Records,Key Personnel Solutions Ltd,1367,523.13
DEPARTMENT OF ENERGY AND CLIMATE CHANGE,THE COAL AUTHORITY,29/04/2016,Legal - General,Regulation - Historic Property Liabilities,Walker Morris,1201,545.20
DEPARTMENT OF ENERGY AND CLIMATE CHANGE,THE COAL AUTHORITY,29/04/2016,Legal - Property Title Search,Regulation - Historic Property Liabilities,Land Registry,668,3.00
DEPARTMENT OF ENERGY AND CLIMATE CHANGE,THE COAL AUTHORITY,06/05/2016,Legal - Property Title Search,Regulation - Historic Property Liabilities,Land Registry,875,6.00
DEPARTMENT OF ENERGY AND CLIMATE CHANGE,THE COAL AUTHORITY,18/05/2016,Legal - Property Title Search,Regulation - Historic Property Liabilities,Land Registry,1283,15.00
DEPARTMENT OF ENERGY AND CLIMATE CHANGE,THE COAL AUTHORITY,13/05/2016,Legal - Property Title Search,Regulation - Historic Property Liabilities,Land Registry,1285,12.00
DEPARTMENT OF ENERGY AND CLIMATE CHANGE,THE COAL AUTHORITY,18/05/2016,Legal - Property Title Search,Regulation - Historic Property Liabilities,Land Registry,1305,15.00
DEPARTMENT OF ENERGY AND CLIMATE CHANGE,THE COAL AUTHORITY,13/05/2016,Legal - Property Title Search,Regulation - Historic Property Liabilities,Land Registry,1306,12.00
DEPARTMENT OF ENERGY AND CLIMATE CHANGE,THE COAL AUTHORITY,27/05/2016,Legal - Property Title Search,Regulation - Historic Property Liabilities,Land Registry,1537,24.00
DEPARTMENT OF ENERGY AND CLIMATE CHANGE,THE COAL AUTHORITY,11/05/2016,Property Rates Payable,Regulation - Historic Property Liabilities,British Gas Business,1092,118.75
DEPARTMENT OF ENERGY AND CLIMATE CHANGE,THE COAL AUTHORITY,11/05/2016,Property Rates Payable,Regulation - Historic Property Liabilities,British Gas Business,1092,166.20
DEPARTMENT OF ENERGY AND CLIMATE CHANGE,THE COAL AUTHORITY,21/04/2016,Property Site Maintenance,Regulation - Historic Property Liabilities,Marshall Farming Limited,945,797.00
DEPARTMENT OF ENERGY AND CLIMATE CHANGE,THE COAL AUTHORITY,30/04/2016,Fares - Rail,Regulation - Legal,Redfern Travel Ltd,886,328.68
DEPARTMENT OF ENERGY AND CLIMATE CHANGE,THE COAL AUTHORITY,30/04/2016,Hotel & Accommodation,Regulation - Legal,Redfern Travel Ltd,888,134.17
DEPARTMENT OF ENERGY AND CLIMATE CHANGE,THE COAL AUTHORITY,06/05/2016,Legal - Property Title Search,Regulation - Legal,Land Registry,875,24.00
DEPARTMENT OF ENERGY AND CLIMATE CHANGE,THE COAL AUTHORITY,18/05/2016,Legal - Property Title Search,Regulation - Legal,Land Registry,1283,18.00
DEPARTMENT OF ENERGY AND CLIMATE CHANGE,THE COAL AUTHORITY,18/05/2016,Legal - Property Title Search,Regulation - Legal,Land Registry,1305,18.00
DEPARTMENT OF ENERGY AND CLIMATE CHANGE,THE COAL AUTHORITY,27/05/2016,Legal - Property Title Search,Regulation - Legal,Land Registry,1537,15.00
DEPARTMENT OF ENERGY AND CLIMATE CHANGE,THE COAL AUTHORITY,25/05/2016,Membership Subscriptions,Regulation - Legal,Thomson Reuters (Professional),1463,70.00
DEPARTMENT OF ENERGY AND CLIMATE CHANGE,THE COAL AUTHORITY,06/05/2016,Legal - General,Regulation - Licensing,Anderson Strathern,940,204.00
DEPARTMENT OF ENERGY AND CLIMATE CHANGE,THE COAL AUTHORITY,08/04/2016,Legal - General,Regulation - Licensing,Anderson Strathern,941,702.00
DEPARTMENT OF ENERGY AND CLIMATE CHANGE,THE COAL AUTHORITY,04/05/2016,eCommerce Commission Charges,Regulation � Permissions,Worldpay Limited,925,44.24
DEPARTMENT OF ENERGY AND CLIMATE CHANGE,THE COAL AUTHORITY,01/05/2016,eCommerce Commission Charges,Regulation � Permissions,Worldpay,968,378.70
DEPARTMENT OF ENERGY AND CLIMATE CHANGE,THE COAL AUTHORITY,09/05/2016,Applications Consultancy,Regulation - Planning & Local Authority Liaison,Scisys Uk Ltd,996,120.85
DEPARTMENT OF ENERGY AND CLIMATE CHANGE,THE COAL AUTHORITY,23/05/2016,Applications Consultancy,Regulation - Planning & Local Authority Liaison,Nowcomm,1440,1265.62
DEPARTMENT OF ENERGY AND CLIMATE CHANGE,THE COAL AUTHORITY,30/04/2016,Consultancy - Town Planning,Regulation - Planning & Local Authority Liaison,Anthony Northcote Planning,969,1609.40
DEPARTMENT OF ENERGY AND CLIMATE CHANGE,THE COAL AUTHORITY,18/04/2016,Software Support & Maintenance - On Premise,Regulation - Planning & Local Authority Liaison,Computacenter (Uk) Ltd,910,7593.74
DEPARTMENT OF ENERGY AND CLIMATE CHANGE,THE COAL AUTHORITY,09/05/2016,Applications Consultancy,Regulation - Property Management,Scisys Uk Ltd,996,120.84
DEPARTMENT OF ENERGY AND CLIMATE CHANGE,THE COAL AUTHORITY,23/05/2016,Applications Consultancy,Regulation - Property Management,Nowcomm,1440,1265.62
DEPARTMENT OF ENERGY AND CLIMATE CHANGE,THE COAL AUTHORITY,30/04/2016,Closed Colliery Site Restoration,Regulation - Property Management,Crimefighter Alarms Ltd,813,2206.80
DEPARTMENT OF ENERGY AND CLIMATE CHANGE,THE COAL AUTHORITY,17/05/2016,Closed Colliery Site Restoration,Regulation - Property Management,M T S Cleansing Services Ltd,1354,381.69
DEPARTMENT OF ENERGY AND CLIMATE CHANGE,THE COAL AUTHORITY,11/05/2016,Incidentals,Regulation - Property Management,Accruals - Staff Expenses Control,978,10.42
DEPARTMENT OF ENERGY AND CLIMATE CHANGE,THE COAL AUTHORITY,06/05/2016,Legal - General,Regulation - Property Management,Anderson Strathern,940,260.00
DEPARTMENT OF ENERGY AND CLIMATE CHANGE,THE COAL AUTHORITY,08/04/2016,Legal - General,Regulation - Property Management,Anderson Strathern,941,1236.00
DEPARTMENT OF ENERGY AND CLIMATE CHANGE,THE COAL AUTHORITY,29/04/2016,Legal - General,Regulation - Property Management,Walker Morris,1201,156.60
DEPARTMENT OF ENERGY AND CLIMATE CHANGE,THE COAL AUTHORITY,06/05/2016,Legal - Sales,Regulation - Property Management,Anderson Strathern,940,126.00
DEPARTMENT OF ENERGY AND CLIMATE CHANGE,THE COAL AUTHORITY,08/04/2016,Legal - Sales,Regulation - Property Management,Anderson Strathern,941,59.00
DEPARTMENT OF ENERGY AND CLIMATE CHANGE,THE COAL AUTHORITY,29/04/2016,Legal - Sales,Regulation - Property Management,Walker Morris,1201,2629.80
DEPARTMENT OF ENERGY AND CLIMATE CHANGE,THE COAL AUTHORITY,11/05/2016,Mileage Payments,Regulation - Property Management,Accruals - Staff Expenses Control,978,70.13
DEPARTMENT OF ENERGY AND CLIMATE CHANGE,THE COAL AUTHORITY,30/04/2016,Other Contractor Costs,Regulation - Property Management,Jmc Engineering Uk Ltd,757,1446.40
DEPARTMENT OF ENERGY AND CLIMATE CHANGE,THE COAL AUTHORITY,30/04/2016,Other Contractor Costs,Regulation - Property Management,Jmc Engineering Uk Ltd,758,237.20
DEPARTMENT OF ENERGY AND CLIMATE CHANGE,THE COAL AUTHORITY,24/03/2016,Other Contractor Costs,Regulation - Property Management,Cornerstone  Projects Ltd,1202,501.60
DEPARTMENT OF ENERGY AND CLIMATE CHANGE,THE COAL AUTHORITY,10/05/2016,Outsourced Management - Estates,Regulation - Property Management,Frank Marshall,1119,400.00
DEPARTMENT OF ENERGY AND CLIMATE CHANGE,THE COAL AUTHORITY,22/04/2016,Property Rates Payable,Regulation - Property Management,British Gas Business,728,36.13
DEPARTMENT OF ENERGY AND CLIMATE CHANGE,THE COAL AUTHORITY,03/05/2016,Property Rates Payable,Regulation - Property Management,British Gas Business,870,33.93
DEPARTMENT OF ENERGY AND CLIMATE CHANGE,THE COAL AUTHORITY,01/05/2016,Property Rents Payable,Regulation - Property Management,Welbeck Estates Company Ltd,746,97.60
DEPARTMENT OF ENERGY AND CLIMATE CHANGE,THE COAL AUTHORITY,11/05/2016,Property Rents Payable,Regulation - Property Management,Network Rail,1052,40.00
DEPARTMENT OF ENERGY AND CLIMATE CHANGE,THE COAL AUTHORITY,11/05/2016,Property Rents Payable,Regulation - Property Management,Network Rail,1183,410.38
DEPARTMENT OF ENERGY AND CLIMATE CHANGE,THE COAL AUTHORITY,18/05/2016,Property Rents Payable,Regulation - Property Management,Warrington Borough Council,1361,14.00
DEPARTMENT OF ENERGY AND CLIMATE CHANGE,THE COAL AUTHORITY,13/05/2016,Requests For Change,Regulation - Property Management,Scisys Uk Ltd,1289,292.87
DEPARTMENT OF ENERGY AND CLIMATE CHANGE,THE COAL AUTHORITY,18/04/2016,Software Support & Maintenance - On Premise,Regulation - Property Management,Computacenter (Uk) Ltd,910,7593.74
DEPARTMENT OF ENERGY AND CLIMATE CHANGE,THE COAL AUTHORITY,11/05/2016,Subsistence Allowances,Regulation - Property Management,Accruals - Staff Expenses Control,978,13.62
DEPARTMENT OF ENERGY AND CLIMATE CHANGE,THE COAL AUTHORITY,26/04/2016,Central Training,Safety Health & Environment,O Heap & Son (Derby) Limited,706,460.00
DEPARTMENT OF ENERGY AND CLIMATE CHANGE,THE COAL AUTHORITY,17/05/2016,Central Training,Safety Health & Environment,Mines Rescue Service Limited,1198,138.00
DEPARTMENT OF ENERGY AND CLIMATE CHANGE,THE COAL AUTHORITY,30/04/2016,Fares - Rail,Safety Health & Environment,Redfern Travel Ltd,886,48.43
DEPARTMENT OF ENERGY AND CLIMATE CHANGE,THE COAL AUTHORITY,30/04/2016,Hotel & Accommodation,Safety Health & Environment,Redfern Travel Ltd,888,148.81
DEPARTMENT OF ENERGY AND CLIMATE CHANGE,THE COAL AUTHORITY,12/05/2016,Personal Protective Equipment,Safety Health & Environment,Arco Limited,1135,109.14
DEPARTMENT OF ENERGY AND CLIMATE CHANGE,THE COAL AUTHORITY,12/05/2016,Personal Protective Equipment,Safety Health & Environment,Arco Limited,1136,94.44
DEPARTMENT OF ENERGY AND CLIMATE CHANGE,THE COAL AUTHORITY,12/05/2016,Personal Protective Equipment,Safety Health & Environment,Arco Limited,1137,16.29
DEPARTMENT OF ENERGY AND CLIMATE CHANGE,THE COAL AUTHORITY,12/05/2016,Personal Protective Equipment,Safety Health & Environment,Arco Limited,1138,16.29
DEPARTMENT OF ENERGY AND CLIMATE CHANGE,THE COAL AUTHORITY,16/05/2016,Personal Protective Equipment,Safety Health & Environment,Arco Limited,1281,110.42
DEPARTMENT OF ENERGY AND CLIMATE CHANGE,THE COAL AUTHORITY,16/05/2016,Personal Protective Equipment,Safety Health & Environment,Arco Limited,1282,16.29
DEPARTMENT OF ENERGY AND CLIMATE CHANGE,THE COAL AUTHORITY,17/05/2016,Personal Protective Equipment,Safety Health & Environment,Arco Limited,1335,92.07
DEPARTMENT OF ENERGY AND CLIMATE CHANGE,THE COAL AUTHORITY,19/05/2016,Personal Protective Equipment,Safety Health & Environment,Arco Limited,1386,178.48
DEPARTMENT OF ENERGY AND CLIMATE CHANGE,THE COAL AUTHORITY,19/05/2016,Personal Protective Equipment,Safety Health & Environment,Arco Limited,1387,25.25
DEPARTMENT OF ENERGY AND CLIMATE CHANGE,THE COAL AUTHORITY,20/05/2016,Personal Protective Equipment,Safety Health & Environment,Arco Limited,1469,63.32
DEPARTMENT OF ENERGY AND CLIMATE CHANGE,THE COAL AUTHORITY,17/05/2016,Personal Protective Equipment,Safety Health & Environment,Arco Limited,1334,196.49
DEPARTMENT OF ENERGY AND CLIMATE CHANGE,THE COAL AUTHORITY,18/05/2016,Subsistence Allowances,Safety Health & Environment,Accruals - Staff Expenses Control,1217,4.61
DEPARTMENT OF ENERGY AND CLIMATE CHANGE,THE COAL AUTHORITY,29/04/2016,Temporary Contractors,Safety Health & Environment,Mott Macdonald Ltd,703,9559.35
DEPARTMENT OF ENERGY AND CLIMATE CHANGE,THE COAL AUTHORITY,09/05/2016,CY - Tangible IT - Additions,Service Management,Daisy Communications Ltd,1279,8600.46
DEPARTMENT OF ENERGY AND CLIMATE CHANGE,THE COAL AUTHORITY,30/04/2016,Fares - Rail,Service Management,Redfern Travel Ltd,886,195.15
DEPARTMENT OF ENERGY AND CLIMATE CHANGE,THE COAL AUTHORITY,30/04/2016,Fares - Rail,Service Management,Redfern Travel Ltd,886,47.85
DEPARTMENT OF ENERGY AND CLIMATE CHANGE,THE COAL AUTHORITY,18/03/2016,Hardware Equipment & Support,Service Management,Software Box Limited,902,13380.67
DEPARTMENT OF ENERGY AND CLIMATE CHANGE,THE COAL AUTHORITY,27/04/2016,Internet Service Provider & Comms,Service Management,British Telecommunications Plc,912,4337.00
DEPARTMENT OF ENERGY AND CLIMATE CHANGE,THE COAL AUTHORITY,23/05/2016,Internet Service Provider & Comms,Service Management,Nowcomm,1440,14120.00
DEPARTMENT OF ENERGY AND CLIMATE CHANGE,THE COAL AUTHORITY,23/04/2016,Mobiles Phones - Call Charges,Service Management,Vodafone Limited (Corporate),1034,294.20
DEPARTMENT OF ENERGY AND CLIMATE CHANGE,THE COAL AUTHORITY,23/04/2016,Mobiles Phones - Line Rent,Service Management,Vodafone Limited (Corporate),1034,5928.30
DEPARTMENT OF ENERGY AND CLIMATE CHANGE,THE COAL AUTHORITY,23/05/2016,Office Machinery - Hire,Service Management,Gem Uk Mailing Solutions Ltd,1355,567.00
DEPARTMENT OF ENERGY AND CLIMATE CHANGE,THE COAL AUTHORITY,28/04/2016,Office Printing Services,Service Management,Konica Minolta,696,1276.11
DEPARTMENT OF ENERGY AND CLIMATE CHANGE,THE COAL AUTHORITY,01/05/2016,Office Telephony - Call Charges,Service Management,Daisy Communications Ltd,1024,346.25
DEPARTMENT OF ENERGY AND CLIMATE CHANGE,THE COAL AUTHORITY,30/04/2016,Office Telephony - Call Charges,Service Management,British Telecommunications Plc,1100,78.36
DEPARTMENT OF ENERGY AND CLIMATE CHANGE,THE COAL AUTHORITY,01/05/2016,Office Telephony - Line Rent,Service Management,Daisy Communications Ltd,1024,1084.40
DEPARTMENT OF ENERGY AND CLIMATE CHANGE,THE COAL AUTHORITY,11/05/2016,Office Telephony - Line Rent,Service Management,British Telecommunications Plc,1298,2112.53
